Workbook

Sheet A P&G
A2: MALUTI-A-PHOFUNG LOCAL MUNICIPALITY
A3: APPOINTMENT OF A SERVICE PROVIDER: UPGRADING OF WATER PUMP STATION PHASE 1
A4: Contract No.: SCM/BID09/2023/24
A6: SCHEDULE A: PRELIMINARY AND GENERAL
A8: ITEM | B8: PAYMENT CLAUSE | C8: DESCRIPTION | D8: UNIT | E8: QUANT, | F8: RATE | G8: AMOUNT
A10: A1 | B10: 8.3 | C10: SCHEDULED FIXED-CHARGE AND VALUE RELATED ITEMS
A12: A1.1 | B12: 8.3.1 | C12: Contractual requirements | D12: Sum | E12: 1.00 | G12: =E12*F12 -> 0.00
A14: A1.2 | B14: 8.3.2 | C14: Establishment of facilities on the site
A16: A2 | C16: PHUTHADITJHABA
B18: 8.3.2.1 | C18: Facilities for Engineer:
A20: A2.1 | C20: Nameboards | D20: No. | E20: 2.00 | G20: =E20*F20 -> 0.00
A22: A2.2 | C22: Engineer's office building | D22: Sum | E22: 1.00 | G22: =E22*F22 -> 0.00
B24: 8.3.2.2 | C24: Facilities for Contractor (Qwa-Qwa)
A26: A2.3 | C26: Offices and storage sheds | D26: Sum | E26: 1.00 | G26: =E26*F26 -> 0.00
A28: A2.4 | C28: Living accommodation | D28: Sum | E28: 1.00 | G28: =E28*F28 -> 0.00
A30: A2.5 | C30: Ablution and latrine facilities | D30: Sum | E30: 1.00 | G30: =E30*F30 -> 0.00
A32: A2.6 | C32: Tools and equipment including survey equipment | D32: Sum | E32: 1.00 | G32: =E32*F32 -> 0.00
A34: A2.7 | C34: Water supplies, electrical power and communications | D34: Sum | E34: 1.00 | G34: =E34*F34 -> 0.00
A36: A2.8 | C36: Access | D36: Sum | E36: 1.00 | G36: =E36*F36 -> 0.00
A38: A2.9 | B38: 8.3.3 | C38: Other fixed-charge obligations | D38: Sum | E38: 1.00 | G38: =E38*F38 -> 0.00
A40: A2.10 | B40: 8.3.4 | C40: Removal of site establishment | D40: Sum | E40: 1.00 | G40: =E40*F40 -> 0.00
A42: A3 | C42: HARRISMITH
B44: 8.3.2.1 | C44: Facilities for Engineer:
A46: A3.1 | C46: Nameboards (Re-use existing nameboards) | D46: No. | E46: 2.00 | G46: =E46*F46 -> 0.00
A48: A3.2 | C48: Engineer's office building | D48: Sum | E48: 1.00 | G48: =E48*F48 -> 0.00
B50: 8.3.2.2 | C50: Facilities for Contractor
A52: A3.3 | C52: Offices and storage sheds | D52: Sum | E52: 1.00 | G52: =E52*F52 -> 0.00
A54: A3.4 | C54: Living accommodation | D54: Sum | E54: 1.00 | G54: =E54*F54 -> 0.00
A56: A3.5 | C56: Ablution and latrine facilities | D56: Sum | E56: 1.00 | G56: =E56*F56 -> 0.00
A58: A3.6 | C58: Tools and equipment including survey equipment | D58: Sum | E58: 1.00 | G58: =E58*F58 -> 0.00
A60: A3.7 | C60: Water supplies, electrical power and communications | D60: Sum | E60: 1.00 | G60: =E60*F60 -> 0.00
A62: A3.8 | C62: Access | D62: Sum | E62: 1.00 | G62: =E62*F62 -> 0.00
A64: A3.9 | B64: 8.3.3 | C64: Other fixed-charge obligations | D64: Sum | E64: 1.00 | G64: =E64*F64 -> 0.00
A66: A3.10 | B66: 8.3.4 | C66: Removal of site establishment | D66: Sum | E66: 1.00 | G66: =E66*F66 -> 0.00
A68: A4 | B68: 8.4 | C68: SCHEDULED TIME-RELATED ITEMS:
A70: A4.1 | B70: 8.4.1 | C70: Contractual requirements | D70: Sum | E70: 1.00 | G70: =E70*F70 -> 0.00
A72: A4.2 | B72: 8.4.2 | C72: Operate and maintain of facilities on site, for the duration of construction, except where otherwise stated:
B74: 8.4.2.1 | C74: Facilities for Engineer:
A76: A4.3 | C76: Operate and maintain office building | D76: Sum | E76: 1.00 | G76: =E76*F76 -> 0.00
B78: 8.4.2.2 | C78: Facilities for Contractor:
A80: A4.4 | C80: Offices and storage sheds | D80: Sum | E80: 1 | G80: =E80*F80 -> 0.00
A82: A4.5 | C82: Living accommodation | D82: Sum | E82: 1 | G82: =E82*F82 -> 0.00
A84: A4.6 | C84: Ablution and latrine facilities | D84: Sum | E84: 1 | G84: =E84*F84 -> 0.00
A86: A4.7 | C86: Tools and equipment | D86: Sum | E86: 1 | G86: =E86*F86 -> 0.00
A88: A4.8 | C88: Water supplies, electrical power and communications | D88: Sum | E88: 1 | G88: =E88*F88 -> 0.00
A90: A4.9 | C90: Access | D90: Sum | E90: 1 | G90: =E90*F90 -> 0.00
A92: A4.10 | B92: 8.4.3 | C92: Supervision for the duration of construction | D92: Sum | E92: 1 | G92: =E92*F92 -> 0.00
A94: A4.11 | B94: 8.4.4 | C94: Company and head office overhead costs for the duration of the contract | D94: Sum | E94: 1 | G94: =E94*F94 -> 0.00
A96: A5 | B96: 8.5 | C96: SUMS STATED PROVISIONALLY BY THE ENGINEER
A98: A5.1 | C98: Additional tests required by the Engineer | D98: Prov Sum | E98: 1 | F98: 30,000.00 | G98: =E98*F98 -> 30,000.00
A100: A5.2 | C100: Charge required by Contractor on subitem 5.1 above | D100: % | E100: 30,000.00 | G100: =E100*F100 -> 0.00
A102: A5.3 | C102: Accommodation of the Engineer's Representative | D102: Prov Sum | E102: 1 | F102: 120,000.00 | G102: =E102*F102 -> 120,000.00
A104: TOTAL CARREID FORWARD | G104: =SUM(G9:G103) -> 150,000.00
A105: TOTAL BROUGHT FORWARD | G105: =G104 -> 150,000.00
A107: A5.4 | C107: Overheads, charges and profit on subitem 5.3 above | D107: % | E107: 120000 | G107: =E107*F107 -> 0.00
A109: A5.5 | C109: Costs encountered by the Engineer (site supervision) | D109: Prov Sum | E109: 1 | F109: 720,000.00 | G109: =E109*F109 -> 720,000.00
A111: A5.6 | C111: Overheads, charges and profit on subitem 5.5 above | D111: % | E111: =G109 -> 720,000.00 | G111: =E111*F111 -> 0.00
A113: A5.7 | C113: Telephone and communication facilities for the Engineer's Representative | D113: Prov Sum | E113: 1 | F113: 10,000.00 | G113: =E113*F113 -> 10,000.00
A115: A5.8 | C115: Overheads, charges and profit on subitem 5.7 above | D115: % | E115: 10,000.00 | G115: =E115*F115 -> 0.00
A117: A5.9 | C117: Photocopying machine for the Engineer's Office | D117: Prov Sum | E117: 1 | F117: 30,000.00 | G117: 30,000.00
A119: A5.10 | C119: Overheads, charges and profit on subitem 5.9 above | D119: % | E119: 30000 | G119: =E119*F119 -> 0.00
A121: A5.11 | C121: Provisional sum for security at pump stations | D121: Prov Sum | E121: 1.00 | F121: 500,000.00 | G121: 500,000.00
A123: A5.12 | C123: Charge required by Contractor on subitem | D123: % | E123: 500,000.00 | G123: =E123*F123 -> 0.00
A125: A6 | B125: 8.8 | C125: TEMPORARY WORKS
A127: A6.1 | B127: 8.8.6 | C127: Accomodation of Water | D127: Sum | E127: 1 | G127: =E127*F127 -> 0.00
A129: A6.2 | B129: 8.5 | C129: Allow for remuneration for Community Liaison Officer | D129: Prov Sum | E129: 1 | F129: 100,000.00 | G129: =E129*F129 -> 100,000.00
A131: A6.3 | C131: Overheads, charges and profit and subitem 6.2 above | D131: % | E131: =G129 -> 100,000.00 | G131: =E131*F131 -> 0.00
A133: A7 | B133: SPEC OHS | C133: Health and Safety :
A135: A7.1 | B135: PSA 8.9 | C135: Compliance with OHS Act and Regulations | D135: Sum | E135: 1 | G135: =E135*F135 -> 0.00
A137: A7.2 | B137: PSA 8.5 | C137: Health and Safety Agent (Engineer) | D137: Prov Sum | E137: 1 | F137: 200,000.00 | G137: =E137*F137 -> 200,000.00
A139: A7.3 | C139: Overheads, charges and profit on subitem 7.2 above | D139: % | E139: =G137 -> 200,000.00 | G139: 0.00
A141: A7.4 | B141: OHS 5.2 | C141: Penalty for non-compliance with the Occupational Health and Safety Specification:
A143: A7.4.1 | C143: a) Fixed penalty per occurrence | D143: No. | F143: 10,000.00 | G143: Rate Only
A145: A7.4.2 | C145: b) Time related penalty (per day) | D145: Days | F145: 2,500.00 | G145: Rate Only
A147: A8 | B147: SPEC EM | C147: Environmental Management :
A149: A8.1 | C149: Compliance with Environmental Management Specification | D149: Sum | E149: 1 | G149: =E149*F149 -> 0.00
A151: A8.2 | B151: PSA 8.5 | C151: Environmental Agent (Engineer) | D151: Prov Sum | E151: 1 | F151: 20,000.00 | G151: =E151*F151 -> 20,000.00
A153: A8.3 | C153: Overheads, charges and profit on subitem 8.2 above | D153: % | E153: =G151 -> 20,000.00 | G153: =E153*F153 -> 0.00
A155: A8.4 | B155: EM 6.2.3 | C155: Penalty for non-compliance with the Environmental Management Specification:
A157: A8.4.1 | C157: a) Fixed penalty per occurrence | D157: No. | F157: 10,000.00 | G157: Rate Only
A159: A8.4.2 | C159: b) Time related penalty (per day) | D159: Days | F159: 2,500.00 | G159: Rate Only
A161: TOTAL CARREID FORWARD TO SUMMARY PAGE | G161: =SUM(G105:G160) -> 1,730,000.00

Sheet 1 Mabolela
A2: MALUTI-A-PHOFUNG LOCAL MUNICIPALITY
A3: APPOINTMENT OF A SERVICE PROVIDER: UPGRADING OF WATER PUMP STATION PHASE 1
A4: Contract No.: SCM/BID09/2023/24
A6: SCHEDULE PUMP STATION No 1: MABOLELA PUMP STATION ( 28°30'48.45"S, 28°47'23.26"E)
A8: ITEM | B8: PAYMENT CLAUSE | C8: DESCRIPTION | D8: UNIT | E8: QUANT. | F8: RATE | G8: AMOUNT
A10: PS1-A | C10: SECTION A: CIVIL REFURBISHMENT
A12: PS1-A.1 | B12: SANS 1200C | C12: SITE CLEARANCE
A14: PS1-A1.1 | B14: 8.3.1 | C14: Clear and grub vegetation and trees of girth up to 1,0m | D14: m² | E14: 600 | G14: =E14*F14 -> 0.00
A16: PS1-A2 | C16: Fencing:
A18: PS1-A2.1 | C18: Supply and install concrete fencing from stockpile. Including all materials and fasteners. | D18: m | E18: 25 | G18: =E18*F18 -> 0.00
A20: PS1-A2.2 | C20: Supply and install flat wrap for entire pump station perimeter. | D20: m | E20: 150 | G20: 0.00
A22: PS1-A3 | B22: SANS 1200MJ | C22: SEGMENTED CONCRETE PAVING BLOCKS
C24: Paving
A26: PS1-A3.1 | C26: Cut to spoil 400mm deep excavation for paving and layerworks and compact base to 93% MOD-ASHTO | D26: m² | E26: 120 | G26: =E26*F26 -> 0.00
A28: PS1-A3.2 | C28: 150mm C4 Stabalised sub base layer compacted to 97% MOD-ASHTO | D28: m² | E28: 120 | G28: 0.00
A30: PS1-A3.3 | C30: 80mm Paving blocks including 20mm bedding sand layer | D30: m² | E30: 120 | G30: 0.00
A32: PS1-A3.4 | B32: SANS 1200ME 8.2.1 | C32: Supply and place pre-cast mountable concrete kerbing (Figure 8c pre-cast kerbing) | D32: m | E32: 60 | G32: 0.00
A34: PS1-A4 | B34: SANS 1200D | C34: EARTHWORKS
A36: PS1-A4.1 | C36: Locate, and excavate by hand in all material to expose existing services where ordered by the Engineer (provisional) | D36: m³ | E36: 25 | G36: =E36*F36 -> 0.00
A38: PS1-A4.2 | B38: 8.3.3 | C38: Restricted excavations:
C40: Excavate in all materials, and use for backfilling or embankments, or dispose:
A42: PS1-A4.3 | C42: Depth up to 1,0m | D42: m³ | E42: 10 | G42: =E42*F42 -> 0.00
A44: PS1-A4.4 | C44: Depth over 1,0m and up to 2,0m | D44: m³ | E44: 10 | G44: 0.00
A46: PS1-A5 | B46: PB | C46: BUILDING WORK REFURBISHMENT
B48: PB 8.2.20 | C48: Painting:
A50: PS1-A5.1 | C50: Interior Walls a) Pressure wash interior walls before any refurbishment work commence; b) Sand down interior walls; c) Remove all loose paint from structure; d) Apply interior paint primer (to be confirmed by supplier); e) Apply 2 coats of white interior paint (Emulsion paint) | D50: m² | E50: 40 | G50: =E50*F50 -> 0.00
A52: PS1-A5.2 | C52: Door and Window Frames a) Sand down door and window frames; b) Remove loose paint; c) Apply paint primer (to be confirmed by supplier); d) Apply 2 coats of Enamel Paint (Plascon Enamel or similar approved) | D52: m² | E52: 4 | G52: 0.00
A54: PS1-A5.3 | C54: Concrete Floors and 1m above floor level a) Pressure wash floors before any refurbishment work commence; b) Sand down existing epoxy and material; c) Remove loose particles; d) Apply epoxy primer (to be confirmed by supplier) e) Apply 3 layers of industrial epoxy paint (Sikagard) | D54: m² | E54: 10 | G54: 0.00
A56: PS1-A5.4 | C56: Interior Concrete Roofs a) Pressure wash roofs before any refurbishment work commence; b) Sand down existing roof material; c) Remove loose paint; d) Apply paint primer (to be confirmed by supplier) e) Apply 2 coats of interior roof paint (Dulux roof guard or similar approved) | D56: m² | E56: 10 | G56: 0.00
A58: PS1-A5.5 | C58: Exterior Concrete Roofs a) Pressure wash roofs before any refurbishment work commence; b) Sand down existing roof material; c) Remove loose paint; d) Apply paint primer (to be confirmed by supplier) e) Apply 2 coats of exterior roof paint (Dulux roof guard or similar approved) | D58: m² | E58: 12 | G58: 0.00
A60: PS1-A5.6 | C60: Steel Doors (Double doors) a) Pressure wash steel doors before any refurbishment work commence; b) Sand down existing doors; c) Remove loose paint; d) Apply paint primer (to be confirmed by supplier) e) Apply 2 coats of true black metal matt enamel (Dulux or similar approved) | D60: m² | E60: 5 | G60: 0.00
A62: PS1-A5.7 | C62: Concrete plinths: a) Pressure wash floors before any refurbishment work commence; b) Sand down existing epoxy and material; c) Remove loose particles; d) Apply epoxy primer (to be confirmed by supplier) e) Apply 3 layers of industrial epoxy paint (Sikagard) | D62: m² | E62: 2 | G62: 0.00
A63: TOTAL CARREID FORWARD | G63: =SUM(G9:G62) -> 0.00
A64: TOTAL BROUGHT FORWARD | G64: =G63 -> 0.00
A66: PS1-A5.8 | C66: Refurbishment of existing gaurdhouse | D66: Prov Sum | E66: 1.00 | F66: 20,000.00 | G66: =E66*F66 -> 20,000.00
A68: PS1-A5.9 | C68: Overheads, charges and profit on subitem A5.10 above | D68: % | E68: =F66 -> 20,000.00 | G68: =E68*F68 -> 0.00
A70: PS1-A6 | B70: PB 8.2.21 | C70: General Electrical:
A72: PS1-A6.1 | C72: Refurbishment of general electrical items in existing building | D72: Prov Sum | E72: 1.00 | F72: 15,000.00 | G72: 15,000.00
A74: PS1-A6.2 | C74: Overheads, charges and profit on subitem A6.1 above | D74: % | E74: =F72 -> 15,000.00 | G74: 0.00
A76: PS1-A6.3 | C76: Refurbishment of existing cable racks | D76: Prov Sum | E76: 1.00 | F76: 15,000.00 | G76: 15,000.00
A78: PS1-A6.4 | C78: Overheads, charges and profit on subitem A6.3 above | D78: % | E78: =F76 -> 15,000.00 | G78: 0.00
A80: PS1-A7 | B80: SANS 1200 H | C80: Structural steelwork:
C82: Complete supply, manufacturing, corrosion protection (Hot-dipped galvanized) and installation of structural steel gantry:
A84: PS1-A7.1 | C84: IPE 200 I-section beam, including end/cleat plates & bolts | D84: t | E84: 0.4 | G84: =E84*F84 -> 0.00
A86: PS1-A7.2 | C86: IPEAA 160 I-section beam, including end/cleat plates & bolts | D86: t | E86: 0.4 | G86: 0.00
A88: PS1-B | C88: SECTION B: MECHANICAL REFURBISHMENT
A90: PS1-B1 | C90: PIPEWORK:
C92: De-install of existing pipework for all diameters up to including:
A94: PS1-B1.1 | C94: 50- 150mm | D94: m | E94: 12 | G94: =E94*F94 -> 0.00
A96: PS1-B1.2 | C96: Confirm integrity of existing pipework:
C98: High pressure sand blasting of all existing pipework (including flanges)
C100: For the following diameters:
A102: PS1-B1.2.1 | C102: 65mm | D102: m | E102: 3 | G102: =E102*F102 -> 0.00
A104: PS1-B1.2.2 | C104: 100mm | D104: m | E104: 10 | G104: =E104*F104 -> 0.00
A106: PS1-B1.2.3 | C106: Complete Non-destructive testing (NDT) on all existing pipework | D106: Sum | E106: 1 | G106: 0.00
A108: PS1-B1.3 | C108: Re-coating of pipework (COPON KSIR 88 - 250 MICRON or similar approved)
C110: For the following diameters:
A112: PS1-B1.3.1 | C112: 65mm | D112: m | E112: 3 | G112: =E112*F112 -> 0.00
A114: PS1-B1.3.2 | C114: 100mm | D114: m | E114: 10 | G114: 0.00
A116: PS1-B1.4 | C116: Replacement of all nuts, bolts and gaskets
C118: For following flanges (SANS 1123, Grade 8.8 Bolts and Nuts):
A120: PS1-B1.4.1 | C120: 65mm | D120: No | E120: 6 | G120: =E120*F120 -> 0.00
A122: PS1-B1.4.2 | C122: 100mm | D122: No | E122: 50 | G122: 0.00
A124: PS1-B1.5 | C124: Provisional items
A126: PS1-B1.5.1 | C126: Replacement of existing pipework | D126: Prov Sum | E126: 1.00 | F126: 50,000.00 | G126: =F126*E126 -> 50,000.00
A128: PS1-B1.5.2 | C128: Overheads, charges and profit on subitem B1.5.1 above | D128: % | E128: =F126 -> 50,000.00 | G128: =E128*F128 -> 0.00
A130: PS1-B1.6 | C130: Pipe brackets:
C132: For 100mm pipes:
C134: For heights between:
A136: PS1-B1.6.1 | C136: 0.75 - 1.2m | D136: No | E136: 4 | G136: =E136*F136 -> 0.00
A138: PS1-B2 | B138: PS-1 | C138: PUMPS AND MOTORS:
C140: Specifications Fluid: Potable Water:
A142: PS1-B2.1 | C142: De-install existing pump sets | D142: No | E142: 1 | G142: =E142*F142 -> 0.00
A144: PS1-B2.2 | C144: Transport to Agent/Manufactures workshop for conditional assessment and back to storeroom of Municipality | D144: Sum | E144: 1 | G144: =E144*F144 -> 0.00
A146: PS1-B2.3 | C146: Refurbishment works required on pump sets for spare parts | D146: Prov Sum | E146: 1 | F146: 15,000.00 | G146: =E146*F146 -> 15,000.00
A148: PS1-B2.4 | C148: Overheads, charges and profit on subitem B2.3 above | D148: % | E148: =F146 -> 15,000.00 | G148: =E148*F148 -> 0.00
A150: PS1-B2.5 | C150: Prepare G.A Drawings for pump sets and pipework | D150: Sum | E150: 1 | G150: =E150*F150 -> 0.00
A152: PS1-B2.6 | C152: Supply and deliver new pump sets (including baseplates, anchor rods, bolts and all fittings required) | D152: No | E152: 2 | G152: =E152*F152 -> 0.00
A154: PS1-B2.7 | C154: Install new pump set (Pump, Motor and Baseplate) | D154: No | E154: 2 | G154: =E154*F154 -> 0.00
A155: TOTAL CARREID FORWARD | G155: =SUM(G64:G154) -> 115,000.00
A156: TOTAL BROUGHT FORWARD | G156: =G155 -> 115,000.00
A158: PS1-B2.8 | C158: Commissioning of pump set and O&M Manuals | D158: No | E158: 2 | G158: =E158*F158 -> 0.00
A160: PS1-B3 | B160: SANS 1200 LK | C160: Valves
A162: PS1-B3.1 | C162: De-install and remove existing valves | D162: Sum | E162: 1 | G162: =E162*F162 -> 0.00
A164: PS1-B3.2 | C164: Supply and deliver valves (Flangend drilling of valves to be confirmed on site):
C166: Suction:
C168: Flanged RSV Gate Valve:
A170: PS1-B3.2.1 | C170: DN 100mm PN10 (AVK or similar approved) | D170: No | E170: 2 | G170: =E170*F170 -> 0.00
C172: Delivery:
C174: Flanged RSV Gate Valve:
A176: PS1-B3.2.2 | C176: DN 100mm PN16 (AVK or similar approved) | D176: No | E176: 2 | G176: =E176*F176 -> 0.00
C178: Ball Check Valve
A180: PS1-B3.2.3 | C180: DN 100 PN16 (AVK or similar approved) | D180: No | E180: 2 | G180: =E180*F180 -> 0.00
C182: Air-Valves:
A184: PS1-B3.2.4 | C184: DN 50mm PN16 (RPS - Vent-O-Mat or similar approved) Including: a) Riser Flange b) Ball valve c) Bolts, nuts etc. | D184: No | E184: 1 | G184: =E184*F184 -> 0.00
C186: Pressure Sustaining Valve:
A188: PS1-B3.2.5 | C188: DN 100mm PN16 (Bermad or similar approved) | D188: No | E188: 1 | G188: =E188*F188 -> 0.00
C190: Water meter/Flow meter:
A192: PS1-B3.2.6 | C192: DN100 Optiflux 2000 OIML R49 Class 1 (KROHNE or similar approved) | D192: No | E192: 1 | G192: =E192*F192 -> 0.00
C194: Pressure Gauges
A196: PS1-B3.2.7 | C196: Supply, deliver and install 16 bar pressure gauges (2 x suction, 2 x delivery) | D196: No | E196: 4 | G196: =E196*F196 -> 0.00
C198: Install
A200: PS1-B3.2.8 | C200: Flanged RSV Gate Valve - Suction | D200: No | E200: 2 | G200: =E200*F200 -> 0.00
A202: PS1-B3.2.9 | C202: Flanged RSV Gate Valve - Delivery | D202: No | E202: 2 | G202: 0.00
A204: PS1-B3.2.10 | C204: Ball Check Valve | D204: No | E204: 2 | G204: 0.00
A206: PS1-B3.2.11 | C206: Air-Valves | D206: No | E206: 1 | G206: 0.00
A208: PS1-B3.2.12 | C208: Pressure Sustaining Valve | D208: No | E208: 1 | G208: 0.00
A210: PS1-B3.2.13 | C210: Water meter/Flow meter: | D210: No | E210: 1 | G210: =E210*F210 -> 0.00
A212: PS1-B4 | C212: LIFTING EQUIPMENT
A214: PS1-B4.1 | C214: Prepare G.A drawing(s) for pump station lifting equipment | D214: Sum | E214: 1 | G214: =E214*F214 -> 0.00
A216: PS1-B4.2 | C216: Manufacture, supply, install and deliver PS lifting equipment - 1 Ton chain block and roller | D216: No | E216: 1 | G216: 0.00
A218: PS1-B4.3 | C218: Install lifting equipment | D218: Sum | E218: 1 | G218: 0.00
A220: PS1-B4.4 | C220: Commission lifting equipment | D220: Sum | E220: 1 | G220: 0.00
A222: PS1-C | C222: SECTION C: ELECTRICAL REFURBISHMENT
A224: PS1-C1 | C224: Main Control Consol (MCC):
A226: PS1-C1.1 | C226: De-install, remove and store existing MCC panel | D226: Sum | E226: 1 | G226: =E226*F226 -> 0.00
A228: PS1-C1.2 | C228: Prepare the G.A Drawing (s), Schematic and single line diagrams, and load list for the MCC panel | D228: Sum | E228: 1 | G228: 0.00
A230: PS1-C1.3 | C230: Manufacture, supply, store and deliver the MCC panel | D230: Sum | E230: 1 | G230: 0.00
A232: PS1-C1.4 | C232: Install and terminate the MCC panel | D232: Sum | E232: 1 | G232: 0.00
A234: PS1-C1.5 | C234: Commission the MCC panel | D234: Sum | E234: 1 | G234: 0.00
A236: PS1-C2 | C236: Pressure Transmitter:
A238: PS1-C2.1 | C238: Manufacture and Supply 0-16 bar Pressure Transmitter (4-20 mA 1/4" process connector). | D238: No | E238: 1 | G238: =E238*F238 -> 0.00
A240: PS1-C2.2 | C240: Install Pressure Transmitter | D240: Sum | E240: 1 | G240: 0.00
A242: PS1-C2.3 | C242: Commissioning | D242: Sum | E242: 1 | G242: 0.00
A244: TOTAL CARREID FORWARD | G244: =SUM(G156:G243) -> 115,000.00
A245: TOTAL BROUGHT FORWARD | G245: =G244 -> 115,000.00
A247: PS1-C3 | C247: Existing cables:
A249: PS1-C3.1 | C249: Fault finding on existing cables | D249: Sum | E249: 1 | G249: =E249*F249 -> 0.00
A251: PS1-C3.2 | C251: Prepare assessment report and recommendation | D251: Sum | E251: 1 | G251: 0.00
A253: PS1-C3.3 | C253: Provision for material and installation of defective cables | D253: Prov Sum | E253: 1 | F253: 30,000.00 | G253: 30,000.00
A255: PS1-C3.4 | C255: Overheads, charges and profit on subitem C3.3 above | D255: % | E255: =F253 -> 30,000.00 | G255: =E255*F255 -> 0.00
A257: PS1-C3.5 | C257: Commissioning and providing COC for installation | D257: Sum | E257: 1 | G257: 0.00
A259: PS1-C4 | C259: Level/Control Equipment:
A261: PS1-C4.1 | C261: De-install, removal and discard of existing ball level indicators | D261: Sum | E261: 1 | G261: =E261*F261 -> 0.00
A263: PS1-C4.2 | C263: Supply, deliver and store level probes Specifications: a) APS - 3C or similar approved b) 3 - Probes (Common, low and high) c) Depths to be confirmed on site | D263: Sum | E263: 1 | G263: 0.00
A265: PS1-C4.3 | C265: Installation of level probes | D265: Sum | E265: 1 | G265: 0.00
A267: PS1-C4.4 | C267: Commission of level probes | D267: Sum | E267: 1 | G267: 0.00
A269: TOTAL CARREID FORWARD TO SUMMARY PAGE | G269: =SUM(G245:G268) -> 145,000.00

Sheet 2 Sehlajaneng 2
A2: MALUTI-A-PHOFUNG LOCAL MUNICIPALITY
A3: APPOINTMENT OF A SERVICE PROVIDER: UPGRADING OF WATER PUMP STATION PHASE 1
A4: Contract No.: SCM/BID09/2023/24
A6: SCHEDULE PUMP STATION No 2: SEHLAJANENG PUMP STATION NO. 2 ( 28°34'9.09"S, 28°43'13.98"E)
A8: ITEM | B8: PAYMENT CLAUSE | C8: DESCRIPTION | D8: UNIT | E8: QUANT. | F8: RATE | G8: AMOUNT
A10: PS2-A | C10: SECTION A: CIVIL REFURBISHMENT
A12: PS2-A1 | B12: SANS 1200C | C12: SITE CLEARANCE
A14: PS2-A1.1 | B14: 8.3.1 | C14: Clear and grub vegetation and trees of girth up to 1,0m | D14: m² | E14: 600 | G14: =E14*F14 -> 0.00
A16: PS2-A2 | B16: SANS 1200MJ | C16: SEGMENTED CONCRETE PAVING BLOCKS
C18: Paving
A20: PS2-A2.1 | C20: Cut to spoil 400mm deep excavation for paving and layerworks and compact base to 93% MOD-ASHTO | D20: m² | E20: 120 | G20: =E20*F20 -> 0.00
A22: PS2-A2.2 | C22: 150mm C4 Stabalised sub base layer compacted to 97% MOD-ASHTO | D22: m² | E22: 120 | G22: 0.00
A24: PS2-A2.3 | C24: 80mm Paving blocks including 20mm bedding sand layer | D24: m² | E24: 120 | G24: 0.00
A26: PS2-A2.5 | B26: SANS 1200ME 8.2.1 | C26: Supply and place pre-cast mountable concrete kerbing (Figure 8c pre-cast kerbing) | D26: m | E26: 60 | G26: 0.00
A28: PS2-A3 | B28: SANS 1200D | C28: EARTHWORKS
A30: PS2-A3.1 | C30: Locate, and excavate by hand in all material to expose existing services where ordered by the Engineer (provisional) | D30: m³ | E30: 35 | G30: =E30*F30 -> 0.00
A32: PS2-A3.2 | B32: 8.3.3 | C32: Restricted excavations:
C34: Excavate in all materials, and use for backfilling or embankments, or dispose:
A36: PS2-A3.3 | C36: Depth up to 1,0m | D36: m³ | E36: 10 | G36: =E36*F36 -> 0.00
A38: PS2-A3.4 | C38: Depth over 1,0m and up to 2,0m | D38: m³ | E38: 15 | G38: 0.00
A40: PS2-A4 | B40: PB | C40: BUILDING WORK REFURBISHMENT
B42: PB 8.2.20 | C42: Painting:
A44: PS2-A4.1 | C44: Interior Walls a) Pressure wash interior walls before any refurbishment work commence; b) Sand down interior walls; c) Remove all loose paint from structure; d) Apply interior paint primer (to be confirmed by supplier); e) Apply 2 coats of white interior paint (Emulsion paint) | D44: m² | E44: 40 | G44: =E44*F44 -> 0.00
A46: PS2-A4.2 | C46: Burgular Bars: a) Sand down door and window frames; b) Remove loose paint; c) Apply paint primer (to be confirmed by supplier); d) Apply 2 coats of Red Enamel Paint (Plascon Enamel or similar approved) | D46: m² | E46: 5 | G46: 0.00
A48: PS2-A4.3 | C48: Concrete Floors and 1m above floor level a) Pressure wash floors before any refurbishment work commence; b) Sand down existing epoxy and material; c) Remove loose particles; d) Apply epoxy primer (to be confirmed by supplier) e) Apply 3 layers of industrial epoxy paint (Sikagard) | D48: m² | E48: 12 | G48: 0.00
A50: PS2-A4.4 | C50: Interior Concrete Roofs a) Pressure wash roofs before any refurbishment work commence; b) Sand down existing roof material; c) Remove loose paint; d) Apply paint primer (to be confirmed by supplier) e) Apply 2 coats of interior roof paint (Dulux roof guard or similar approved) | D50: m² | E50: 12 | G50: 0.00
A52: PS2-A4.5 | C52: Exterior Concrete Roofs a) Pressure wash roofs before any refurbishment work commence; b) Sand down existing roof material; c) Remove loose paint; d) Apply paint primer (to be confirmed by supplier) e) Apply 2 coats of exterior roof paint (Dulux roof guard or similar approved) | D52: m² | E52: 15 | G52: 0.00
A54: PS2-A4.6 | C54: Steel Doors (Double doors) a) Pressure wash steel doors before any refurbishment work commence; b) Sand down existing doors; c) Remove loose paint; d) Apply paint primer (to be confirmed by supplier) e) Apply 2 coats of true black metal matt enamel (Dulux or similar approved) | D54: m² | E54: 10 | G54: 0.00
A56: PS2-A4.7 | C56: Concrete plinths: a) Pressure wash floors before any refurbishment work commence; b) Sand down existing epoxy and material; c) Remove loose particles; d) Apply epoxy primer (to be confirmed by supplier) e) Apply 3 layers of industrial epoxy paint (Sikagard) | D56: m² | E56: 1.5 | G56: 0.00
A58: PS2-A5 | B58: PB 8.2.21 | C58: General Electrical:
A60: PS2-A5.1 | C60: Refurbishment of general electrical items in existing building | D60: Prov Sum | E60: 1.00 | F60: 15,000.00 | G60: =E60*F60 -> 15,000.00
A62: PS2-A5.2 | C62: Overheads, charges and profit on subitem A6.1 above | D62: % | E62: =F60 -> 15,000.00 | G62: =E62*F62 -> 0.00
A64: TOTAL CARREID FORWARD | G64: =SUM(G9:G63) -> R15,000.00
A65: TOTAL BROUGHT FORWARD | G65: =G64 -> R15,000.00
A67: PS2-A5.3 | C67: Refurbishment of existing cable racks | D67: Prov Sum | E67: 1.00 | F67: 10,000.00 | G67: =E67*F67 -> 10,000.00
A69: PS2-A5.4 | C69: Overheads, charges and profit on subitem A6.3 above | D69: % | E69: =F67 -> 10,000.00 | G69: =E69*F69 -> 0.00
A71: PS2-A6 | B71: SANS 1200 H | C71: Structural steelwork:
C73: Complete supply, manufacturing, corrosion protection (Hot-dipped galvanized) and installation of structural steel gantry:
A75: PS2-A6.1 | C75: IPE 200 I-section beam, including end/cleat plates & bolts | D75: t | E75: 0.4 | G75: =E75*F75 -> 0.00
A77: PS2-A6.2 | C77: IPEAA 160 I-section beam, including end/cleat plates & bolts | D77: t | E77: 0.4 | G77: 0.00
A79: PS2-B | C79: SECTION B: MECHANICAL REFURBISHMENT
A81: PS2-B1 | C81: PIPEWORK:
C83: De-install of existing pipework for all diameters up to including:
A85: PS2-B1.1 | C85: 50- 150mm | D85: m | E85: 8 | G85: =E85*F85 -> 0.00
A87: PS2-B1.2 | C87: Confirm integrity of existing pipework:
C89: High pressure sand blasting of all existing pipework (including flanges)
C91: For the following diameters:
A93: PS2-B1.2.1 | C93: 50mm | D93: m | E93: 10 | G93: =E93*F93 -> 0.00
A95: PS2-B1.2.2 | C95: Complete Non-destructive testing (NDT) on all existing pipework | D95: Sum | E95: 1 | G95: 0.00
A97: PS2-B1.3 | C97: Re-coating of pipework (COPON KSIR 88 - 250 MICRON or similar approved)
C99: For the following diameters:
A101: PS2-B1.3.1 | C101: 50mm | D101: m | E101: 8 | G101: =E101*F101 -> 0.00
A103: PS2-B1.4 | C103: Replacement of all nuts, bolts and gaskets
C105: For following flanges (SANS 1123, Grade 8.8 Bolts and Nuts):
A107: PS2-B1.4.1 | C107: 50mm | D107: No | E107: 35 | G107: =E107*F107 -> 0.00
A109: PS2-B1.5 | C109: Provisional items
A111: PS2-B1.5.1 | C111: Replacement of existing pipework | D111: Prov Sum | E111: 1.00 | F111: 30,000.00 | G111: =E111*F111 -> 30,000.00
A113: PS2-B1.5.2 | C113: Overheads, charges and profit on subitem B1.5.1 above | D113: % | E113: =F111 -> 30,000.00 | G113: 0.00
A115: PS2-B1.6 | C115: Pipe brackets:
C117: For 50mm pipes:
C119: For heights between:
A121: PS2-B1.6.1 | C121: 0.4 - 0.85m | D121: No | E121: 6 | G121: =E121*F121 -> 0.00
A123: PS2-B2 | B123: PS-2 | C123: PUMPS AND MOTORS:
C125: Specifications Fluid: Potable Water:
C127: Pump No. 1 & 2:
A129: PS2-B2.1 | C129: De-install existing pump sets | D129: No | E129: 2 | G129: =E129*F129 -> 0.00
A131: PS2-B2.2 | C131: Transport to Agent/Manufactures workshop for conditional assessment and back to storeroom of Municipality | D131: Sum | E131: 1 | G131: 0.00
A133: PS2-B2.3 | C133: Refurbishment works required on pump sets for spare parts | D133: Prov Sum | E133: 1 | F133: 15,000.00 | G133: =E133*F133 -> 15,000.00
A135: PS2-B2.4 | C135: Overheads, charges and profit on subitem B2.3 above | D135: % | E135: =F133 -> 15,000.00 | G135: =E135*F135 -> 0.00
A137: PS2-B2.5 | C137: Prepare G.A Drawings for pump sets and pipework | D137: Sum | E137: 1 | G137: =E137*F137 -> 0.00
A139: PS2-B2.6 | C139: Supply and deliver new pump sets (including baseplates, anchor rods, bolts and all fittings required) | D139: No | E139: 2 | G139: 0.00
A141: PS2-B2.7 | C141: Install new pump set (Pump, Motor and Baseplate) | D141: No | E141: 2 | G141: 0.00
A143: PS2-B2.8 | C143: Commissioning of pump set and O&M Manuals | D143: No | E143: 2 | G143: 0.00
A145: PS2-B3 | B145: SANS 1200 LK | C145: Valves
A147: PS2-B3.1 | C147: De-install and remove existing valves | D147: Sum | E147: 1 | G147: =E147*F147 -> 0.00
A149: PS2-B3.2 | C149: Supply and deliver valves (Flangend drilling of valves to be confirmed on site):
A152: TOTAL CARREID FORWARD | G152: =SUM(G65:G151) -> R70,000.00
A153: TOTAL BROUGHT FORWARD | G153: =G152 -> R70,000.00
C155: Suction:
C157: Flanged RSV Gate Valve:
A159: PS2-B3.2.1 | C159: DN 50mm PN16 (AVK or similar approved) | D159: No | E159: 2 | G159: =E159*F159 -> 0.00
C161: Delivery:
C163: Flanged RSV Gate Valve:
A165: PS2-B3.2.3 | C165: DN 50mm PN16 (AVK or similar approved) | D165: No | E165: 2 | G165: =E165*F165 -> 0.00
C167: Ball Check Valve
A169: PS2-B3.2.5 | C169: DN 50mm PN16 (AVK or similar approved) | D169: No | E169: 2 | G169: =E169*F169 -> 0.00
C171: Air-Valves:
A173: PS2-B3.2.7 | C173: DN 50mm PN16 (RPS - Vent-O-Mat or similar approved) Including: a) Riser Flange b) Ball valve c) Bolts, nuts etc. | D173: No | E173: 1 | G173: =E173*F173 -> 0.00
C175: Level Control Valve:
A177: PS2-B3.2.8 | C177: DN 80mm PN10 Level Control Valve (AVK or similar approved) | D177: No | E177: 1 | G177: =E177*F177 -> 0.00
C179: Water meter/Flow meter:
A181: PS2-B3.2.9 | C181: DN65 Optiflux 2000 OIML R49 Class 1 (KROHNE or similar approved) | D181: No | E181: 1 | G181: =E181*F181 -> 0.00
C183: Pressure Gauges
A185: PS2-B3.2.10 | C185: Supply, deliver and install 16 bar pressure gauges (2 x suction, 2 x delivery) | D185: No | E185: 4 | G185: =E185*F185 -> 0.00
C187: Install
A189: PS2-B3.2.11 | C189: Flanged RSV Gate Valve - Suction | D189: No | E189: 2 | G189: =E189*F189 -> 0.00
A191: PS2-B3.2.12 | C191: Flanged RSV Gate Valve - Delivery | D191: No | E191: 2 | G191: 0.00
A193: PS2-B3.2.13 | C193: Ball Check Valve | D193: No | E193: 2 | G193: 0.00
A195: PS2-B3.2.14 | C195: Air-Valves | D195: No | E195: 1 | G195: 0.00
A197: PS2-B3.2.15 | C197: Level control valve | D197: No | E197: 1 | G197: 0.00
A199: PS2-B3.2.15 | C199: Water meter/Flow meter: | D199: No | E199: 1 | G199: 0.00
A201: PS2-B4 | C201: LIFTING EQUIPMENT
A203: PS2-B4.1 | C203: Prepare G.A drawing(s) for pump station lifting equipment | D203: Sum | E203: 1 | G203: =E203*F203 -> 0.00
A205: PS2-B4.2 | C205: Manufacture, supply, install and deliver PS lifting equipment - 1 Ton chain block and roller | D205: Sum | E205: 1 | G205: 0.00
A207: PS2-B4.3 | C207: Install lifting equipment | D207: Sum | E207: 1 | G207: 0.00
A209: PS2-B4.4 | C209: Commission lifting equipment | D209: Sum | E209: 1 | G209: 0.00
C211: SECTION C: ELECTRICAL REFURBISHMENT
A213: PS2-C1 | C213: Main Control Consol (MCC):
A215: PS2-C1.1 | C215: De-install, remove and store existing MCC panel | D215: Sum | E215: 1 | G215: =E215*F215 -> 0.00
A217: PS2-C1.2 | C217: Prepare the G.A Drawing (s), Schematic and single line diagrams, and load list for the MCC panel | D217: Sum | E217: 1 | G217: 0.00
A219: PS2-C1.3 | C219: Manufacture, supply, store and deliver the MCC panel | D219: Sum | E219: 1 | G219: 0.00
A221: PS2-C1.4 | C221: Install and terminate the MCC panel | D221: Sum | E221: 1 | G221: 0.00
A223: PS2-C1.5 | C223: Commission the MCC panel | D223: Sum | E223: 1 | G223: 0.00
A225: PS2-C2 | C225: Pressure Transmitter:
A227: PS2-C2.1 | C227: Manufacture and Supply 0-16 bar Pressure Transmitter (4-20 mA 1/4" process connector). | D227: No | E227: 1 | G227: =E227*F227 -> 0.00
A229: PS2-C2.2 | C229: Install Pressure Transmitter | D229: Sum | E229: 1 | G229: 0.00
A231: PS2-C2.3 | C231: Commissioning | D231: Sum | E231: 1 | G231: 0.00
A233: PS2-C3 | C233: Existing cables:
A235: PS2-C3.1 | C235: Fault finding on existing cables | D235: Sum | E235: 1 | G235: =E235*F235 -> 0.00
A237: PS2-C3.2 | C237: Prepare assessment report and recommendation | D237: Sum | E237: 1 | G237: 0.00
A239: PS2-C3.3 | C239: Provision for material and installation of defective cables | D239: Prov Sum | E239: 1 | F239: 30,000.00 | G239: =E239*F239 -> 30,000.00
A241: PS2-C3.4 | C241: Overheads, charges and profit on subitem C3.3 above | D241: % | E241: =F239 -> 30,000.00
A242: TOTAL CARREID FORWARD | G242: =SUM(G153:G241) -> R100,000.00
A243: TOTAL BROUGHT FORWARD | G243: =G242 -> R100,000.00
A245: PS2-C3.5 | C245: Commissioning and providing COC for installation | D245: Sum | E245: 1 | G245: =E245*F245 -> 0.00
A247: PS2-C4 | C247: Level/Control Equipment:
A249: PS2-C4.1 | C249: De-install, removal and discard of existing ball level indicators | D249: Sum | E249: 1 | G249: =E249*F249 -> 0.00
A251: PS2-C4.2 | C251: Supply, deliver and store level probes Specifications: a) APS - 3C or similar approved b) 3 - Probes (Common, low and high) c) Depths to be confirmed on site | D251: Sum | E251: 1 | G251: 0.00
A253: PS2-C4.3 | C253: Installation of level probes | D253: Sum | E253: 1 | G253: 0.00
A255: PS2-C4.4 | C255: Commission of level probes | D255: Sum | E255: 1 | G255: 0.00
A257: PS2-C5 | C257: Main power supply
A259: PS2-C5.1 | C259: Fault finding on existing supply cables | D259: Sum | E259: 1 | G259: =E259*F259 -> 0.00
A261: PS2-C5.2 | C261: Prepare assessment report and recommendation | D261: Sum | E261: 1 | G261: 0.00
A263: PS2-C5.3 | C263: Provision for material and installation of defective cables | D263: Prov Sum | E263: 1 | F263: 50,000.00 | G263: =E263*F263 -> 50,000.00
A265: PS2-C5.4 | C265: Overheads, charges and profit on subitem C3.3 above | D265: % | E265: =F263 -> 50,000.00 | G265: =E265*F265 -> 0.00
A267: PS2-C5.6 | C267: Commissioning and providing COC for installation | D267: Sum | E267: 1 | G267: 0.00
A269: TOTAL CARREID FORWARD TO SUMMARY PAGE | G269: =SUM(G243:G268) -> 150,000.00

Sheet 3 Sehlajaneng 1
A2: MALUTI-A-PHOFUNG LOCAL MUNICIPALITY
A3: APPOINTMENT OF A SERVICE PROVIDER: UPGRADING OF WATER PUMP STATION PHASE 1
A4: Contract No.: SCM/BID09/2023/24
A6: SCHEDULE PUMP STATION No 3: SEHLAJANENG PUMP STATION NO. 1 (28°33'32.36"S, 28°43'26.64"E)
A8: ITEM | B8: PAYMENT CLAUSE | C8: DESCRIPTION | D8: UNIT | E8: QUANT. | F8: RATE | G8: AMOUNT
C10: SECTION A: CIVIL REFURBISHMENT
A12: PS3-A1 | B12: SANS 1200C | C12: SITE CLEARANCE
A14: PS3-A1.1 | B14: 8.3.1 | C14: Clear and grub vegetation and trees of girth up to 1,0m | D14: m² | E14: 800 | G14: =E14*F14 -> 0.00
A16: PS3-A2 | C16: Fencing:
A18: PS3-A2.1 | C18: Removal of existing concrete pallisade fencing and access gates and dispose of material at approved Municipal dumping site or store facility. | D18: m | E18: 165 | G18: =E18*F18 -> 0.00
A20: PS3-A2.2 | C20: Supply and install new high-security Clear-Vu fencing 2,4m high including all materials and fasteners (or similar approved) | D20: m | E20: 165 | G20: 0.00
A22: PS3-A2.3 | C22: Supply and install shark tooth "anti climb spikes". (Material to be approved by the Engineer before procurement) | D22: m | E22: 165 | G22: 0.00
A24: PS3-A2.4 | C24: Galvanised steel access gates (double leaf, 2,4m high x 3,6m wide) | D24: No | E24: 1 | G24: 0.00
A26: PS3-A2.5 | C26: Additional padlocks | D26: No | E26: 1 | G26: 0.00
A28: PS3-A2.6 | C28: 150 x 200mm hand excavated trench for concrete beam under fencing | D28: m | E28: 165 | G28: =E28*F28 -> 0.00
A30: PS3-A2.7 | C30: 150 x 200mm Concrete ground beam casted insitu with 15 MPa concrete. To include formwork, finishing, etc. | D30: m³ | E30: 6 | G30: 0.00
A32: PS3-A3 | B32: SANS 1200MJ | C32: SEGMENTED CONCRETE PAVING BLOCKS
C34: Paving
A36: PS3-A3.1 | C36: Cut to spoil 400mm deep excavation for paving and layerworks and compact base to 93% MOD-ASHTO | D36: m² | E36: 120 | G36: =E36*F36 -> 0.00
A38: PS3-A3.2 | C38: 150mm C4 Stabalised sub base layer compacted to 97% MOD-ASHTO | D38: m² | E38: 120 | G38: 0.00
A40: PS3-A3.3 | C40: 80mm Paving blocks including 20mm bedding sand layer | D40: m² | E40: 120 | G40: 0.00
A42: PS3-A3.4 | B42: SANS 1200ME 8.2.1 | C42: Supply and place pre-cast mountable concrete kerbing (Figure 8c pre-cast kerbing) | D42: m | E42: 60 | G42: 0.00
A44: PS3-A4 | B44: SANS 1200D | C44: EARTHWORKS
A46: PS3-A4.1 | C46: Locate, and excavate by hand in all material to expose existing services where ordered by the Engineer (provisional) | D46: m³ | E46: 10 | G46: =E46*F46 -> 0.00
A48: PS3-A4.2 | B48: 8.3.3 | C48: Restricted excavations:
C50: Excavate in all materials, and use for backfilling or embankments, or dispose:
A52: PS3-A4.3 | C52: Depth up to 1,0m | D52: m³ | E52: 10 | G52: =E52*F52 -> 0.00
A54: PS3-A4.4 | C54: Depth over 1,0m and up to 2,0m | D54: m³ | E54: 10 | G54: =E54*F54 -> 0.00
A56: PS3-A5 | B56: PB | C56: BUILDING WORK REFURBISHMENT
B58: PB 8.2.20 | C58: Painting:
A60: PS3-A5.1 | C60: Interior Walls a) Pressure wash interior walls before any refurbishment work commence; b) Sand down interior walls; c) Remove all loose paint from structure; d) Apply interior paint primer (to be confirmed by supplier); e) Apply 2 coats of white interior paint (Emulsion paint) | D60: m² | E60: 35 | G60: =E60*F60 -> 0.00
A62: PS3-A5.2 | C62: Burgular Bars: a) Sand down door and window frames; b) Remove loose paint; c) Apply paint primer (to be confirmed by supplier); d) Apply 2 coats of Enamel Paint (Plascon Enamel or similar approved) | D62: m² | E62: 5 | G62: 0.00
A64: PS3-A5.3 | C64: Concrete Floors and 1m above floor level a) Pressure wash floors before any refurbishment work commence; b) Sand down existing epoxy and material; c) Remove loose particles; d) Apply epoxy primer (to be confirmed by supplier) e) Apply 3 layers of industrial epoxy paint (Sikagard) | D64: m² | E64: 12 | G64: 0.00
A66: PS3-A5.4 | C66: Interior Concrete Roofs a) Pressure wash roofs before any refurbishment work commence; b) Sand down existing roof material; c) Remove loose paint; d) Apply paint primer (to be confirmed by supplier) e) Apply 2 coats of interior roof paint (Dulux roof guard or similar approved) | D66: m² | E66: 12 | G66: 0.00
A68: PS3-A5.5 | C68: Exterior Concrete Roofs a) Pressure wash roofs before any refurbishment work commence; b) Sand down existing roof material; c) Remove loose paint; d) Apply paint primer (to be confirmed by supplier) e) Apply 2 coats of exterior roof paint (Dulux roof guard or similar approved) | D68: m² | E68: 7 | G68: 0.00
A71: TOTAL CARREID FORWARD | G71: =SUM(G9:G70) -> 0.00
A72: TOTAL BROUGHT FORWARD | G72: =G71 -> 0.00
A74: PS3-A5.6 | C74: Steel Doors (Double doors) a) Pressure wash steel doors before any refurbishment work commence; b) Sand down existing doors; c) Remove loose paint; d) Apply paint primer (to be confirmed by supplier) e) Apply 2 coats of true black metal matt enamel (Dulux or similar approved) | D74: m² | E74: 12 | G74: =E74*F74 -> 0.00
A76: PS3-A5.7 | C76: Concrete plinths: a) Pressure wash floors before any refurbishment work commence; b) Sand down existing epoxy and material; c) Remove loose particles; d) Apply epoxy primer (to be confirmed by supplier) e) Apply 3 layers of industrial epoxy paint (Sikagard) | D76: m² | E76: 2 | G76: 0.00
A78: PS3-A6 | B78: PB 8.2.21 | C78: General Electrical:
A80: PS3-A6.1 | C80: Refurbishment of general electrical items in existing building | D80: Prov Sum | E80: 1.00 | F80: 15,000.00 | G80: =E80*F80 -> 15,000.00
A82: PS3-A6.2 | C82: Overheads, charges and profit on subitem A6.1 above | D82: % | E82: =F80 -> 15,000.00 | G82: =E82*F82 -> 0.00
A84: PS3-A6.3 | C84: Refurbishment of existing cable racks | D84: Prov Sum | E84: 1.00 | F84: 10,000.00 | G84: =E84*F84 -> 10,000.00
A86: PS3-A6.4 | C86: Overheads, charges and profit on subitem A6.3 above | D86: % | E86: =F84 -> 10,000.00 | G86: =E86*F86 -> 0.00
A88: PS3-A7 | B88: SANS 1200 H | C88: Structural steelwork:
C90: Complete supply, manufacturing, corrosion protection (Hot-dipped galvanized) and installation of structural steel gantry:
A92: PS3-A7.1 | C92: IPE 200 I-section beam, including end/cleat plates & bolts | D92: t | E92: 0.4 | G92: =E92*F92 -> 0.00
A94: PS3-A7.2 | C94: IPEAA 160 I-section beam, including end/cleat plates & bolts | D94: t | E94: 0.4 | G94: 0.00
C96: SECTION B: MECHANICAL REFURBISHMENT
A98: PS3-B1 | C98: PIPEWORK:
A100: PS3-B1.1 | C100: De-install of existing pipework for all diameters up to including:
A102: PS3-B1.1.1 | C102: 50- 150mm | D102: m | E102: 12 | G102: =E102*F102 -> 0.00
A104: PS3-B1.2 | C104: Confirm integrity of existing pipework:
C106: High pressure sand blasting of all existing pipework (including flanges)
C108: For the following diameters:
A110: PS3-B1.2.1 | C110: 80mm | D110: m | E110: 3 | G110: =E110*F110 -> 0.00
A112: PS3-B1.2.2 | C112: 100mm | D112: m | E112: 9 | G112: 0.00
A114: PS3-B1.2.2 | C114: Complete Non-destructive testing (NDT) on all existing pipework | D114: Sum | E114: 1 | G114: 0.00
A116: PS3-B1.3 | C116: Re-coating of pipework (COPON KSIR 88 - 250 MICRON or similar approved)
C118: For the following diameters:
A120: PS3-B1.3.1 | C120: 80mm | D120: m | E120: 3 | G120: =E120*F120 -> 0.00
A122: PS3-B1.3.2 | C122: 100mm | D122: m | E122: 9 | G122: 0.00
A124: PS3-B1.4 | C124: Replacement of all nuts, bolts and gaskets
C126: For following flanges (SANS 1123, Grade 8.8 Bolts and Nuts):
A128: PS3-B1.4.1 | C128: 80mm | D128: No | E128: 6 | G128: =E128*F128 -> 0.00
A130: PS3-B1.4.2 | C130: 100mm | D130: No | E130: 29 | G130: 0.00
A132: PS3-B1.5 | C132: Provisional items
A134: PS3-B1.5.1 | C134: Replacement of existing pipework | D134: Prov Sum | E134: 1.00 | F134: 50,000.00 | G134: =E134*F134 -> 50,000.00
A136: PS3-B1.5.2 | C136: Overheads, charges and profit on subitem B1.5.1 above | D136: % | E136: =F134 -> 50,000.00 | G136: =E136*F136 -> 0.00
A138: PS3-B1.6 | C138: Pipe brackets:
C140: For 100mm pipes:
C142: For heights between:
A144: PS3-B1.6.1 | C144: 0.5 - 1m | D144: No | E144: 2 | G144: =E144*F144 -> 0.00
A146: PS3-B2 | C146: PUMPS AND MOTORS:
C148: Specifications Fluid: Potable Water:
A151: TOTAL CARREID FORWARD | G151: =SUM(G72:G150) -> 75,000.00
A152: TOTAL BROUGHT FORWARD | G152: =G151 -> 75,000.00
C154: Pump No. 1 & 2:
A156: PS3-B2.1 | C156: De-install existing pump sets | D156: No | E156: 2 | G156: =E156*F156 -> 0.00
A158: PS3-B2.2 | C158: Transport to Agent/Manufactures workshop for conditional assessment and back to storeroom of Municipality | D158: Sum | E158: 1 | G158: 0.00
A160: PS3-B2.3 | C160: Refurbishment works required on pump sets for spare parts | D160: Prov Sum | E160: 1 | F160: 15,000.00 | G160: =E160*F160 -> 15,000.00
A162: PS3-B2.4 | C162: Overheads, charges and profit on subitem B2.3 above | D162: % | E162: =F160 -> 15,000.00 | G162: =E162*F162 -> 0.00
A164: PS3-B2.5 | C164: Prepare G.A Drawings for pump sets and pipework | D164: Sum | E164: 1 | G164: 0.00
A166: PS3-B2.6 | C166: Supply and deliver new pump sets (including baseplates, anchor rods, bolts and all fittings required) | D166: No | E166: 2 | G166: 0.00
A168: PS3-B2.7 | C168: Install new pump set (Pump, Motor and Baseplate) | D168: No | E168: 2 | G168: 0.00
A170: PS3-B2.8 | C170: Commissioning of pump set and O&M Manuals | D170: No | E170: 2 | G170: 0.00
A172: PS3-B3 | B172: SANS 1200 LK | C172: Valves
A174: PS3-B3.1 | C174: De-install and remove existing valves | D174: Sum | E174: 1 | G174: =E174*F174 -> 0.00
A176: PS3-B3.2 | C176: Supply and deliver valves (Flangend drilling of valves to be confirmed on site):
C178: Suction:
C180: Flanged RSV Gate Valve:
A182: PS3-B3.2.1 | C182: DN 100mm PN10 (AVK or similar approved) | D182: No | E182: 2 | G182: =E182*F182 -> 0.00
C184: Delivery:
C186: Flanged RSV Gate Valve:
A188: PS3-B3.2.2 | C188: DN 80mm PN16 (AVK or similar approved) | D188: No | E188: 2 | G188: =E188*F188 -> 0.00
C190: Ball Check Valve
A192: PS3-B3.2.3 | C192: DN 80 PN16 (AVK or similar approved) | D192: No | E192: 2 | G192: =E192*F192 -> 0.00
C194: Air-Valves:
A196: PS3-B3.2.4 | C196: DN 50mm PN16 (RPS - Vent-O-Mat or similar approved) Including: a) Riser Flange b) Ball valve c) Bolts, nuts etc. | D196: No | E196: 1 | G196: =E196*F196 -> 0.00
C198: Pressure Sustaining Valve:
A200: PS3-B3.2.5 | C200: DN 100mm PN16 (Bermad or similar approved) | D200: No | E200: 1 | G200: =E200*F200 -> 0.00
C202: Level Control Valve:
A204: PS3-B3.2.6 | C204: DN 100mm PN10 Level Control Valve (AVK or similar approved) | D204: No | E204: 1 | G204: =E204*F204 -> 0.00
C206: Water meter/Flow meter:
A208: PS3-B3.2.7 | C208: DN100 Optiflux 2000 OIML R49 Class 1 (KROHNE or similar approved) | D208: No | E208: 1 | G208: =E208*F208 -> 0.00
C210: Pressure Gauges
A212: PS3-B3.2.8 | C212: Supply, deliver and install 16 bar pressure gauges (2 x suction, 2 x delivery) | D212: No | E212: 4 | G212: =E212*F212 -> 0.00
C214: Install
A216: PS3-B3.2.9 | C216: Flanged RSV Gate Valve - Suction | D216: No | E216: 2 | G216: =E216*F216 -> 0.00
A218: PS3-B3.2.10 | C218: Flanged RSV Gate Valve - Delivery | D218: No | E218: 2 | G218: 0.00
A220: PS3-B3.2.11 | C220: Ball Check Valve | D220: No | E220: 2 | G220: 0.00
A222: PS3-B3.2.12 | C222: Air-Valves | D222: No | E222: 1 | G222: 0.00
A224: PS3-B3.2.13 | C224: Pressure Sustaining Valve | D224: No | E224: 1 | G224: 0.00
A226: PS3-B3.2.14 | C226: Level control valve | D226: No | E226: 1 | G226: 0.00
A228: PS3-B3.2.15 | C228: Water meter/Flow meter: | D228: No | E228: 1 | G228: 0.00
A230: PS3-B4 | C230: LIFTING EQUIPMENT
A232: PS3-B4.1 | C232: Prepare G.A drawing(s) for pump station lifting equipment | D232: Sum | E232: 1 | G232: =E232*F232 -> 0.00
A234: PS3-B4.2 | C234: Manufacture, supply, install and deliver PS lifting equipment - 1 Ton chain block and roller | D234: Sum | E234: 1 | G234: 0.00
A236: PS3-B4.3 | C236: Install lifting equipment | D236: Sum | E236: 1 | G236: 0.00 | I236: =G236*H236 -> 0.00
A238: PS3-B4.4 | C238: Commission lifting equipment | D238: Sum | E238: 1 | G238: 0.00
A240: TOTAL CARREID FORWARD | G240: =SUM(G152:G239) -> 90,000.00
A241: TOTAL BROUGHT FORWARD | G241: =G240 -> 90,000.00
C243: SECTION C: ELECTRICAL REFURBISHMENT
A245: PS3-C1 | C245: Main Control Consol (MCC):
A247: PS3-C1.1 | C247: De-install, remove and store existing MCC panel | D247: Sum | E247: 1 | G247: =E247*F247 -> 0.00
A249: PS3-C1.2 | C249: Prepare the G.A Drawing (s), Schematic and single line diagrams, and load list for the MCC panel | D249: Sum | E249: 1 | G249: 0.00
A251: PS3-C1.3 | C251: Manufacture, supply, store and deliver the MCC panel | D251: Sum | E251: 1 | G251: 0.00
A253: PS3-C1.4 | C253: Install and terminate the MCC panel | D253: Sum | E253: 1 | G253: 0.00
A255: PS3-C1.5 | C255: Commission the MCC panel | D255: Sum | E255: 1 | G255: 0.00
A257: PS3-C2 | C257: Pressure Transmitter:
A259: PS3-C2.1 | C259: Manufacture and Supply 0-16 bar Pressure Transmitter (4-20 mA 1/4" process connector). | D259: No | E259: 1 | G259: =E259*F259 -> 0.00
A261: PS3-C2.2 | C261: Install Pressure Transmitter | D261: Sum | E261: 1 | G261: 0.00
A263: PS3-C2.3 | C263: Commissioning | D263: Sum | E263: 1 | G263: 0.00
A265: PS3-C3 | C265: Existing cables:
A267: PS3-C3.1 | C267: Fault finding on existing cables | D267: Sum | E267: 1 | G267: =E267*F267 -> 0.00
A269: PS3-C3.2 | C269: Prepare assessment report and recommendation | D269: Sum | E269: 1 | G269: 0.00
A271: PS3-C3.3 | C271: Provision for material and installation of defective cables | D271: Prov Sum | E271: 1 | F271: 30,000.00 | G271: =E271*F271 -> 30,000.00
A273: PS3-C3.4 | C273: Overheads, charges and profit on subitem C3.3 above | D273: % | E273: =F271 -> 30,000.00 | G273: =E273*F273 -> 0.00
A275: PS3-C3.5 | C275: Commissioning and providing COC for installation | D275: Sum | E275: 1 | G275: 0.00
A277: PS3-C4 | C277: Level/Control Equipment:
A279: PS3-C4.1 | C279: De-install, removal and discard of existing ball level indicators | D279: Sum | E279: 1 | G279: =E279*F279 -> 0.00
A281: PS3-C4.2 | C281: Supply, deliver and store level probes Specifications: a) APS - 3C or similar approved b) 3 - Probes (Common, low and high) c) Depths to be confirmed on site | D281: Sum | E281: 1 | G281: 0.00
A283: PS3-C4.3 | C283: Installation of level probes | D283: Sum | E283: 1 | G283: 0.00
A285: PS3-C4.4 | C285: Commission of level probes | D285: Sum | E285: 1 | G285: 0.00
A287: PS3-C5 | C287: Main power supply
A289: PS3-C5.1 | C289: Fault finding on existing supply cables | D289: Sum | E289: 1 | G289: 0.00
A291: PS3-C5.2 | C291: Prepare assessment report and recommendation | D291: Sum | E291: 1 | G291: 0.00
A293: PS3-C5.3 | C293: Provision for material and installation of defective cables | D293: Prov Sum | E293: 1 | F293: 50,000.00 | G293: =E293*F293 -> 50,000.00
A295: PS3-C5.4 | C295: Overheads, charges and profit on subitem C3.3 above | D295: % | E295: =F293 -> 50,000.00 | G295: =E295*F295 -> 0.00
A297: PS3-C5.6 | C297: Commissioning and providing COC for installation | D297: Sum | E297: 1 | G297: 0.00
A299: TOTAL CARREID FORWARD TO SUMMARY PAGE | G299: =SUM(G241:G298) -> 170,000.00

Sheet 4 Hlatseng
A2: MALUTI-A-PHOFUNG LOCAL MUNICIPALITY
A3: APPOINTMENT OF A SERVICE PROVIDER: UPGRADING OF WATER PUMP STATION PHASE 1
A4: Contract No.: SCM/BID09/2023/24
A6: SCHEDULE PUMP STATION No 4: HLATSENG PUMP STATION (28°33'38.46"S, 28°43'56.05"E)
A8: ITEM | B8: PAYMENT CLAUSE | C8: DESCRIPTION | D8: UNIT | E8: QUANT. | F8: RATE | G8: AMOUNT
C10: SECTION A: CIVIL REFURBISHMENT
A12: PS4-A1 | B12: SANS 1200C | C12: SITE CLEARANCE
A14: PS4-A1.1 | B14: 8.3.1 | C14: Clear and grub vegetation and trees of girth up to 1,0m | D14: m² | E14: 500 | G14: =E14*F14 -> 0.00
A16: PS4-A2 | C16: Fencing:
A18: PS4-A2.2 | C18: Supply and install concrete fencing from stockpile. Including all materials and fasteners. | D18: m | E18: 30 | G18: =E18*F18 -> 0.00
A20: PS4-A2.3 | C20: Supply and install flat wrap for entire pump station perimeter. | D20: m | E20: 150 | G20: 0.00
A22: PS4-A3 | B22: SANS 1200D | C22: EARTHWORKS
A24: PS4-A3.1 | C24: Locate, and excavate by hand in all material to expose existing services where ordered by the Engineer (provisional) | D24: m³ | E24: 40 | G24: =E24*F24 -> 0.00
A26: PS4-A3.2 | B26: 8.3.3 | C26: Restricted excavations:
C28: Excavate in all materials, and use for backfilling or embankments, or dispose:
A30: PS4-A3.3 | C30: Depth up to 1,0m | D30: m³ | E30: 5 | G30: =E30*F30 -> 0.00
A32: PS4-A3.4 | C32: Depth over 1,0m and up to 2,0m | D32: m³ | E32: 10 | G32: 0.00
A34: PS4-A4 | B34: SANS 1200 G | C34: Concrete works
A36: PS4-A4.1 | C36: Demolish and remove existing concret plinths | D36: No | E36: 2 | G36: =E36*F36 -> 0.00
C38: Formwork:
C40: Smooth formwork:
B42: 8.2.2 | C42: Plane vertical
A44: PS4-A4.2 | C44: To plinths | D44: m² | E44: 5 | G44: =E44*F44 -> 0.00
B46: 8.3.1 | C46: High Tensile Steel:
A48: PS4-A4.3 | C48: Y12 | D48: t | E48: 0.2 | G48: =E48*F48 -> 0.00
C50: Mild Tensile Steel:
A52: PS4-A4.4 | C52: R10 | D52: t | E52: 0.2 | G52: =E52*F52 -> 0.00
B54: 8.4.3 | C54: Concrete Class 35/19 to:
A56: PS4-A4.5 | C56: Plinths | D56: m³ | E56: 2 | G56: =E56*F56 -> 0.00
B58: 8.4.4 | C58: Unformed surfaces:
C60: Steel float finish:
A62: PS4-A4.6 | C62: Plinth | D62: m² | E62: 5 | G62: =E62*F62 -> 0.00
A64: PS4-A5 | B64: PB | C64: BUILDING WORK REFURBISHMENT
B66: PB 8.2.20 | C66: Painting:
A68: PS4-A5.1 | C68: Interior Walls a) Pressure wash interior walls before any refurbishment work commence; b) Sand down interior walls; c) Remove all loose paint from structure; d) Apply interior paint primer (to be confirmed by supplier); e) Apply 2 coats of white interior paint (Emulsion paint) | D68: m² | E68: 220 | G68: =E68*F68 -> 0.00
A70: PS4-A5.2 | C70: Burgular Bars: a) Sand down door and window frames; b) Remove loose paint; c) Apply paint primer (to be confirmed by supplier); d) Apply 2 coats of Enamel Paint (Plascon Enamel or similar approved) | D70: m² | E70: 12 | G70: 0.00
A72: PS4-A5.3 | C72: Concrete Floors and 1m above floor level a) Pressure wash floors before any refurbishment work commence; b) Sand down existing epoxy and material; c) Remove loose particles; d) Apply epoxy primer (to be confirmed by supplier) e) Apply 3 layers of industrial epoxy paint (Sikagard) | D72: m² | E72: 75 | G72: 0.00
A74: PS4-A5.4 | C74: Roof Trusses, Purlins and Brandering (span of 6.2m trusses) a) Sand down existing material; b) Remove loose paint & particles; c) Apply 2 coats of Duram Woodseal for roofs or similar approved | D74: No | E74: 7 | G74: 0.00
A76: PS4-A5.5 | C76: Steel Doors (Double doors) a) Pressure wash steel doors before any refurbishment work commence; b) Sand down existing doors; c) Remove loose paint; d) Apply paint primer (to be confirmed by supplier) e) Apply 2 coats of true black metal matt enamel (Dulux or similar approved) | D76: m² | E76: 10 | G76: 0.00
A80: TOTAL CARREID FORWARD | G80: =SUM(G9:G79) -> 0.00
A81: TOTAL BROUGHT FORWARD | G81: =G80 -> 0.00
A82: PS4-A5.6 | C82: Steel Gantry: a) Pressure wash existing gantry before any refurbishment works commence; b) Sand down existing enamel paint; c) Remove loose particles; d) Apply primer (to be confirmed with Engineer before application) e) Apply industrial enamel paint (confirm with Engineer before application) | D82: m² | E82: 40 | G82: =E82*F82 -> 0.00
A84: PS4-A6 | B84: PB 8 | C84: Roof and Structural Timber:
A86: PS4-A6.1 | B86: 8.2.12 | C86: Refurbishment of Roofs a) Remove existing roof material and dispose at a verified site; b) Sand down rafts and purlins (on written instruction replace purlins and rafters); c) Apply exterior and interior wood varnish to rafts d) Install new roof material (chromadek galvanized steel sheets (Traffic Cone Green) or similar approved) | D86: m² | E86: 100 | G86: =E86*F86 -> 0.00
A88: PS4-A6.2 | B88: 8.2.11 | C88: Purlins 50 x 76 SAP | D88: m | E88: 65 | G88: 0.00
A90: PS4-A6.3 | B90: 8.2.11 | C90: Brandering 38 x 38 SAP | D90: m² | E90: 80 | G90: 0.00
B92: PB 8.2.13 | C92: Facia Boards and Gutters:
A94: PS4-A6.4 | C94: 225 x 12 mm F.C. fascia and barge boards | D94: m | E94: 95 | G94: =E94*F94 -> 0.00
A96: PS4-A6.5 | C96: 125 x 85 Colourbond aluminium gutters | D96: m | E96: 95 | G96: 0.00
A98: PS4-A6.6 | C98: 80 x 55 Colourbond aluminium downpipes | D98: m | E98: 20 | G98: 0.00
B100: PB 8.2.15 | C100: Ceilings:
A102: PS4-A6.7 | C102: Gypsum ceiling board | D102: m² | E102: 100 | G102: =E102*F102 -> 0.00
A104: PS4-A6.8 | C104: Cornice 75 mm | D104: m | E104: 40 | G104: =E104*F104 -> 0.00
A106: PS4-A7 | B106: PB 8.2.21 | C106: General Electrical:
A108: PS4-A7.1 | C108: Refurbishment of general electrical items in existing building | D108: Prov Sum | E108: 1.00 | F108: 30,000.00 | G108: =E108*F108 -> 30,000.00
A110: PS4-A7.2 | C110: Overheads, charges and profit on subitem A6.1 above | D110: % | E110: =F108 -> 30,000.00 | G110: =E110*F110 -> 0.00
A112: PS4-A7.3 | C112: Refurbishment of existing cable racks | D112: Prov Sum | E112: 1.00 | F112: 20,000.00 | G112: =E112*F112 -> 20,000.00
A114: PS4-A7.4 | C114: Overheads, charges and profit on subitem A6.3 above | D114: % | E114: =F112 -> 20,000.00 | G114: =E114*F114 -> 0.00
A116: PS4-A8 | B116: SANS 1200 H | C116: Structural steelwork:
A118: PS4-A8.1 | B118: 8.3.2 | C118: Remove existing safety handrails and install where ordered by Employer's Agent | D118: m | E118: 8 | G118: =E118*F118 -> 0.00
A120: PS4-A8.2 | C120: Remove existing steel grating | D120: m² | E120: 6 | G120: =E120*F120 -> 0.00
C122: Grating:
A124: PS4-A8.3 | C124: 19x102x25mm deep Fibreglass moulded grating, complete with cast in EZ Embedment Angle to cover openings (Fibregrate or similar approved). | D124: m² | E124: 6 | G124: =E124*F124 -> 0.00
C126: Safety Hand Rails:
A128: PS4-A8.4 | C128: 1.2m high Fibreglass safety hand rails (Fibregrate or similar approved) | D128: m | E128: 8 | G128: =E128*F128 -> 0.00
A130: PS4-B | C130: SECTION B: MECHANICAL REFURBISHMENT
A132: PS4-B1 | C132: PIPEWORK:
A134: PS4-B1.1 | C134: De-install of existing pipework for all diameters up to including:
A136: PS4-B1.1.1 | C136: 50- 150mm | D136: m | E136: 10 | G136: =E136*F136 -> 0.00
A138: PS4-B1.1.2 | C138: 155-300mm | D138: m | E138: 25 | G138: =E138*F138 -> 0.00
A140: PS4-B1.2 | C140: Confirm integrity of existing pipework:
C142: High pressure sand blasting of all existing pipework (including flanges)
C144: For the following diameters:
A146: PS4-B1.2.1 | C146: 100mm | D146: m | E146: 7 | G146: =E146*F146 -> 0.00
A148: PS4-B1.2.2 | C148: 150mm | D148: m | E148: 4 | G148: =E148*F148 -> 0.00
A150: PS4-B1.2.3 | C150: 200mm | D150: m | E150: 20 | G150: =E150*F150 -> 0.00
A152: PS4-B1.2.4 | C152: 300mm | D152: m | E152: 6 | G152: =E152*F152 -> 0.00
A154: PS4-B1.2.5 | C154: Complete Non-destructive testing (NDT) on all existing pipework | D154: Sum | E154: 1 | G154: =E154*F154 -> 0.00
A156: PS4-B1.3 | C156: Re-coating of pipework (COPON KSIR 88 - 250 MICRON or similar approved)
C158: For the following diameters:
A160: PS4-B1.3.1 | C160: 100mm | D160: m | E160: 7 | G160: =E160*F160 -> 0.00
A162: PS4-B1.3.2 | C162: 150mm | D162: m | E162: 4 | G162: =E162*F162 -> 0.00
A164: PS4-B1.3.3 | C164: 200mm | D164: m | E164: 20 | G164: =E164*F164 -> 0.00
A166: PS4-B1.3.4 | C166: 300mm | D166: m | E166: 6 | G166: =E166*F166 -> 0.00
A168: TOTAL CARREID FORWARD | G168: =SUM(G81:G167) -> 50,000.00
A169: TOTAL BROUGHT FORWARD | G169: =G168 -> 50,000.00
A170: PS4-B1.4 | C170: Replacement of all nuts, bolts and gaskets
C172: For following flanges (SANS 1123, Grade 8.8 Bolts and Nuts):
A174: PS4-B1.4.1 | C174: 100mm | D174: No | E174: 8 | G174: =E174*F174 -> 0.00
A176: PS4-B1.4.2 | C176: 150mm | D176: No | E176: 8 | G176: =E176*F176 -> 0.00
A178: PS4-B1.4.3 | C178: 200mm | D178: No | E178: 20 | G178: =E178*F178 -> 0.00
A180: PS4-B1.4.4 | C180: 300mm | D180: No | E180: 5 | G180: =E180*F180 -> 0.00
A182: PS4-B1.5 | C182: Provisional items
A184: PS4-B1.5.1 | C184: Replacement of existing pipework | D184: Prov Sum | E184: 1.00 | F184: 60,000.00 | G184: =E184*F184 -> 60,000.00
A186: PS4-B1.5.2 | C186: Overheads, charges and profit on subitem B1.5.1 above | D186: % | E186: =F184 -> 60,000.00 | G186: =E186*F186 -> 0.00
A188: PS4-B1.6 | C188: Pipe brackets:
C190: For 100mm pipes:
C192: For heights between:
A194: PS4-B1.6.1 | C194: 0.5 - 1m | D194: No | E194: 4 | G194: =E194*F194 -> 0.00
A196: PS4-B2 | C196: PUMPS AND MOTORS:
C198: Specifications Fluid: Potable Water:
C200: Pump No. 1 & 2:
A202: PS4-B2.1 | C202: De-install existing pump sets | D202: No | E202: 2 | G202: =E202*F202 -> 0.00
A204: PS4-B2.2 | C204: Transport to Agent/Manufactures workshop for conditional assessment and back to storeroom of Municipality | D204: Sum | E204: 1 | G204: =E204*F204 -> 0.00
A206: PS4-B2.3 | C206: Refurbishment works required on pump sets for spare parts | D206: Prov Sum | E206: 1 | F206: 15,000.00 | G206: =E206*F206 -> 15,000.00
A208: PS4-B2.4 | C208: Overheads, charges and profit on subitem B2.3 above | D208: % | E208: =F206 -> 15,000.00 | G208: =E208*F208 -> 0.00
A210: PS4-B2.5 | C210: Prepare G.A Drawings for pump sets and pipework | D210: Sum | E210: 1 | G210: =E210*F210 -> 0.00
A212: PS4-B2.6 | C212: Supply and deliver new pump sets (including baseplates, anchor rods, bolts and all fittings required) | D212: No | E212: 2 | G212: =E212*F212 -> 0.00
A214: PS4-B2.7 | C214: Install new pump set (Pump, Motor and Baseplate) | D214: No | E214: 2 | G214: =E214*F214 -> 0.00
A216: PS4-B2.8 | C216: Commissioning of pump set and O&M Manuals | D216: No | E216: 2 | G216: =E216*F216 -> 0.00
A217: PS4-B3 | B217: SANS 1200 LK | C217: Valves
A219: PS4-B3.1 | C219: De-install and remove existing valves | D219: Sum | E219: 1 | G219: =E219*F219 -> 0.00
A221: PS4-B3.2 | C221: Supply and deliver valves (Flangend drilling of valves to be confirmed on site):
C223: Suction:
C225: Flanged RSV Gate Valve:
A227: PS4-B3.2.1 | C227: DN 100mm PN10 (AVK or similar approved) | D227: No | E227: 2 | G227: =E227*F227 -> 0.00
C229: Delivery:
C231: Flanged RSV Gate Valve:
A233: PS4-B3.2.2 | C233: DN 80mm PN16 (AVK or similar approved) | D233: No | E233: 2 | G233: =E233*F233 -> 0.00
C235: Ball Check Valve
A237: PS4-B3.2.3 | C237: DN 80mm PN16 (AVK or similar approved) | D237: No | E237: 2 | G237: =E237*F237 -> 0.00
C239: Air-Valves:
A241: PS4-B3.2.4 | C241: DN 50mm PN16 (RPS - Vent-O-Mat or similar approved) Including: a) Riser Flange b) Ball valve c) Bolts, nuts etc. | D241: No | E241: 1 | G241: =E241*F241 -> 0.00
C243: Level Control Valve:
A245: PS4-B3.2.5 | C245: DN 80mm PN10 Level Control Valve (AVK or similar approved) | D245: No | E245: 1 | G245: =E245*F245 -> 0.00
C247: Water meter/Flow meter:
A249: PS4-B3.2.6 | C249: DN100 Optiflux 2000 OIML R49 Class 1 (KROHNE or similar approved) | D249: No | E249: 1 | G249: =E249*F249 -> 0.00
C251: Pressure Gauges
A253: TOTAL CARREID FORWARD | G253: =SUM(G169:G252) -> 125,000.00
A254: TOTAL BROUGHT FORWARD | G254: =G253 -> 125,000.00
A256: PS4-B3.2.7 | C256: Supply, deliver and install 16 bar pressure gauges (2 x suction, 2 x delivery) | D256: No | E256: 4 | G256: =E256*F256 -> 0.00
C258: Flanged RSV Gate Valve:
A260: PS4-B3.2.8 | C260: DN 200mm PN10 (AVK or similar approved) | D260: No | E260: 2 | G260: =E260*F260 -> 0.00
A262: PS4-B3.2.9 | C262: DN 150mm PN10 (AVK or similar approved) | D262: No | E262: 4 | G262: =E262*F262 -> 0.00
A264: PS4-B3.2.10 | C264: DN 100mm PN10 (AVK or similar approved) | D264: No | E264: 2 | G264: =E264*F264 -> 0.00
C266: Install
A268: PS4-B3.2.11 | C268: Flanged RSV Gate Valve - Suction | D268: No | E268: 2 | G268: =E268*F268 -> 0.00
A270: PS4-B3.2.12 | C270: Flanged RSV Gate Valve - Delivery | D270: No | E270: 2 | G270: =E270*F270 -> 0.00
A272: PS4-B3.2.13 | C272: Ball Check Valve | D272: No | E272: 2 | G272: =E272*F272 -> 0.00
A274: PS4-B3.2.15 | C274: Air-Valves | D274: No | E274: 1 | G274: =E274*F274 -> 0.00
A276: PS4-B3.2.14 | C276: Level control valve | D276: No | E276: 1 | G276: =E276*F276 -> 0.00
A278: PS4-B3.2.15 | C278: Water meter/Flow meter: | D278: No | E278: 1 | G278: =E278*F278 -> 0.00
A280: PS4-B3.2.16 | C280: RSV Gate Valves | D280: No | E280: 8 | G280: =E280*F280 -> 0.00
A282: PS4-B4 | C282: LIFTING EQUIPMENT
A284: PS4-B4.1 | C284: Prepare G.A drawing(s) for pump station lifting equipment | D284: Sum | E284: 1 | G284: =E284*F284 -> 0.00
A286: PS4-B4.2 | C286: Manufacture, supply, install and deliver PS lifting equipment - 1 Ton chain block and roller | D286: Sum | E286: 1 | G286: =E286*F286 -> 0.00
A288: PS4-B4.3 | C288: Install lifting equipment | D288: Sum | E288: 1 | G288: =E288*F288 -> 0.00
A290: PS4-B4.4 | C290: Commission lifting equipment | D290: Sum | E290: 1 | G290: =E290*F290 -> 0.00
A292: PS4-C | C292: SECTION C: ELECTRICAL REFURBISHMENT
A294: PS4-C1 | C294: Main Control Consol (MCC):
A296: PS4-C1.1 | C296: De-install, remove and store existing MCC panel | D296: Sum | E296: 1 | G296: =E296*F296 -> 0.00
A298: PS4-C1.2 | C298: Prepare the G.A Drawing (s), Schematic and single line diagrams, and load list for the MCC panel | D298: Sum | E298: 1 | G298: =E298*F298 -> 0.00
A300: PS4-C1.3 | C300: Manufacture, supply, store and deliver the MCC panel | D300: Sum | E300: 1 | G300: =E300*F300 -> 0.00
A302: PS4-C1.4 | C302: Install and terminate the MCC panel | D302: Sum | E302: 1 | G302: =E302*F302 -> 0.00
A305: PS4-C1.5 | C305: Commission the MCC panel | D305: Sum | E305: 1 | G305: =E305*F305 -> 0.00
A307: PS4-C2 | C307: Pressure Transmitter:
A309: PS4-C2.1 | C309: Manufacture and Supply 0-16 bar Pressure Transmitter (4-20 mA 1/4" process connector). | D309: No | E309: 1 | G309: =E309*F309 -> 0.00
A311: PS4-C2.2 | C311: Install Pressure Transmitter | D311: Sum | E311: 1 | G311: =E311*F311 -> 0.00
A313: PS4-C2.3 | C313: Commissioning | D313: Sum | E313: 1 | G313: =E313*F313 -> 0.00
A315: PS4-C3 | C315: Existing cables:
A317: PS4-C3.1 | C317: Fault finding on existing cables | D317: Sum | E317: 1 | G317: =E317*F317 -> 0.00
A319: PS4-C3.2 | C319: Prepare assessment report and recommendation | D319: Sum | E319: 1 | G319: =E319*F319 -> 0.00
A321: PS4-C3.3 | C321: Provision for material and installation of defective cables | D321: Prov Sum | E321: 1 | F321: 30,000.00 | G321: =E321*F321 -> 30,000.00
A323: PS4-C3.4 | C323: Overheads, charges and profit on subitem C3.3 above | D323: % | E323: =F321 -> 30,000.00 | G323: =E323*F323 -> 0.00
A325: PS4-C3.5 | C325: Commissioning and providing COC for installation | D325: Sum | E325: 1 | G325: =E325*F325 -> 0.00
A327: PS4-C4 | C327: Level/Control Equipment:
A329: PS4-C4.1 | C329: De-install, removal and discard of existing ball level indicators | D329: Sum | E329: 1 | G329: =E329*F329 -> 0.00
A331: PS4-C4.2 | C331: Supply, deliver and store level probes Specifications: a) APS - 3C or similar approved b) 3 - Probes (Common, low and high) c) Depths to be confirmed on site | D331: Sum | E331: 1 | G331: =E331*F331 -> 0.00
A333: PS4-C4.3 | C333: Installation of level probes | D333: Sum | E333: 1 | G333: =E333*F333 -> 0.00
A335: PS4-C4.4 | C335: Commission of level probes | D335: Sum | E335: 1 | G335: =E335*F335 -> 0.00
A338: TOTAL CARREID FORWARD | G338: =SUM(G254:G337) -> 155,000.00
A339: TOTAL BROUGHT FORWARD | G339: =G338 -> 155,000.00
A340: PS4-C5 | C340: Main power supply
A342: PS4-C5.1 | C342: Fault finding on existing supply cables | D342: Sum | E342: 1 | G342: =E342*F342 -> 0.00
A344: PS4-C5.2 | C344: Prepare assessment report and recommendation | D344: Sum | E344: 1 | G344: =E344*F344 -> 0.00
A346: PS4-C5.3 | C346: Provision for material and installation of defective cables | D346: Prov Sum | E346: 1 | F346: 50,000.00 | G346: =E346*F346 -> 50,000.00
A348: PS4-C5.4 | C348: Overheads, charges and profit on subitem C3.3 above | D348: % | E348: =F346 -> 50,000.00 | G348: =E348*F348 -> 0.00
A350: PS4-C5.5 | C350: Commissioning and providing COC for installation | D350: Sum | E350: 1 | G350: =E350*F350 -> 0.00
A352: TOTAL CARREID FORWARD TO SUMMARY PAGE | G352: =SUM(G339:G351) -> 205,000.00

Sheet 5 Poelong
A2: MALUTI-A-PHOFUNG LOCAL MUNICIPALITY
A3: APPOINTMENT OF A SERVICE PROVIDER: UPGRADING OF WATER PUMP STATION PHASE 1
A4: Contract No.: SCM/BID09/2023/24
A6: SCHEDULE PUMP STATION No 5: POELONG PUMP STATION (28°33'32.36"S, 28°43'26.64"E)
A8: ITEM | B8: PAYMENT CLAUSE | C8: DESCRIPTION | D8: UNIT | E8: QUANT. | F8: RATE | G8: AMOUNT
C10: SECTION A :CIVIL REFURBISHMENT
A12: PS5-A1 | B12: SANS 1200C | C12: SITE CLEARANCE
A14: PS5-A1.1 | B14: 8.3.1 | C14: Clear and grub vegetation and trees of girth up to 1,0m | D14: m² | E14: 270 | G14: =E14*F14 -> 0.00
A16: PS5-A1.2 | C16: Apply weed killer to cleared area (Roundup or similar approved) | D16: m² | E16: 170 | G16: =E16*F16 -> 0.00
A18: PS5-A1.3 | C18: Clean existing paved areas | D18: m² | E18: 170 | G18: 0.00
A20: PS5-A2 | C20: Fencing:
A22: PS5-A2.2 | C22: Supply and install concrete fencing from stockpile. Including all materials and fasteners. | D22: m | E22: 25 | G22: =E22*F22 -> 0.00
A24: PS5-A2.3 | C24: Supply and install flat wrap for entire pump station perimeter. | D24: m | E24: 100 | G24: 0.00
A26: PS5-A3 | B26: SANS 1200D | C26: EARTHWORKS
A28: PS5-A3.1 | C28: Locate, and excavate by hand in all material to expose existing services where ordered by the Engineer (provisional) | D28: m³ | E28: 30 | G28: =E28*F28 -> 0.00
A30: PS5-A3.2 | B30: 8.3.3 | C30: Restricted excavations:
C32: Excavate in all materials, and use for backfilling or embankments, or dispose:
A34: PS5-A3.3 | C34: Depth up to 1,0m | D34: m³ | E34: 10 | G34: =E34*F34 -> 0.00
A36: PS5-A3.4 | C36: Depth over 1,0m and up to 2,0m | D36: m³ | E36: 10 | G36: 0.00
A38: PS5-A4 | B38: PB | C38: BUILDING WORK REFURBISHMENT
B40: PB 8.2.20 | C40: Painting:
A42: PS5-A4.1 | C42: Interior Walls a) Pressure wash interior walls before any refurbishment work commence; b) Sand down interior walls; c) Remove all loose paint from structure; d) Apply interior paint primer (to be confirmed by supplier); e) Apply 2 coats of white interior paint (Emulsion paint) | D42: m² | E42: 75 | G42: =E42*F42 -> 0.00
A44: PS5-A4.2 | C44: Concrete Floors and 1m above floor level a) Pressure wash floors before any refurbishment work commence; b) Sand down existing epoxy and material; c) Remove loose particles; d) Apply epoxy primer (to be confirmed by supplier) e) Apply 3 layers of industrial epoxy paint (Sikagard) | D44: m² | E44: 40 | G44: 0.00
A46: PS5-A4.3 | C46: Steel Doors (Double doors) a) Pressure wash steel doors before any refurbishment work commence; b) Sand down existing doors; c) Remove loose paint; d) Apply paint primer (to be confirmed by supplier) e) Apply 2 coats of true black metal matt enamel (Dulux or similar approved) | D46: m² | E46: 12 | G46: 0.00
A48: PS5-A4.4 | C48: Concrete plinths: a) Pressure wash plinth before any refurbishment work commence; b) Sand down existing epoxy and material; c) Remove loose particles; d) Apply epoxy primer (to be confirmed by supplier) e) Apply 3 layers of industrial epoxy paint (Sikagard) | D48: m² | E48: 8 | G48: 0.00
A50: PS5-A4.5 | C50: Steel Gantry: a) Pressure wash existing gantry before any refurbishment works commence; b) Sand down existing enamel paint; c) Remove loose particles; d) Apply primer (to be confirmed with Engineer before application) e) Apply industrial enamel paint (confirm with Engineer before application) | D50: m² | E50: 30 | G50: 0.00
A52: PS5-A5 | B52: PB 8.2.21 | C52: General Electrical:
A54: PS5-A5.1 | C54: Refurbishment of general electrical items in existing building | D54: Prov Sum | E54: 1.00 | F54: 20,000.00 | G54: 20,000.00
A56: PS5-A5.2 | C56: Overheads, charges and profit on subitem A6.1 above | D56: % | E56: =F54 -> 20,000.00 | G56: 0.00
A58: PS5-A5.3 | C58: Refurbishment of existing cable racks | D58: Prov Sum | E58: 1.00 | F58: 15,000.00 | G58: 15,000.00
A60: PS5-A5.4 | C60: Overheads, charges and profit on subitem A6.3 above | D60: % | E60: =F58 -> 15,000.00 | G60: 0.00
A62: PS5-A6 | B62: SANS 1200 H | C62: Structural steelwork:
A64: PS5-A6.1 | C64: Supply, deliver and Installation of Burgular bars for double doors | D64: No | E64: 1 | G64: =E64*F64 -> 0.00
A66: PS5-A6.2 | C66: 19x102x25mm deep Fibreglass moulded grating, complete with cast in EZ Embedment Angle to cover openings (Fibregrate or similar approved). | D66: m² | E66: 5 | G66: 0.00
A68: PS5-A7 | B68: PB 8 | C68: Roof:
A70: PS5-A7.1 | B70: 8.2.12 | C70: Refurbishment of Roofs a) Remove existing roof material and dispose at a verified site; b) Sand down rafts and purlins (on written instruction replace purlins and rafters); c) Apply exterior and interior wood varnish to rafts d) Install new roof material (chromadek galvanized steel sheets (Traffic Cone Green) or similar approved) | D70: m² | E70: 55 | G70: =E70*F70 -> 0.00
A71: TOTAL CARREID FORWARD | G71: =SUM(G9:G70) -> 35,000.00
A72: TOTAL BROUGHT FORWARD | G72: =G71 -> 35,000.00
C74: SECTION B: MECHANICAL REFURBISHMENT
A76: PS5-B1 | C76: PIPEWORK:
A78: PS5-B1.1 | C78: De-install of existing pipework for all diameters up to including:
A80: PS5-B1.1.1 | C80: 50- 150mm | D80: m | E80: 5 | G80: =E80*F80 -> 0.00
A82: PS5-B1.1.2 | C82: 175 - 250mm | D82: m | E82: 15 | G82: 0.00
A85: PS5-B1.2 | C85: Confirm integrity of existing pipework:
C87: High pressure sand blasting of all existing pipework (including flanges)
C89: For the following diameters:
A91: PS5-B1.2.1 | C91: 100mm | D91: m | E91: 5 | G91: =E91*F91 -> 0.00
A93: PS5-B1.2.2 | C93: 200mm | D93: m | E93: 20 | G93: 0.00
A95: PS5-B1.2.2 | C95: Complete Non-destructive testing (NDT) on all existing pipework | D95: Sum | E95: 1 | G95: 0.00
A97: PS5-B1.3 | C97: Re-coating of pipework (COPON KSIR 88 - 250 MICRON or similar approved)
C99: For the following diameters:
A101: PS5-B1.3.1 | C101: 100mm | D101: m | E101: 5 | G101: =E101*F101 -> 0.00
A103: PS5-B1.3.2 | C103: 200mm | D103: m | E103: 20 | G103: 0.00
A105: PS5-B1.4 | C105: Replacement of all nuts, bolts and gaskets
C107: For following flanges (SANS 1123, Grade 8.8 Bolts and Nuts):
A109: PS5-B1.4.1 | C109: 100mm | D109: No | E109: 20 | G109: =E109*F109 -> 0.00
A111: PS5-B1.4.2 | C111: 200mm | D111: No | E111: 30 | G111: 0.00
A113: PS5-B1.5 | C113: Provisional items
A115: PS5-B1.5.1 | C115: Replacement of existing pipework | D115: Prov Sum | E115: 1.00 | F115: 50,000.00 | G115: =E115*F115 -> 50,000.00
A117: PS5-B1.5.2 | C117: Overheads, charges and profit on subitem B1.5.1 above | D117: % | E117: =F115 -> 50,000.00 | G117: 0.00
A119: PS5-B2 | C119: PUMPS AND MOTORS:
C121: Specifications Fluid: Potable Water:
C123: Pump No. 1 & 2:
A125: PS5-B2.1 | C125: De-install existing pump sets | D125: No | E125: 2 | G125: =E125*F125 -> 0.00
A127: PS5-B2.2 | C127: Transport to Agent/Manufactures workshop for conditional assessment and back to storeroom of Municipality | D127: Sum | E127: 1 | G127: =E127*F127 -> 0.00
A129: PS5-B2.3 | C129: Refurbishment works required on pump sets for spare parts | D129: Prov Sum | E129: 1 | F129: 15,000.00 | G129: 15,000.00
A131: PS5-B2.4 | C131: Overheads, charges and profit on subitem B2.3 above | D131: % | E131: =F129 -> 15,000.00 | G131: 0.00
A133: PS5-B2.5 | C133: Prepare G.A Drawings for pump sets and pipework | D133: Sum | E133: 1 | G133: 0.00
A135: PS5-B2.6 | C135: Supply and deliver new pump sets (including baseplates, anchor rods, bolts and all fittings required) | D135: No | E135: 2 | G135: 0.00
A137: PS5-B2.7 | C137: Install new pump set (Pump, Motor and Baseplate) | D137: No | E137: 2 | G137: 0.00
A139: PS5-B2.8 | C139: Commissioning of pump set and O&M Manuals | D139: No | E139: 2 | G139: 0.00
A140: PS5-B3 | B140: SANS 1200 LK | C140: Valves
A142: PS5-B3.1 | C142: De-install and remove existing valves | D142: Sum | E142: 1 | G142: =E142*F142 -> 0.00
A144: PS5-B3.2 | C144: Supply and deliver valves (Flangend drilling of valves to be confirmed on site):
C146: Suction:
C148: Flanged RSV Gate Valve:
A150: PS5-B3.2.1 | C150: DN 200mm PN10 (AVK or similar approved) | D150: No | E150: 2 | G150: =E150*F150 -> 0.00
C152: Delivery:
C154: Flanged RSV Gate Valve:
A156: PS5-B3.2.2 | C156: DN 100mm PN16 (AVK or similar approved) | D156: No | E156: 2 | G156: =E156*F156 -> 0.00
C158: Ball Check Valve
A160: PS5-B3.2.3 | C160: DN 100mm PN16 (AVK or similar approved) | D160: No | E160: 2 | G160: =E160*F160 -> 0.00
A162: TOTAL CARREID FORWARD | G162: =SUM(G72:G161) -> 100,000.00
A163: TOTAL BROUGHT FORWARD | G163: =G162 -> 100,000.00
C165: Air-Valves:
A167: PS5-B3.2.4 | C167: DN 50mm PN16 (RPS - Vent-O-Mat or similar approved) Including: a) Riser Flange b) Ball valve c) Bolts, nuts etc. | D167: No | E167: 1 | G167: =E167*F167 -> 0.00
C169: Level Control Valve:
A171: PS5-B3.2.5 | C171: DN 100mm PN10 Level Control Valve (AVK or similar approved) | D171: No | E171: 1 | G171: =E171*F171 -> 0.00
C173: Water meter/Flow meter:
A175: PS5-B3.2.6 | C175: DN200mm Optiflux 2000 OIML R49 Class 1 (KROHNE or similar approved) | D175: No | E175: 1 | G175: =E175*F175 -> 0.00
C176: Pressure Gauges
A178: PS5-B3.2.7 | C178: Supply, deliver and install 16 bar pressure gauges (2 x suction, 2 x delivery) | D178: No | E178: 4 | G178: =E178*F178 -> 0.00
C180: Install
A182: PS5-B3.2.8 | C182: Flanged RSV Gate Valve - Suction | D182: No | E182: 2 | G182: =E182*F182 -> 0.00
A184: PS5-B3.2.9 | C184: Flanged RSV Gate Valve - Delivery | D184: No | E184: 2 | G184: 0.00
A186: PS5-B3.2.10 | C186: Ball Check Valve | D186: No | E186: 2 | G186: 0.00
A188: PS5-B3.2.11 | C188: Air-Valves | D188: No | E188: 1 | G188: 0.00
A190: PS5-B3.2.12 | C190: Level control valve | D190: No | E190: 1 | G190: 0.00
A192: PS5-B3.2.13 | C192: Water meter/Flow meter: | D192: No | E192: 1 | G192: =E192*F192 -> 0.00
A194: PS5-B4 | C194: LIFTING EQUIPMENT
A196: PS5-B4.1 | C196: Prepare G.A drawing(s) for pump station lifting equipment | D196: Sum | E196: 1 | G196: =E196*F196 -> 0.00
A198: PS5-B4.2 | C198: Manufacture, supply, install and deliver PS lifting equipment - 1 Ton chain block and roller | D198: Sum | E198: 1 | G198: 0.00
A200: PS5-B4.3 | C200: Install lifting equipment | D200: Sum | E200: 1 | G200: 0.00
A202: PS5-B4.4 | C202: Commission lifting equipment | D202: Sum | E202: 1 | G202: 0.00
C204: SECTION C: ELECTRICAL REFURBISHMENT
A206: PS5-C1 | C206: Main Control Consol (MCC):
A208: PS5-C1.1 | C208: De-install, remove and store existing MCC panel | D208: Sum | E208: 1 | G208: =E208*F208 -> 0.00
A210: PS5-C1.2 | C210: Prepare the G.A Drawing (s), Schematic and single line diagrams, and load list for the MCC panel | D210: Sum | E210: 1 | G210: 0.00
A212: PS5-C1.3 | C212: Manufacture, supply, store and deliver the MCC panel | D212: Sum | E212: 1 | G212: 0.00
A214: PS5-C1.4 | C214: Install and terminate the MCC panel | D214: Sum | E214: 1 | G214: 0.00
A216: PS5-C1.5 | C216: Commission the MCC panel | D216: Sum | E216: 1 | G216: 0.00
A218: PS5-C2 | C218: Pressure Transmitter:
A220: PS5-C2.1 | C220: Manufacture and Supply 0-16 bar Pressure Transmitter (4-20 mA 1/4" process connector). | D220: No | E220: 1 | G220: =E220*F220 -> 0.00
A222: PS5-C2.2 | C222: Install Pressure Transmitter | D222: Sum | E222: 1 | G222: 0.00
A224: PS5-C2.3 | C224: Commissioning | D224: Sum | E224: 1 | G224: 0.00
A226: PS5-C3 | C226: Existing cables:
A228: PS5-C3.1 | C228: Fault finding on existing cables | D228: Sum | E228: 1 | G228: =E228*F228 -> 0.00
A230: PS5-C3.2 | C230: Prepare assessment report and recommendation | D230: Sum | E230: 1 | G230: 0.00
A232: PS5-C3.3 | C232: Provision for material and installation of defective cables | D232: Prov Sum | E232: 1 | F232: 50,000.00 | G232: 50,000.00
A234: PS5-C3.4 | C234: Overheads, charges and profit on subitem C3.3 above | D234: % | E234: =F232 -> 50,000.00 | G234: 0.00
A236: PS5-C3.5 | C236: Commissioning and providing COC for installation | D236: Sum | E236: 1 | G236: 0.00
A238: TOTAL CARREID FORWARD TO SUMMARY PAGE | G238: =SUM(G163:G237) -> 150,000.00

Sheet 6 Bolata
A2: MALUTI-A-PHOFUNG LOCAL MUNICIPALITY
A3: APPOINTMENT OF A SERVICE PROVIDER: UPGRADING OF WATER PUMP STATION PHASE 1
A4: Contract No.: SCM/BID09/2023/24
A6: SCHEDULE PUMP STATION No 6: BOLATA PUMP STATION (28°34'31.19"S, 28°34'31.19"S)
A8: ITEM | B8: PAYMENT CLAUSE | C8: DESCRIPTION | D8: UNIT | E8: QUANT. | F8: RATE | G8: AMOUNT
C10: SECTION A :CIVIL REFURBISHMENT
A12: PS6-A1 | B12: SANS 1200C | C12: SITE CLEARANCE
A14: PS6-A1.1 | B14: 8.3.1 | C14: Apply weed killer to cleared area (Roundup or similar approved) | D14: m² | E14: 600 | G14: =E14*F14 -> 0.00
A16: PS6-A1.2 | C16: Clean existing paved areas | D16: m² | E16: 600 | G16: 0.00
A18: PS6-A2 | B18: SANS 1200D | C18: EARTHWORKS
A20: PS6-A2.1 | C20: Locate, and excavate by hand in all material to expose existing services where ordered by the Engineer (provisional) | D20: m³ | E20: 20 | G20: =E20*F20 -> 0.00
A22: PS6-A2.2 | B22: 8.3.3 | C22: Restricted excavations:
C24: Excavate in all materials, and use for backfilling or embankments, or dispose:
A26: PS6-A2.2 | C26: Depth up to 1,0m | D26: m³ | E26: 10 | G26: =E26*F26 -> 0.00
A28: PS6-A2.4 | C28: Depth over 1,0m and up to 2,0m | D28: m³ | E28: 10 | G28: 0.00
A30: PS6-A3 | B30: PB | C30: BUILDING WORK REFURBISHMENT
B32: PB 8.2.20 | C32: Painting:
A34: PS6-A3.1 | C34: Interior Walls a) Pressure wash interior walls before any refurbishment work commence; b) Sand down interior walls; c) Remove all loose paint from structure; d) Apply interior paint primer (to be confirmed by supplier); e) Apply 2 coats of white interior paint (Emulsion paint) | D34: m² | E34: 60 | G34: =E34*F34 -> 0.00
A36: PS6-A3.2 | C36: Burgular Bars: a) Sand down door and window frames; b) Remove loose paint; c) Apply paint primer (to be confirmed by supplier); d) Apply 2 coats of Enamel Paint (Plascon Enamel or similar approved) | D36: m² | E36: 5 | G36: 0.00
A38: PS6-A3.3 | C38: Concrete Floors and 1m above floor level a) Pressure wash floors before any refurbishment work commence; b) Sand down existing epoxy and material; c) Remove loose particles; d) Apply epoxy primer (to be confirmed by supplier) e) Apply 3 layers of industrial epoxy paint (Sikagard) | D38: m² | E38: 35 | G38: 0.00
A40: PS6-A3.4 | C40: Interior Concrete Roofs a) Pressure wash roofs before any refurbishment work commence; b) Sand down existing roof material; c) Remove loose paint; d) Apply paint primer (to be confirmed by supplier) e) Apply 2 coats of interior roof paint (Dulux roof guard or similar approved) | D40: m² | E40: 35 | G40: 0.00
A42: PS6-A3.5 | C42: Exterior Concrete Roofs a) Pressure wash roofs before any refurbishment work commence; b) Sand down existing roof material; c) Remove loose paint; d) Apply paint primer (to be confirmed by supplier) e) Apply 2 coats of exterior roof paint (Dulux roof guard or similar approved) | D42: m² | E42: 40 | G42: 0.00
A44: PS6-A3.6 | C44: Steel Doors (Double doors) a) Pressure wash steel doors before any refurbishment work commence; b) Sand down existing doors; c) Remove loose paint; d) Apply paint primer (to be confirmed by supplier) e) Apply 2 coats of true black metal matt enamel (Dulux or similar approved) | D44: m² | E44: 5 | G44: 0.00
A46: PS6-A3.7 | C46: Steel Gantry: a) Pressure wash existing gantry before any refurbishment works commence; b) Sand down existing enamel paint; c) Remove loose particles; d) Apply primer (to be confirmed with Engineer before application) e) Apply industrial enamel paint (confirm with Engineer before application) | D46: m² | E46: 20 | G46: =E46*F46 -> 0.00
A48: PS6-A4 | B48: SANS 1200 G | C48: Concrete works
A50: PS6-A4.1 | C50: Demolish and remove existing concret plinths | D50: No | E50: 2 | G50: =E50*F50 -> 0.00
C52: Formwork:
C54: Smooth formwork:
B56: 8.2.2 | C56: Plane vertical
A58: PS6-A4.2 | C58: To plinths | D58: m² | E58: 5 | G58: =E58*F58 -> 0.00
B60: 8.3.1 | C60: High Tensile Steel:
A62: PS6-A4.3 | C62: Y12 | D62: t | E62: 0.2 | G62: =E62*F62 -> 0.00
C64: Mild Tensile Steel:
A66: PS6-A4.4 | C66: R10 | D66: t | E66: 0.2 | G66: =E66*F66 -> 0.00
A68: TOTAL CARREID FORWARD | G68: =SUM(G9:G67) -> 0.00
A69: TOTAL BROUGHT FORWARD | G69: =G68 -> 0.00
B71: 8.4.3 | C71: Concrete Class 35/19 to:
A73: PS6-A4.5 | C73: Plinths | D73: m³ | E73: 2 | G73: =E73*F73 -> 0.00
B75: 8.4.4 | C75: Unformed surfaces:
C77: Steel float finish:
A79: PS6-A4.6 | C79: Plinth | D79: m² | E79: 5 | G79: =E79*F79 -> 0.00
A81: PS6-A5 | B81: PB 8.2.21 | C81: General Electrical:
A83: PS6-A5.1 | C83: Refurbishment of general electrical items in existing building | D83: Prov Sum | E83: 1 | F83: 20,000.00 | G83: =E83*F83 -> 20,000.00
A85: PS6-A5.2 | C85: Overheads, charges and profit on subitem A6.1 above | D85: % | E85: =F83 -> 20,000.00 | G85: 0.00
A87: PS6-A5.3 | C87: Refurbishment of existing cable racks | D87: Prov Sum | E87: 1 | F87: 15,000.00 | G87: 15,000.00
A89: PS6-A5.4 | C89: Overheads, charges and profit on subitem A6.3 above | D89: % | E89: =F87 -> 15,000.00 | G89: 0.00
C91: SECTION B: MECHANICAL REFURBISHMENT
A93: PS6-B1 | C93: PIPEWORK:
A95: PS6-B1.1 | C95: De-install of existing pipework for all diameters up to including:
A97: PS6-B1.1.1 | C97: 50- 150mm | D97: m | E97: 10 | G97: =E97*F97 -> 0.00
A99: PS6-B1.1.2 | C99: 175 - 250mm | D99: m | E99: 10 | G99: 0.00
A101: PS6-B1.2 | C101: Confirm integrity of existing pipework:
C103: High pressure sand blasting of all existing pipework (including flanges)
C105: For the following diameters:
A107: PS6-B1.2.2 | C107: 150mm | D107: m | E107: 10 | G107: =E107*F107 -> 0.00
A109: PS6-B1.2.3 | C109: 200mm | D109: m | E109: 10 | G109: 0.00
A111: PS6-B1.2.4 | C111: Complete Non-destructive testing (NDT) on all existing pipework | D111: Sum | E111: 1 | G111: 0.00
A113: PS6-B1.3 | C113: Re-coating of pipework (COPON KSIR 88 - 250 MICRON or similar approved)
C115: For the following diameters:
A117: PS6-B1.3.2 | C117: 150mm | D117: m | E117: 10 | G117: =E117*F117 -> 0.00
A119: PS6-B1.3.3 | C119: 200mm | D119: m | E119: 10 | G119: 0.00
A121: PS6-B1.4 | C121: Replacement of all nuts, bolts and gaskets
C123: For following flanges (SANS 1123, Grade 8.8 Bolts and Nuts):
A125: PS6-B1.4.2 | C125: 150mm | D125: No | E125: 20 | G125: =E125*F125 -> 0.00
A127: PS6-B1.4.3 | C127: 200mm | D127: No | E127: 15 | G127: 0.00
A129: PS6-B1.5 | C129: Provisional items
A131: PS6-B1.5.1 | C131: Replacement of existing pipework | D131: Prov Sum | E131: 1 | F131: 50,000.00 | G131: =E131*F131 -> 50,000.00
A133: PS6-B1.5.2 | C133: Overheads, charges and profit on subitem B1.5.1 above | D133: % | E133: =F131 -> 50,000.00 | G133: 0.00
A135: PS6-B1.6 | C135: Pipe brackets:
C137: For 150mm pipes:
C139: For heights between:
A141: PS6-B1.6.1 | C141: 0.9 - 1.2m | D141: No | E141: 4 | G141: =E141*F141 -> 0.00
A143: PS6-B2 | C143: PUMPS AND MOTORS:
C145: Specifications Fluid: Potable Water:
C147: Pump No. 1 & 2:
A149: PS6-B2.1 | C149: De-install existing pump sets | D149: No | E149: 2 | G149: =E149*F149 -> 0.00
A151: PS6-B2.2 | C151: Transport to Agent/Manufactures workshop for conditional assessment and back to storeroom of Municipality | D151: Sum | E151: 1 | G151: 0.00
A153: PS6-B2.3 | C153: Refurbishment works required on pump sets for spare parts | D153: Prov Sum | E153: 1 | F153: 15,000.00 | G153: 15,000.00
A155: PS6-B2.4 | C155: Overheads, charges and profit on subitem B2.3 above | D155: % | E155: =F153 -> 15,000.00 | G155: 0.00
A157: PS6-B2.5 | C157: Prepare G.A Drawings for pump sets and pipework | D157: Sum | E157: 1 | G157: 0.00
A159: PS6-B2.6 | C159: Supply and deliver new pump sets (including baseplates, anchor rods, bolts and all fittings required) | D159: No | E159: 2 | G159: 0.00
A161: TOTAL CARREID FORWARD | G161: =SUM(G69:G160) -> 100,000.00
A162: TOTAL BROUGHT FORWARD | G162: =G161 -> 100,000.00
A164: PS6-B2.7 | C164: Install new pump set (Pump, Motor and Baseplate) | D164: No | E164: 2 | G164: =E164*F164 -> 0.00
A166: PS6-B2.8 | C166: Commissioning of pump set and O&M Manuals | D166: No | E166: 2 | G166: 0.00
A168: PS6-B3 | B168: SANS 1200 LK | C168: Valves
A170: PS6-B3.1 | C170: De-install and remove existing valves | D170: Sum | E170: 1 | G170: =E170*F170 -> 0.00
A172: PS6-B3.2 | C172: Supply and deliver valves (Flangend drilling of valves to be confirmed on site):
C174: Suction:
C176: Flanged RSV Gate Valve:
A178: PS6-B3.2.1 | C178: DN 200mm PN16 (AVK or similar approved) | D178: No | E178: 1 | G178: =E178*F178 -> 0.00
C180: Delivery:
C182: Flanged RSV Gate Valve:
A184: PS6-B3.2.2 | C184: DN 150mm PN16 (AVK or similar approved) | D184: No | E184: 3 | G184: =E184*F184 -> 0.00
C186: Ball Check Valve
A188: PS6-B3.2.3 | C188: DN 150mm PN16 (AVK or similar approved) | D188: No | E188: 3 | G188: =E188*F188 -> 0.00
C190: Air-Valves:
A192: PS6-B3.2.4 | C192: DN 50mm PN16 (RPS - Vent-O-Mat or similar approved) Including: a) Riser Flange b) Ball valve c) Bolts, nuts etc. | D192: No | E192: 1 | G192: =E192*F192 -> 0.00
C194: Pressure Sustaining Valve:
A196: PS6-B3.2.5 | C196: DN 150mm PN16 (Bermad or similar approved) | D196: No | E196: 1 | G196: =E196*F196 -> 0.00
C198: Level Control Valve:
A200: PS6-B3.2.6 | C200: DN 150mm PN10 Level Control Valve (AVK or similar approved) | D200: No | E200: 1 | G200: =E200*F200 -> 0.00
C202: Water meter/Flow meter:
A204: PS6-B3.2.7 | C204: DN150mm Optiflux 2000 OIML R49 Class 1 (KROHNE or similar approved) | D204: No | E204: 1 | G204: =E204*F204 -> 0.00
C206: Pressure Gauges
A208: PS6-B3.2.9 | C208: Supply, deliver and install 16 bar pressure gauges (2 x suction, 2 x delivery) | D208: No | E208: 4 | G208: =E208*F208 -> 0.00
C211: Install
A213: PS6-B3.2.10 | C213: Flanged RSV Gate Valve - Suction | D213: No | E213: 1 | G213: =E213*F213 -> 0.00
A215: PS6-B3.2.11 | C215: Flanged RSV Gate Valve - Delivery | D215: No | E215: 3 | G215: 0.00
A217: PS6-B3.2.12 | C217: Ball Check Valve | D217: No | E217: 2 | G217: 0.00
A219: PS6-B3.2.13 | C219: Air-Valves | D219: No | E219: 1 | G219: 0.00
A221: PS6-B3.2.14 | C221: Pressure Sustaining Valve | D221: No | E221: 1 | G221: 0.00
A223: PS6-B3.2.15 | C223: Level control valve | D223: No | E223: 1 | G223: 0.00
A225: PS6-B3.2.16 | C225: Water meter/Flow meter: | D225: No | E225: 1 | G225: 0.00
A227: PS6-B4 | C227: LIFTING EQUIPMENT
A229: PS6-B4.1 | C229: Prepare G.A drawing(s) for pump station lifting equipment | D229: Sum | E229: 1 | G229: =E229*F229 -> 0.00
A231: PS6-B4.2 | C231: Manufacture, supply, install and deliver PS lifting equipment - 1 Ton chain block and roller | D231: Sum | E231: 1 | G231: 0.00
A233: PS6-B4.3 | C233: Install lifting equipment | D233: Sum | E233: 1 | G233: 0.00
A235: PS6-B4.4 | C235: Commission lifting equipment | D235: Sum | E235: 1 | G235: 0.00
C237: SECTION C: ELECTRICAL REFURBISHMENT
A239: PS6-C1 | C239: Main Control Consol (MCC):
A241: PS6-C1.1 | C241: De-install, remove and store existing MCC panel | D241: Sum | E241: 1 | G241: =E241*F241 -> 0.00
A243: PS6-C1.2 | C243: Prepare the G.A Drawing (s), Schematic and single line diagrams, and load list for the MCC panel | D243: Sum | E243: 1 | G243: 0.00
A245: PS6-C1.3 | C245: Manufacture, supply, store and deliver the MCC panel | D245: Sum | E245: 1 | G245: 0.00
A247: TOTAL CARREID FORWARD | G247: =SUM(G162:G246) -> 100,000.00
A248: TOTAL BROUGHT FORWARD | G248: =G247 -> 100,000.00
A250: PS6-C1.4 | C250: Install and terminate the MCC panel | D250: Sum | E250: 1 | G250: =E250*F250 -> 0.00
A252: PS6-C1.5 | C252: Commission the MCC panel | D252: Sum | E252: 1 | G252: 0.00
A254: PS6-C2 | C254: Pressure Transmitter:
A256: PS6-C2.1 | C256: Manufacture and Supply 0-16 bar Pressure Transmitter (4-20 mA 1/4" process connector). | D256: No | E256: 1 | G256: =E256*F256 -> 0.00
A258: PS6-C2.2 | C258: Install Pressure Transmitter | D258: Sum | E258: 1 | G258: 0.00
A260: PS6-C2.3 | C260: Commissioning | D260: Sum | E260: 1 | G260: 0.00
A262: PS6-C3 | C262: Existing cables:
A264: PS6-C3.1 | C264: Fault finding on existing cables | D264: Sum | E264: 1 | G264: =E264*F264 -> 0.00
A266: PS6-C3.2 | C266: Prepare assessment report and recommendation | D266: Sum | E266: 1 | G266: 0.00
A268: PS6-C3.3 | C268: Provision for material and installation of defective cables | D268: Prov Sum | E268: 1 | F268: 15,000.00 | G268: =E268*F268 -> 15,000.00
A270: PS6-C3.4 | C270: Overheads, charges and profit on subitem C3.3 above | D270: % | E270: =F268 -> 15,000.00 | G270: 0.00
A272: PS6-C3.5 | C272: Commissioning and providing COC for installation | D272: Sum | E272: 1 | G272: 0.00
A274: TOTAL CARREID FORWARD TO SUMMARY PAGE | G274: =SUM(G248:G273) -> 115,000.00

Sheet 7 Fika-patso Resort
A2: MALUTI-A-PHOFUNG LOCAL MUNICIPALITY
A3: APPOINTMENT OF A SERVICE PROVIDER: UPGRADING OF WATER PUMP STATION PHASE 1
A4: Contract No.: SCM/BID09/2023/24
A6: SCHEDULE PUMP STATION No 7: FIKA PATSO PUMP STATION (28°39'53.67"S, 28°50'36.02"E)
A8: ITEM | B8: PAYMENT CLAUSE | C8: DESCRIPTION | D8: UNIT | E8: QUANT. | F8: RATE | G8: AMOUNT
C10: SECTION A :CIVIL REFURBISHMENT
A12: PS7-A1 | B12: SANS 1200C | C12: SITE CLEARANCE
A14: PS7-A1.1 | B14: 8.3.1 | C14: Clear and grub vegetation and trees of girth up to 1,0m | D14: m² | E14: 850 | G14: =E14*F14 -> 0.00
A16: PS7-A2 | C16: Fencing:
A18: PS7-A2.1 | C18: Removal of existing concrete pallisade fencing and access gates and dispose of material at approved Municipal dumping site or store facility. | D18: m | E18: 160 | G18: =E18*F18 -> 0.00
A20: PS7-A2.2 | C20: Supply and install new high-security Clear-Vu fencing 2,4m high including all materials and fasteners (or similar approved) | D20: m | E20: 160 | G20: 0.00
A22: PS7-A2.3 | C22: Supply and install shark tooth "anti climb spikes". (Material to be approved by the Engineer before procurement) | D22: m | E22: 160 | G22: 0.00
A24: PS7-A2.4 | C24: Galvanised steel access gates (double leaf, 2,4m high x 3,6m wide) | D24: No | E24: 1 | G24: 0.00
A26: PS7-A2.5 | C26: Additional padlocks | D26: No | E26: 1 | G26: 0.00
A28: PS7-A2.6 | C28: 150 x 200mm hand excavated trench for concrete beam under fencing | D28: m | E28: 160 | G28: 0.00
A30: PS7-A2.7 | C30: 150 x 200mm Concrete ground beam casted insitu with 15 MPa concrete. To include formwork, finishing, etc. | D30: m³ | E30: 6 | G30: 0.00
A33: PS7-A3 | B33: SANS 1200D | C33: EARTHWORKS
A35: PS7-A3.1 | C35: Locate, and excavate by hand in all material to expose existing services where ordered by the Engineer (provisional) | D35: m³ | E35: 20 | G35: =E35*F35 -> 0.00
A37: PS7-A3.2 | B37: 8.3.3 | C37: Restricted excavations:
C39: Excavate in all materials, and use for backfilling or embankments, or dispose:
A41: PS7-A3.3 | C41: Depth up to 1,0m | D41: m³ | E41: 10 | G41: =E41*F41 -> 0.00
A43: PS7-A3.4 | C43: Depth over 1,0m and up to 2,0m | D43: m³ | E43: 10 | G43: 0.00
A45: PS7-A4 | B45: PB | C45: BUILDING WORK REFURBISHMENT
B47: PB 8.2.20 | C47: Painting:
A49: PS7-A4.1 | C49: Interior Walls a) Pressure wash interior walls before any refurbishment work commence; b) Sand down interior walls; c) Remove all loose paint from structure; d) Apply interior paint primer (to be confirmed by supplier); e) Apply 2 coats of white interior paint (Emulsion paint) | D49: m² | E49: 85 | G49: =E49*F49 -> 0.00
A51: PS7-A4.2 | C51: Exterior Walls a) Pressure wash outside walls before any refurbishment work commence; b) Sand down all structure walls, including pillars & beams; c) Remove all loose paint from structure; d) Apply exterior paint primer (to be confirmed by supplier); e) Apply 2 coats of white exterior paint (Emulsion paint) | D51: m² | E51: 90 | G51: 0.00
A53: PS7-A4.3 | C53: Burgular Bars: a) Sand down door and window frames; b) Remove loose paint; c) Apply paint primer (to be confirmed by supplier); d) Apply 2 coats of Enamel Paint (Plascon Enamel or similar approved) | D53: m² | E53: 7.5 | G53: 0.00
A55: PS7-A4.4 | C55: Concrete Floors and 1m above floor level a) Pressure wash floors before any refurbishment work commence; b) Sand down existing epoxy and material; c) Remove loose particles; d) Apply epoxy primer (to be confirmed by supplier) e) Apply 3 layers of industrial epoxy paint (Sikagard) | D55: m² | E55: 95 | G55: 0.00
A57: PS7-A4.5 | C57: Roof Trusses, Purlins and Brandering (span of 7m trusses) a) Sand down existing material; b) Remove loose paint & particles; c) Apply 2 coats of Duram Woodseal for roofs or similar approved | D57: No | E57: 10 | G57: 0.00
A59: PS7-A4.6 | C59: Roofs a) Pressure wash roofs before any refurbishment work commence; b) Sand down existing roof material; c) Remove loose paint; d) Apply paint primer (to be confirmed by supplier) e) Apply 2 coats of exterior roof paint (Dulux roof guard or similar approved) | D59: m² | E59: 100 | G59: 0.00
A61: PS7-A4.7 | C61: Steel Doors (Double doors) a) Pressure wash steel doors before any refurbishment work commence; b) Sand down existing doors; c) Remove loose paint; d) Apply paint primer (to be confirmed by supplier) e) Apply 2 coats of true black metal matt enamel (Dulux or similar approved) | D61: m² | E61: 15 | G61: 0.00
A63: TOTAL CARREID FORWARD | G63: =SUM(G9:G62) -> 0.00
A64: TOTAL BROUGHT FORWARD | G64: =G63 -> 0.00
A66: PS7-A4.8 | C66: Steel Doors (Double doors) a) Pressure wash steel doors before any refurbishment work commence; b) Sand down existing doors; c) Remove loose paint; d) Apply paint primer (to be confirmed by supplier) e) Apply 2 coats of true black metal matt enamel (Dulux or similar approved) | D66: m² | E66: 15 | G66: =E66*F66 -> 0.00
A68: PS7-A4.9 | C68: Concrete plinths: a) Pressure wash floors before any refurbishment work commence; b) Sand down existing epoxy and material; c) Remove loose particles; d) Apply epoxy primer (to be confirmed by supplier) e) Apply 3 layers of industrial epoxy paint (Sikagard) | D68: m² | E68: 10 | G68: 0.00
A70: PS7-A5 | B70: PB 8.2.21 | C70: General Electrical:
A72: PS7-A5.1 | C72: Refurbishment of general electrical items in existing building | D72: Prov Sum | E72: 1 | F72: 15,000.00 | G72: =E72*F72 -> 15,000.00
A74: PS7-A5.2 | C74: Overheads, charges and profit on subitem A6.1 above | D74: % | E74: =F72 -> 15,000.00 | G74: 0.00
A76: PS7-A5.3 | C76: Refurbishment of existing cable racks | D76: Prov Sum | E76: 1 | F76: 10,000.00 | G76: 10,000.00
A78: PS7-A5.4 | C78: Overheads, charges and profit on subitem A6.3 above | D78: % | E78: =F76 -> 10,000.00 | G78: 0.00
A80: PS7-A6 | B80: PB 8.2.17 | C80: Doors:
A82: PS7-A6.1 | C82: Removal of existing steel door (Break out of wall) | D82: No | E82: 1 | F82: 2,500.00 | G82: =E82*F82 -> 2,500.00
A84: PS7-A6.2 | C84: Supply and install new (Including all required fittings etc.)
A86: PS7-A6.3 | C86: Transformer Door - Type CV (2134x1100mm) | D86: No | E86: 1 | G86: =E86*F86 -> 0.00
A88: PS7-A6.4 | C88: Supply, deliver and Installation of Burgular bars for double doors | D88: No | E88: 1 | G88: 0.00
A90: PS7-A7 | B90: PB 8.2.15 | C90: Ceilings:
A92: PS7-A7.1 | C92: Gypsum ceiling board | D92: m² | E92: 100 | G92: =E92*F92 -> 0.00
A94: PS7-A7.2 | C94: Cornice 75 mm | D94: m | E94: 90 | G94: 0.00
A96: PS7-A8 | B96: SANS 1200 H | C96: Structural steelwork:
C98: Complete supply, manufacturing, corrosion protection (Hot-dipped galvanized) and installation of structural steel gantry:
A100: PS7-A8.1 | C100: IPE 200 I-section beam, including end/cleat plates & bolts | D100: t | E100: 0.4 | G100: =E100*F100 -> 0.00
A102: PS7-A8.2 | C102: IPEAA 160 I-section beam, including end/cleat plates & bolts | D102: t | E102: 0.4 | G102: 0.00
A104: PS7-A8.3 | C104: 19x102x25mm deep Fibreglass moulded grating, complete with cast in EZ Embedment Angle to cover openings (Fibregrate or similar approved). | D104: m² | E104: 8 | G104: 0.00
C106: SECTION B: MECHANICAL REFURBISHMENT
A108: PS7-B1 | C108: PIPEWORK:
A110: PS7-B1.1 | C110: De-install of existing pipework for all diameters up to including:
A112: PS7-B1.1.1 | C112: 50- 150mm | D112: m | E112: 25 | G112: =E112*F112 -> 0.00
A114: PS7-B1.1.2 | C114: 250-350mm | D114: m | E114: 10 | G114: 0.00
A116: PS7-B1.2 | C116: Confirm integrity of existing pipework:
C118: High pressure sand blasting of all existing pipework (including flanges)
C120: For the following diameters:
A122: PS7-B1.2.1 | C122: 100mm | D122: m | E122: 5 | G122: =E122*F122 -> 0.00
A124: PS7-B1.2.2 | C124: 150mm | D124: m | E124: 20 | G124: 0.00
A126: PS7-B1.2.3 | C126: 300mm | D126: m | E126: 10 | G126: 0.00
A128: PS7-B1.2.2 | C128: Complete Non-destructive testing (NDT) on all existing pipework | D128: Sum | E128: 1 | G128: 0.00
A130: PS7-B1.3 | C130: Re-coating of pipework (COPON KSIR 88 - 250 MICRON or similar approved)
C132: For the following diameters:
A134: PS7-B1.3.1 | C134: 100mm | D134: m | E134: 5 | G134: =E134*F134 -> 0.00
A136: PS7-B1.3.2 | C136: 150mm | D136: m | E136: 20 | G136: 0.00
A138: PS7-B1.3.3 | C138: 300mm | D138: m | E138: 10 | G138: 0.00
A140: PS7-B1.4 | C140: Replacement of all nuts, bolts and gaskets
C142: For following flanges (SANS 1123, Grade 8.8 Bolts and Nuts):
A144: TOTAL CARREID FORWARD | G144: =SUM(G64:G143) -> 27,500.00
A145: TOTAL BROUGHT FORWARD | G145: =G144 -> 27,500.00
A147: PS7-B1.4.1 | C147: 100mm | D147: No | E147: 25 | G147: =E147*F147 -> 0.00
A149: PS7-B1.4.2 | C149: 150mm | D149: No | E149: 20 | G149: 0.00
C151: 300mm | D151: No | E151: 7 | G151: 0.00
A153: PS7-B1.5 | C153: Provisional items
A155: PS7-B1.5.1 | C155: Replacement of existing pipework | D155: Prov Sum | E155: 1 | F155: 40,000.00 | G155: =E155*F155 -> 40,000.00
A157: PS7-B1.5.2 | C157: Overheads, charges and profit on subitem B1.5.1 above | D157: % | E157: =F155 -> 40,000.00 | G157: 0.00
A159: PS7-B2 | C159: PUMPS AND MOTORS:
C161: Specifications Fluid: Potable Water:
C163: Pump No. 1 & 2:
A165: PS7-B2.1 | C165: De-install existing pump sets | D165: No | E165: 2 | G165: =E165*F165 -> 0.00
A167: PS7-B2.2 | C167: Transport to Agent/Manufactures workshop for conditional assessment and back to storeroom of Municipality | D167: Sum | E167: 1 | G167: 0.00
A169: PS7-B2.3 | C169: Refurbishment works required on pump sets for spare parts | D169: Prov Sum | E169: 1 | F169: 15,000.00 | G169: 15,000.00
A171: PS7-B2.4 | C171: Overheads, charges and profit on subitem B2.3 above | D171: % | E171: =F169 -> 15,000.00 | G171: 0.00
A173: PS7-B2.5 | C173: Prepare G.A Drawings for pump sets and pipework | D173: Sum | E173: 1 | G173: 0.00
A175: PS7-B2.6 | C175: Supply and deliver new pump sets (including baseplates, anchor rods, bolts and all fittings required) | D175: No | E175: 2 | G175: 0.00
A177: PS7-B2.7 | C177: Install new pump set (Pump, Motor and Baseplate) | D177: No | E177: 2 | G177: 0.00
A179: PS7-B2.8 | C179: Commissioning of pump set and O&M Manuals | D179: No | E179: 2 | G179: 0.00
A181: PS7-B3 | B181: SANS 1200 LK | C181: Valves
A183: PS7-B3.1 | C183: De-install and remove existing valves | D183: Sum | E183: 1 | G183: =E183*F183 -> 0.00
A185: PS7-B3.2 | C185: Supply and deliver valves (Flangend drilling of valves to be confirmed on site):
C187: Suction:
C189: Flanged RSV Gate Valve:
A191: PS7-B3.2.1 | C191: DN 150mm PN10 (AVK or similar approved) | D191: No | E191: 2 | G191: =E191*F191 -> 0.00
C193: Delivery:
C195: Flanged RSV Gate Valve:
A197: PS7-B3.2.2 | C197: DN 100mm PN16 (AVK or similar approved) | D197: No | E197: 2 | G197: =E197*F197 -> 0.00
C199: Ball Check Valve
A201: PS7-B3.2.3 | C201: DN 100mm PN16 (AVK or similar approved) | D201: No | E201: 2 | G201: =E201*F201 -> 0.00
C203: Air-Valves:
A205: PS7-B3.2.4 | C205: DN 50mm PN16 (RPS - Vent-O-Mat or similar approved) Including: a) Riser Flange b) Ball valve c) Bolts, nuts etc. | D205: No | E205: 1 | G205: =E205*F205 -> 0.00
C207: Pressure Sustaining Valve:
A209: PS7-B3.2.5 | C209: DN 150mm PN16 (Bermad or similar approved) | D209: No | E209: 1 | G209: =E209*F209 -> 0.00
C210: Level Control Valve:
A212: PS7-B3.2.6 | C212: DN 150mm PN10 Level Control Valve (AVK or similar approved) | D212: No | E212: 1 | G212: =E212*F212 -> 0.00
C214: Water meter/Flow meter:
A216: PS7-B3.2.7 | C216: DN150mm Optiflux 2000 OIML R49 Class 1 (KROHNE or similar approved) | D216: No | E216: 1 | G216: =E216*F216 -> 0.00
C218: Pressure Gauges
A220: PS7-B3.2.8 | C220: Supply, deliver and install 16 bar pressure gauges (2 x suction, 2 x delivery) | D220: No | E220: 4 | G220: =E220*F220 -> 0.00
C222: Install
A224: PS7-B3.2.9 | C224: Flanged RSV Gate Valve - Suction | D224: No | E224: 2 | G224: =E224*F224 -> 0.00
A226: TOTAL CARREID FORWARD | G226: =SUM(G145:G225) -> 82,500.00
A227: TOTAL BROUGHT FORWARD | G227: =G226 -> 82,500.00
A229: PS7-B3.2.10 | C229: Flanged RSV Gate Valve - Delivery | D229: No | E229: 2 | G229: =E229*F229 -> 0.00
A231: PS7-B3.2.11 | C231: Ball Check Valve | D231: No | E231: 2 | G231: 0.00
A233: PS7-B3.2.12 | C233: Air-Valves | D233: No | E233: 1 | G233: 0.00
A235: PS7-B3.2.13 | C235: Pressure Sustaining Valve | D235: No | E235: 1 | G235: 0.00
A237: PS7-B3.2.15 | C237: Level control valve | D237: No | E237: 1 | G237: 0.00
A239: PS7-B3.2.14 | C239: Water meter/Flow meter: | D239: No | E239: 1 | G239: 0.00
A241: PS7-B4 | C241: LIFTING EQUIPMENT
A243: PS7-B4.1 | C243: Prepare G.A drawing(s) for pump station lifting equipment | D243: Sum | E243: 1 | G243: =E243*F243 -> 0.00
A245: PS7-B4.2 | C245: Manufacture, supply, install and deliver PS lifting equipment - 1 Ton chain block and roller | D245: Sum | E245: 1 | G245: 0.00
A247: PS7-B4.3 | C247: Install lifting equipment | D247: Sum | E247: 1 | G247: 0.00
A249: PS7-B4.4 | C249: Commission lifting equipment | D249: Sum | E249: 1 | G249: 0.00
A251: PS7-C | C251: SECTION C: ELECTRICAL REFURBISHMENT
A253: PS7-C1 | C253: Main Control Consol (MCC):
A255: PS7-C1.1 | C255: De-install, remove and store existing MCC panel | D255: Sum | E255: 1 | G255: =E255*F255 -> 0.00
A257: PS7-C1.2 | C257: Prepare the G.A Drawing (s), Schematic and single line diagrams, and load list for the MCC panel | D257: Sum | E257: 1 | G257: 0.00
A259: PS7-C1.3 | C259: Manufacture, supply, store and deliver the MCC panel | D259: Sum | E259: 1 | G259: 0.00
A261: PS7-C1.4 | C261: Install and terminate the MCC panel | D261: Sum | E261: 1 | G261: 0.00
A263: PS7-C1.5 | C263: Commission the MCC panel | D263: Sum | E263: 1 | G263: 0.00
A265: PS7-C2 | C265: Pressure Transmitter:
A267: PS7-C2.1 | C267: Manufacture and Supply 0-16 bar Pressure Transmitter (4-20 mA 1/4" process connector). | D267: No | E267: 1 | G267: =E267*F267 -> 0.00
A269: PS7-C2.2 | C269: Install Pressure Transmitter | D269: Sum | E269: 1 | G269: 0.00
A271: PS7-C2.3 | C271: Commissioning | D271: Sum | E271: 1 | G271: 0.00
A273: PS7-C3 | C273: Existing cables:
A275: PS7-C3.1 | C275: Fault finding on existing cables | D275: Sum | E275: 1 | G275: =E275*F275 -> 0.00
A277: PS7-C3.2 | C277: Prepare assessment report and recommendation | D277: Sum | E277: 1 | G277: 0.00
A279: PS7-C3.3 | C279: Provision for material and installation of defective cables | D279: Prov Sum | E279: 1 | F279: 30,000.00 | G279: 30,000.00
A281: PS7-C3.4 | C281: Overheads, charges and profit on subitem C3.3 above | D281: % | E281: =F279 -> 30,000.00 | G281: 0.00
A283: PS7-C3.5 | C283: Commissioning and providing COC for installation | D283: Sum | E283: 1 | G283: 0.00
A285: TOTAL CARREID FORWARD TO SUMMARY PAGE | G285: =SUM(G227:G284) -> 112,500.00

Sheet 8 Masionokeng
A2: MALUTI-A-PHOFUNG LOCAL MUNICIPALITY
A3: APPOINTMENT OF A SERVICE PROVIDER: UPGRADING OF WATER PUMP STATION PHASE 1
A4: Contract No.: SCM/BID09/2023/24
A6: SCHEDULE PUMP STATION No 8: MASIONOKENG PUMP STATION (28°37'37.64"S, 28°51'25.75"E)
A8: ITEM | B8: PAYMENT CLAUSE | C8: DESCRIPTION | D8: UNIT | E8: QUANT. | F8: RATE | G8: AMOUNT
C10: SECTION A :CIVIL REFURBISHMENT
A12: PS8-A1 | B12: SANS 1200C | C12: SITE CLEARANCE
A14: PS8-A1.1 | B14: 8.3.1 | C14: Clear and grub vegetation and trees of girth up to 1,0m | D14: m² | E14: 400 | G14: =E14*F14 -> 0.00
A16: PS8-A2 | C16: Fencing:
A18: PS8-A2.2 | C18: Supply and install concrete fencing from stockpile. Including all materials and fasteners. | D18: m | E18: 25 | G18: =E18*F18 -> 0.00
A20: PS8-A2.3 | C20: Supply and install flat wrap for entire pump station perimeter. | D20: m | E20: 90 | G20: =E20*F20 -> 0.00
A22: PS8-A3 | B22: SANS 1200D | C22: EARTHWORKS
A24: PS8-A3.1 | C24: Locate, and excavate by hand in all material to expose existing services where ordered by the Engineer (provisional) | D24: m³ | E24: 15 | G24: =E24*F24 -> 0.00
A26: PS8-A3.2 | B26: 8.3.3 | C26: Restricted excavations:
C28: Excavate in all materials, and use for backfilling or embankments, or dispose:
A30: PS8-A3.3 | C30: Depth up to 1,0m | D30: m³ | E30: 10 | G30: =E30*F30 -> 0.00
A32: PS8-A3.4 | C32: Depth over 1,0m and up to 2,0m | D32: m³ | E32: 10 | G32: =E32*F32 -> 0.00
A34: PS8-A4 | B34: SANS 1200 G | C34: Concrete works
A36: PS8-A4.1 | C36: Demolish and remove existing concret plinths | D36: No | E36: 3 | G36: =E36*F36 -> 0.00
C38: Formwork:
C40: Smooth formwork:
B42: 8.2.2 | C42: Plane vertical
A44: PS8-A4.2 | C44: To plinths | D44: m² | E44: 5 | G44: =E44*F44 -> 0.00
B46: 8.3.1 | C46: High Tensile Steel:
A48: PS8-A4.3 | C48: Y12 | D48: t | E48: 0.2 | G48: =E48*F48 -> 0.00
C50: Mild Tensile Steel:
A52: PS8-A4.4 | C52: R10 | D52: t | E52: 0.2 | G52: =E52*F52 -> 0.00
B54: 8.4.3 | C54: Concrete Class 35/19 to:
A56: PS8-A4.5 | C56: Plinths | D56: m³ | E56: 2 | G56: =E56*F56 -> 0.00
B58: 8.4.4 | C58: Unformed surfaces:
C60: Steel float finish:
A62: PS8-A4.6 | C62: Plinth | D62: m² | E62: 5 | G62: =E62*F62 -> 0.00
A64: PS8-A5 | B64: PB | C64: BUILDING WORK REFURBISHMENT
B66: PB 8.2.20 | C66: Painting:
A68: PS8-A5.1 | C68: Interior Walls a) Pressure wash interior walls before any refurbishment work commence; b) Sand down interior walls; c) Remove all loose paint from structure; d) Apply interior paint primer (to be confirmed by supplier); e) Apply 2 coats of white interior paint (Emulsion paint) | D68: m² | E68: 130 | G68: =E68*F68 -> 0.00
A70: PS8-A5.2 | C70: Exterior Walls a) Pressure wash outside walls before any refurbishment work commence; b) Sand down all structure walls, including pillars & beams; c) Remove all loose paint from structure; d) Apply exterior paint primer (to be confirmed by supplier); e) Apply 2 coats of white exterior paint (Emulsion paint) | D70: m² | E70: 140 | G70: =E70*F70 -> 0.00
A72: PS8-A5.3 | C72: Burgular Bars: a) Sand down door and window frames; b) Remove loose paint; c) Apply paint primer (to be confirmed by supplier); d) Apply 2 coats of Enamel Paint (Plascon Enamel or similar approved) | D72: m² | E72: 5 | G72: =E72*F72 -> 0.00
A74: PS8-A5.4 | C74: Roof Trusses, Purlins and Brandering (span of 6.2m trusses) a) Sand down existing material; b) Remove loose paint & particles; c) Apply 2 coats of Duram Woodseal for roofs or similar approved | D74: No | E74: 6 | G74: =E74*F74 -> 0.00
A76: PS8-A5.5 | C76: Concrete Floors and 1m above floor level a) Pressure wash floors before any refurbishment work commence; b) Sand down existing epoxy and material; c) Remove loose particles; d) Apply epoxy primer (to be confirmed by supplier) e) Apply 3 layers of industrial epoxy paint (Sikagard) | D76: m² | E76: 40 | G76: =E76*F76 -> 0.00
A78: TOTAL CARREID FORWARD | G78: =SUM(G9:G77) -> 0.00
A79: TOTAL BROUGHT FORWARD | G79: =G78 -> 0.00
A81: PS8-A5.6 | C81: Steel Doors (Double doors) a) Pressure wash steel doors before any refurbishment work commence; b) Sand down existing doors; c) Remove loose paint; d) Apply paint primer (to be confirmed by supplier) e) Apply 2 coats of true black metal matt enamel (Dulux or similar approved) | D81: m² | E81: 12 | G81: =E81*F81 -> 0.00
A83: PS8-A5.7 | C83: Concrete plinths: a) Pressure wash floors before any refurbishment work commence; b) Sand down existing epoxy and material; c) Remove loose particles; d) Apply epoxy primer (to be confirmed by supplier) e) Apply 3 layers of industrial epoxy paint (Sikagard) | D83: m² | E83: 2.5 | G83: =E83*F83 -> 0.00
A85: PS8-A5.8 | C85: Steel Gantry: a) Pressure wash existing gantry before any refurbishment works commence; b) Sand down existing enamel paint; c) Remove loose particles; d) Apply primer (to be confirmed with Engineer before application) e) Apply industrial enamel paint (confirm with Engineer before application) | D85: m² | E85: 15 | G85: =E85*F85 -> 0.00
A87: PS8-A5 | B87: PB 8.2.17 | C87: Doors:
A89: PS8-A5.1 | C89: Removal of existing steel door (Break out of wall) | D89: No | E89: 1 | G89: =E89*F89 -> 0.00
A91: PS8-A5.2 | C91: Supply and install new (Including all required fittings etc.)
A93: PS8-A5.3 | C93: Transformer Door - Type DV (2438 x 1829mm) | D93: No | E93: 1 | G93: =E93*F93 -> 0.00
A95: PS8-A5.4 | C95: Supply, deliver and Installation of Burgular bars for double doors | D95: No | E95: 1 | G95: =E95*F95 -> 0.00
A97: PS8-A6 | B97: PB 8.2.21 | C97: General Electrical:
A99: PS8-A6.1 | C99: Refurbishment of general electrical items in existing building | D99: Prov Sum | E99: 1.00 | F99: 25,000.00 | G99: =E99*F99 -> 25,000.00
A101: PS8-A6.2 | C101: Overheads, charges and profit on subitem A6.1 above | D101: % | E101: =F99 -> 25,000.00 | G101: =E101*F101 -> 0.00
A103: PS8-A6.3 | C103: Refurbishment of existing cable racks | D103: Prov Sum | E103: 1.00 | F103: 20,000.00 | G103: =E103*F103 -> 20,000.00
A105: PS8-A6.4 | C105: Overheads, charges and profit on subitem A6.3 above | D105: % | E105: =F103 -> 20,000.00 | G105: =E105*F105 -> 0.00
A107: PS8-A7 | B107: SANS 1200 H | C107: Structural steelwork:
A109: PS8-A7.1 | C109: 19x102x25mm deep Fibreglass moulded grating, complete with cast in EZ Embedment Angle to cover openings (Fibregrate or similar approved). | D109: m² | E109: 15 | G109: =E109*F109 -> 0.00
C111: SECTION B: MECHANICAL REFURBISHMENT
A113: PS8-B1 | C113: PIPEWORK:
A115: PS8-B1.1 | C115: Deinstall and remove existing pipework | D115: Sum | E115: 1 | G115: =E115*F115 -> 0.00
A117: PS8-B2 | C117: Pipework:
C119: Material: a) Fabrication according to SANS 719: 1971 Grade B with 1600kPa working pressure (4.5mm thickness) b) Sand blasted according to SA055900 SIS 2 1/2 Finish c) Coating to be "Copon KSIR 88"or similar approved product to a thickness of 250 Micron
A121: PS8-B2.1 | C121: 150mm | D121: m | E121: 12 | G121: =E121*F121 -> 0.00
A123: PS8-B2.2 | C123: 200mm | D123: m | E123: 12 | G123: =E123*F123 -> 0.00
A125: PS8-B2.3 | C125: 400mm | D125: m | E125: 8 | G125: =E125*F125 -> 0.00
A127: PS8-B3 | C127: Flanges:
C129: Material: a) Thickness and drilling according to SANS 1123 Table 1600/3
A131: PS8-B3.1 | C131: 150mm | D131: No | E131: 10 | G131: =E131*F131 -> 0.00
A133: PS8-B3.2 | C133: 200mm | D133: No | E133: 5 | G133: =E133*F133 -> 0.00
A135: PS8-B3.3 | C135: 400mm | D135: No | E135: 6 | G135: =E135*F135 -> 0.00
A137: PS8-B4 | C137: Specials (Including all flanges) Material specifications as per pipes and flanges above:
A139: PS8-B4.1 | C139: 150mm - 90° bend | D139: No | E139: 6 | G139: =E139*F139 -> 0.00
A141: PS8-B4.2 | C141: 150mm - 22.5° bend | D141: No | E141: 4 | G141: =E141*F141 -> 0.00
C143: Reducers
A145: PS8-B4.3 | C145: 80 - 150mm | D145: No | E145: 4 | G145: =E145*F145 -> 0.00
A147: PS8-B4.4 | C147: 200-400mm | D147: No | E147: 4 | G147: =E147*F147 -> 0.00
A149: TOTAL CARREID FORWARD | G149: =SUM(G79:G148) -> 45,000.00
A150: TOTAL BROUGHT FORWARD | G150: =G149 -> 45,000.00
A152: PS8-B4.5 | C152: T-Pieces (400-400mm) | D152: No | E152: 2 | G152: =E152*F152 -> 0.00
A154: PS8-B4.6 | C154: Install pipework (Grade 8.8 bolts, nuts, washers and Gaskets) | D154: Sum | E154: 1 | G154: =E154*F154 -> 0.00
A156: PS8-B4.7 | C156: Commission pipework | D156: Sum | E156: 1 | G156: =E156*F156 -> 0.00
A158: PS8-B5 | C158: Pipe brackets:
C160: For 150mm pipes:
C162: For heights between:
A164: PS8-B5.1 | C164: 0.5 - 1m | D164: No | E164: 4 | G164: =E164*F164 -> 0.00
A166: PS8-B6 | C166: PUMPS AND MOTORS:
C168: Specifications Fluid: Potable Water:
C170: Pump No. 1 & 2:
A172: PS8-B6.1 | C172: De-install existing pump sets | D172: No | E172: 2 | G172: =E172*F172 -> 0.00
A174: PS8-B6.2 | C174: Transport to Agent/Manufactures workshop for conditional assessment and back to storeroom of Municipality | D174: Sum | E174: 1 | G174: =E174*F174 -> 0.00
A176: PS8-B6.3 | C176: Refurbishment works required on pump sets for spare parts | D176: Prov Sum | E176: 1 | F176: 15,000.00 | G176: =E176*F176 -> 15,000.00
A178: PS8-B6.4 | C178: Overheads, charges and profit on subitem B2.3 above | D178: % | E178: =F176 -> 15,000.00 | G178: =E178*F178 -> 0.00
A180: PS8-B6.5 | C180: Prepare G.A Drawings for pump sets and pipework | D180: Sum | E180: 1 | G180: =E180*F180 -> 0.00
A182: PS8-B6.6 | C182: Supply and deliver new pump sets (including baseplates, anchor rods, bolts and all fittings required) | D182: No | E182: 2 | G182: =E182*F182 -> 0.00
A184: PS8-B6.7 | C184: Install new pump set (Pump, Motor and Baseplate) | D184: No | E184: 2 | G184: =E184*F184 -> 0.00
A186: PS8-B6.8 | C186: Commissioning of pump set and O&M Manuals | D186: No | E186: 2 | G186: =E186*F186 -> 0.00
A189: PS8-B7 | B189: SANS 1200 LK | C189: Valves
A191: PS8-B7.1 | C191: De-install and remove existing valves | D191: Sum | E191: 1 | G191: =E191*F191 -> 0.00
C193: Supply and deliver valves
C195: Suction:
C197: Flanged RSV Gate Valve:
A199: PS8-B7.2 | C199: DN 200mm PN10 (AVK or similar approved) | D199: No | E199: 2 | G199: =E199*F199 -> 0.00
C201: Delivery:
C203: Flanged RSV Gate Valve:
A205: PS8-B7.3 | C205: DN 150mm PN16 (AVK or similar approved) | D205: No | E205: 2 | G205: =E205*F205 -> 0.00
C207: Ball Check Valve
A209: PS8-B7.4 | C209: DN 150mm PN16 (AVK or similar approved) | D209: No | E209: 2 | G209: =E209*F209 -> 0.00
C211: Air-Valves:
A213: PS8-B7.5 | C213: DN 50mm PN16 (RPS - Vent-O-Mat or similar approved) Including: a) Riser Flange b) Ball valve c) Bolts, nuts etc. | D213: No | E213: 1 | G213: =E213*F213 -> 0.00
C215: Pressure Sustaining Valve:
A217: PS8-B7.6 | C217: DN 150mm PN16 (Bermad or similar approved) | D217: No | E217: 1 | G217: =E217*F217 -> 0.00
C219: Level Control Valve:
A221: PS8-B7.7 | C221: DN 150mm PN10 Level Control Valve (AVK or similar approved) | D221: No | E221: 1 | G221: =E221*F221 -> 0.00
C223: Water meter/Flow meter:
A225: PS8-B7.8 | C225: DN100 Optiflux 2000 OIML R49 Class 1 9KROHNE or similar approved) | D225: No | E225: 1 | G225: =E225*F225 -> 0.00
C227: Pressure Gauges
A229: PS8-B7.9 | C229: Supply, deliver and install 16 bar pressure gauges (2 x suction, 2 x delivery) | D229: No | E229: 4 | G229: =E229*F229 -> 0.00
A231: TOTAL CARREID FORWARD | G231: =SUM(G150:G230) -> 60,000.00
A232: TOTAL BROUGHT FORWARD | G232: =G231 -> 60,000.00
C234: Install
A236: PS8-B7.10 | C236: Flanged RSV Gate Valve - Suction | D236: No | E236: 2 | G236: =E236*F236 -> 0.00
A238: PS8-B7.11 | C238: Flanged RSV Gate Valve - Delivery | D238: No | E238: 2 | G238: =E238*F238 -> 0.00
A240: PS8-B7.12 | C240: Ball Check Valve | D240: No | E240: 2 | G240: =E240*F240 -> 0.00
A242: PS8-B7.13 | C242: Air-Valves | D242: No | E242: 2 | G242: =E242*F242 -> 0.00
A244: PS8-B7.14 | C244: Pressure Sustaining Valve | D244: No | E244: 1 | G244: =E244*F244 -> 0.00
A246: PS8-B7.15 | C246: Level control valve | D246: No | E246: 1 | G246: =E246*F246 -> 0.00
A248: PS8-B7.16 | C248: Water meter/Flow meter: | D248: No | E248: 1 | G248: =E248*F248 -> 0.00
A250: PS8-B8 | C250: LIFTING EQUIPMENT
A252: PS8-B8.1 | C252: Prepare G.A drawing(s) for pump station lifting equipment | D252: Sum | E252: 1 | G252: =E252*F252 -> 0.00
A254: PS8-B8.2 | C254: Manufacture, supply, install and deliver PS lifting equipment - 1 Ton chain block and roller | D254: Sum | E254: 1 | G254: =E254*F254 -> 0.00
A256: PS8-B8.3 | C256: Install lifting equipment | D256: Sum | E256: 1 | G256: =E256*F256 -> 0.00
A258: PS8-B8.4 | C258: Commission lifting equipment | D258: Sum | E258: 1 | G258: =E258*F258 -> 0.00
A260: PS8-C | C260: SECTION C: ELECTRICAL REFURBISHMENT
A262: PS8-C1 | C262: Main Control Consol (MCC):
A264: PS8-C1.1 | C264: De-install, remove and store existing MCC panel | D264: Sum | E264: 1 | G264: =E264*F264 -> 0.00
A266: PS8-C1.2 | C266: Prepare the G.A Drawing (s), Schematic and single line diagrams, and load list for the MCC panel | D266: Sum | E266: 1 | G266: =E266*F266 -> 0.00
A268: PS8-C1.3 | C268: Manufacture, supply, store and deliver the MCC panel | D268: Sum | E268: 1 | G268: =E268*F268 -> 0.00
A270: PS8-C1.4 | C270: Install and terminate the MCC panel | D270: Sum | E270: 1 | G270: =E270*F270 -> 0.00
A272: PS8-C1.5 | C272: Commission the MCC panel | D272: Sum | E272: 1 | G272: =E272*F272 -> 0.00
A274: PS8-C2 | C274: Pressure Transmitter:
A276: PS8-C2.1 | C276: Manufacture and Supply 0-16 bar Pressure Transmitter (4-20 mA 1/4" process connector). | D276: No | E276: 1 | G276: =E276*F276 -> 0.00
A278: PS8-C2.2 | C278: Install Pressure Transmitter | D278: Sum | E278: 1 | G278: =E278*F278 -> 0.00
A280: PS8-C2.3 | C280: Commissioning | D280: Sum | E280: 1 | G280: =E280*F280 -> 0.00
A282: PS8-C3 | C282: Existing cables:
A284: PS8-C3.1 | C284: Fault finding on existing cables | D284: Sum | E284: 1 | G284: =E284*F284 -> 0.00
A286: PS8-C3.2 | C286: Prepare assessment report and recommendation | D286: Sum | E286: 1 | G286: =E286*F286 -> 0.00
A288: PS8-C3.3 | C288: Provision for material and installation of defective cables | D288: Prov Sum | E288: 1 | F288: 30,000.00 | G288: =E288*F288 -> 30,000.00
A290: PS8-C3.4 | C290: Overheads, charges and profit on subitem C3.3 above | D290: % | E290: =F288 -> 30,000.00 | G290: =E290*F290 -> 0.00
A292: PS8-C3.5 | C292: Commissioning and providing COC for installation | D292: Sum | E292: 1 | G292: =E292*F292 -> 0.00
A294: PS8-C4 | C294: Level/Control Equipment:
A296: PS8-C4.1 | C296: De-install, removal and discard of existing ball level indicators | D296: Sum | E296: 1 | G296: =E296*F296 -> 0.00
A298: PS8-C4.2 | C298: Supply, deliver and store level probes Specifications: a) APS - 3C or similar approved b) 3 - Probes (Common, low and high) c) Depths to be confirmed on site | D298: Sum | E298: 1 | G298: =E298*F298 -> 0.00
A300: PS8-C4.3 | C300: Installation of level probes | D300: Sum | E300: 1 | G300: =E300*F300 -> 0.00
A302: PS8-C4.4 | C302: Commission of level probes | D302: Sum | E302: 1 | G302: =E302*F302 -> 0.00
A304: PS8-C5 | C304: Main power supply
A306: PS8-C5.1 | C306: Fault finding on existing supply cables | D306: Sum | E306: 1 | G306: =E306*F306 -> 0.00
A308: PS8-C5.2 | C308: Prepare assessment report and recommendation | D308: Sum | E308: 1 | G308: =E308*F308 -> 0.00
A310: PS8-C5.3 | C310: Provision for material and installation of defective cables | D310: Prov Sum | E310: 1 | F310: 30,000.00 | G310: =E310*F310 -> 30,000.00
A312: PS8-C5.4 | C312: Overheads, charges and profit on subitem C3.3 above | D312: % | E312: =F310 -> 30,000.00 | G312: =E312*F312 -> 0.00
A314: PS8-C5.6 | C314: Commissioning and providing COC for installation | D314: Sum | E314: 1 | G314: =E314*F314 -> 0.00
A316: TOTAL CARREID FORWARD TO SUMMARY PAGE | G316: =SUM(G232:G315) -> 120,000.00

Sheet 9 Lejwaneng
A2: MALUTI-A-PHOFUNG LOCAL MUNICIPALITY
A3: APPOINTMENT OF A SERVICE PROVIDER: UPGRADING OF WATER PUMP STATION PHASE 1
A4: Contract No.: SCM/BID09/2023/24
A6: SCHEDULE PUMP STATION No 9: LEJWANENG PUMP STATION (28°33'32.36"S, 28°43'26.64"E)
A8: ITEM | B8: PAYMENT CLAUSE | C8: DESCRIPTION | D8: UNIT | E8: QUANT. | F8: RATE | G8: AMOUNT
C10: SECTION A :CIVIL REFURBISHMENT
A12: PS9-A1 | B12: SANS 1200C | C12: SITE CLEARANCE
A14: PS9-A1.1 | B14: 8.3.1 | C14: Clear and grub vegetation and trees of girth up to 1,0m | D14: m² | E14: 700 | G14: =E14*F14 -> 0.00
A16: PS9-A2 | C16: Fencing:
A18: PS9-A2.2 | C18: Supply and install concrete fencing from stockpile. Including all materials and fasteners. | D18: m | E18: 30 | G18: =E18*F18 -> 0.00
A20: PS9-A2.3 | C20: Supply and install flat wrap for entire pump station perimeter. | D20: m | E20: 100 | G20: 0.00
A22: PS9-A3 | B22: SANS 1200MJ | C22: SEGMENTED CONCRETE PAVING BLOCKS
C24: Paving
A26: PS9-A3.1 | C26: Cut to spoil 400mm deep excavation for paving and layerworks and compact base to 93% MOD-ASHTO | D26: m² | E26: 120 | G26: =E26*F26 -> 0.00
A28: PS9-A3.2 | C28: 150mm C4 Stabalised sub base layer compacted to 97% MOD-ASHTO | D28: m² | E28: 120 | G28: 0.00
A30: PS9-A3.3 | C30: 80mm Paving blocks including 20mm bedding sand layer | D30: m² | E30: 120 | G30: 0.00
A32: PS9-A3.5 | B32: SANS 1200ME 8.2.1 | C32: Supply and place pre-cast mountable concrete kerbing (Figure 8c pre-cast kerbing) | D32: m | E32: 60 | G32: 0.00
A34: PS9-A4 | B34: SANS 1200D | C34: EARTHWORKS
A36: PS9-A4.1 | C36: Locate, and excavate by hand in all material to expose existing services where ordered by the Engineer (provisional) | D36: m³ | E36: 15 | G36: =E36*F36 -> 0.00
A38: PS9-A4.2 | B38: 8.3.3 | C38: Restricted excavations:
C40: Excavate in all materials, and use for backfilling or embankments, or dispose:
A42: PS9-A4.3 | C42: Depth up to 1,0m | D42: m³ | E42: 10 | G42: =E42*F42 -> 0.00
A44: PS9-A4.4 | C44: Depth over 1,0m and up to 2,0m | D44: m³ | E44: 10 | G44: 0.00
A46: PS9-A5 | B46: PB | C46: BUILDING WORK REFURBISHMENT
B48: PB 8.2.20 | C48: Painting:
A50: PS9-A5.1 | C50: Interior Walls a) Pressure wash interior walls before any refurbishment work commence; b) Sand down interior walls; c) Remove all loose paint from structure; d) Apply interior paint primer (to be confirmed by supplier); e) Apply 2 coats of white interior paint (Emulsion paint) | D50: m² | E50: 90 | G50: =E50*F50 -> 0.00
A52: PS9-A5.2 | C52: Exterior Walls a) Pressure wash outside walls before any refurbishment work commence; b) Sand down all structure walls, including pillars & beams; c) Remove all loose paint from structure; d) Apply exterior paint primer (to be confirmed by supplier); e) Apply 2 coats of white exterior paint (Emulsion paint) | D52: m² | E52: 100 | G52: 0.00
A54: PS9-A5.3 | C54: Concrete Floors and 1m above floor level a) Pressure wash floors before any refurbishment work commence; b) Sand down existing epoxy and material; c) Remove loose particles; d) Apply epoxy primer (to be confirmed by supplier) e) Apply 3 layers of industrial epoxy paint (Sikagard) | D54: m² | E54: 30 | G54: 0.00
A56: PS9-A5.4 | C56: Roof Trusses, Purlins and Brandering (span of 6.2m trusses) a) Sand down existing material; b) Remove loose paint & particles; c) Apply 2 coats of Duram Woodseal for roofs or similar approved | D56: No | E56: 6 | G56: 0.00
A58: PS9-A5.5 | C58: Roofs a) Pressure wash roofs before any refurbishment work commence; b) Sand down existing roof material; c) Remove loose paint; d) Apply paint primer (to be confirmed by supplier) e) Apply 2 coats of exterior roof paint (Dulux roof guard or similar approved) | D58: m² | E58: 40 | G58: 0.00
A60: PS9-A5.6 | C60: Concrete plinths: a) Pressure wash floors before any refurbishment work commence; b) Sand down existing epoxy and material; c) Remove loose particles; d) Apply epoxy primer (to be confirmed by supplier) e) Apply 3 layers of industrial epoxy paint (Sikagard) | D60: m² | E60: 5 | G60: 0.00
A62: PS9-A5.7 | C62: Steel Gantry: a) Pressure wash existing gantry before any refurbishment works commence; b) Sand down existing enamel paint; c) Remove loose particles; d) Apply primer (to be confirmed with Engineer before application) e) Apply industrial enamel paint (confirm with Engineer before application) | D62: m² | E62: 30 | G62: 0.00
A63: TOTAL CARREID FORWARD | G63: =SUM(G9:G62) -> 0.00
A64: TOTAL BROUGHT FORWARD | G64: =G63 -> 0.00
A66: PS9-A6 | B66: PB 8.2.17 | C66: Doors:
A68: PS9-A6.1 | C68: Removal of existing steel door (Break out of wall) | D68: No | E68: 1 | G68: =E68*F68 -> 0.00
A70: PS9-A6.2 | C70: Supply and install new (Including all required fittings etc.)
A72: PS9-A6.3 | C72: Transformer Door - Type DV (2438 x 1829mm) | D72: No | E72: 1 | G72: =E72*F72 -> 0.00
A74: PS9-A6.4 | C74: Supply, deliver and Installation of Burgular bars for double doors | D74: No | E74: 1 | G74: 0.00
A76: PS9-A7 | B76: PB 8.2.21 | C76: General Electrical:
A78: PS9-A7.1 | C78: Refurbishment of general electrical items in existing building | D78: Prov Sum | E78: 1.00 | F78: 15,000.00 | G78: =E78*F78 -> 15,000.00
A80: PS9-A7.2 | C80: Overheads, charges and profit on subitem A6.1 above | D80: % | E80: =G78 -> 15,000.00 | G80: 0.00
A82: PS9-A7.3 | C82: Refurbishment of existing cable racks | D82: Prov Sum | E82: 1.00 | F82: 10,000.00 | G82: 10,000.00
A84: PS9-A7.4 | C84: Overheads, charges and profit on subitem A6.3 above | D84: % | E84: =G82 -> 10,000.00 | G84: 0.00
A86: PS9-A8 | B86: SANS 1200 H | C86: Structural steelwork:
A88: PS9-A8.1 | C88: 19x102x25mm deep Fibreglass moulded grating, complete with cast in EZ Embedment Angle to cover openings (Fibregrate or similar approved). | D88: m² | E88: 3 | G88: =E88*F88 -> 0.00
C90: SECTION B: MECHANICAL REFURBISHMENT
A92: PS9-B1 | C92: PIPEWORK:
A94: PS9-B1.1 | C94: De-install of existing pipework for all diameters up to including:
A96: PS9-B1.1.1 | C96: 150-200mm | D96: m | E96: 15 | G96: =E96*F96 -> 0.00
A98: PS9-B1.2 | C98: Confirm integrity of existing pipework:
C100: High pressure sand blasting of all existing pipework (including flanges)
C102: For the following diameters:
A104: PS9-B1.2.1 | C104: 150mm | D104: m | E104: 15 | G104: =E104*F104 -> 0.00
A106: PS9-B1.2.2 | C106: 200mm | D106: m | E106: 5 | G106: 0.00
A108: PS9-B1.2.2 | C108: Complete Non-destructive testing (NDT) on all existing pipework | D108: Sum | E108: 1 | G108: 0.00
A110: PS9-B1.3 | C110: Re-coating of pipework (COPON KSIR 88 - 250 MICRON or similar approved)
C112: For the following diameters:
A114: PS9-B1.3.1 | C114: 150mm | D114: m | E114: 15 | G114: =E114*F114 -> 0.00
A116: PS9-B1.3.2 | C116: 200mm | D116: m | E116: 5 | G116: 0.00
A118: PS9-B1.4 | C118: Replacement of all nuts, bolts and gaskets
C120: For following flanges (SANS 1123, Grade 8.8 Bolts and Nuts):
A122: PS9-B1.4.1 | C122: 150mm | D122: No | E122: 35 | G122: =E122*F122 -> 0.00
A124: PS9-B1.4.2 | C124: 200mm | D124: No | E124: 5 | G124: 0.00
A126: PS9-B1.5 | C126: Provisional items
A128: PS9-B1.5.1 | C128: Replacement of existing pipework | D128: Prov Sum | E128: 1.00 | F128: 25,000.00 | G128: =E128*F128 -> 25,000.00
A130: PS9-B1.5.2 | C130: Overheads, charges and profit on subitem B1.5.1 above | D130: % | E130: =G128 -> 25,000.00 | G130: =E130*F130 -> 0.00
A132: PS9-B1.6 | C132: Pipe brackets:
C134: For 150mm pipes:
C136: For heights between:
A138: PS9-B1.6.1 | C138: 0.5 - 1m | D138: No | E138: 2 | G138: =E138*F138 -> 0.00
A140: PS9-B1.6.2 | C140: 1-1.3m | D140: No | E140: 1 | G140: 0.00
A142: PS9-B2 | C142: PUMPS AND MOTORS:
C144: Specifications Fluid: Potable Water:
C146: Pump No. 1 & 2:
A148: PS9-B2.1 | C148: De-install existing pump sets | D148: No | E148: 2 | G148: =E148*F148 -> 0.00
A150: PS9-B2.2 | C150: Transport to Agent/Manufactures workshop for conditional assessment | D150: Sum | E150: 1 | G150: 0.00
A152: PS9-B2.3 | C152: Refurbishment works required on pump sets | D152: Prov Sum | E152: 1 | F152: 15,000.00 | G152: =E152*F152 -> 15,000.00
A153: TOTAL CARREID FORWARD | G153: =SUM(G64:G152) -> R65,000.00
A154: TOTAL BROUGHT FORWARD | G154: =G153 -> R65,000.00
A156: PS9-B2.4 | C156: Overheads, charges and profit on subitem B2.3 above | D156: % | E156: =G152 -> 15,000.00 | G156: =E156*F156 -> 0.00
A158: PS9-B2.5 | C158: Prepare G.A Drawings for pump sets and pipework | D158: Sum | E158: 1 | G158: =E158*F158 -> 0.00
A160: PS9-B2.6 | C160: Supply and deliver new pump sets (including baseplates, anchor rods, bolts and all fittings required) | D160: No | E160: 2 | G160: 0.00
A162: PS9-B2.7 | C162: Install new pump set (Pump, Motor and Baseplate) | D162: No | E162: 2 | G162: =E162*F162 -> 0.00
A164: PS9-B2.8 | C164: Commissioning of pump set and O&M Manuals | D164: No | E164: 2 | G164: 0.00
A166: PS9-B3 | B166: SANS 1200 LK | C166: Valves
A168: PS9-B3.1 | C168: De-install and remove existing valves | D168: Sum | E168: 1 | G168: =E168*F168 -> 0.00
A170: PS9-B3.2 | C170: Supply and deliver valves (Flangend drilling of valves to be confirmed on site):
C172: Suction:
C174: Flanged RSV Gate Valve:
A176: PS9-B3.2.1 | C176: DN 100mm PN10 (AVK or similar approved) | D176: No | E176: 2 | G176: =E176*F176 -> 0.00
C178: Delivery:
C180: Flanged RSV Gate Valve:
A182: PS9-B3.2.2 | C182: DN 80mm PN16 (AVK or similar approved) | D182: No | E182: 2 | G182: =E182*F182 -> 0.00
C184: Ball Check Valve
A186: PS9-B3.2.3 | C186: DN 80mm PN16 (AVK or similar approved) | D186: No | E186: 2 | G186: =E186*F186 -> 0.00
C188: Air-Valves:
A190: PS9-B3.2.4 | C190: DN 50mm PN16 (RPS - Vent-O-Mat or similar approved) Including: a) Riser Flange b) Ball valve c) Bolts, nuts etc. | D190: No | E190: 1 | G190: =E190*F190 -> 0.00
C192: Pressure Sustaining Valve:
A194: PS9-B3.2.5 | C194: DN 80mm PN16 (Bermad or similar approved) | D194: No | E194: 1 | G194: =E194*F194 -> 0.00
C196: Water meter/Flow meter:
A198: PS9-B3.2.6 | C198: DN80mm Optiflux 2000 OIML R49 Class 1 (KROHNE or similar approved) | D198: No | E198: 1 | G198: =E198*F198 -> 0.00
C200: Pressure Gauges
A202: PS9-B3.2.7 | C202: Supply, deliver and install 16 bar pressure gauges (2 x suction, 2 x delivery) | D202: No | E202: 2 | G202: =E202*F202 -> 0.00
C204: Install
A206: PS9-B3.2.8 | C206: Flanged RSV Gate Valve - Suction | D206: No | E206: 2 | G206: =E206*F206 -> 0.00
A208: PS9-B3.2.9 | C208: Flanged RSV Gate Valve - Delivery | D208: No | E208: 2 | G208: 0.00
A210: PS9-B3.2.10 | C210: Ball Check Valve | D210: No | E210: 2 | G210: 0.00
A212: PS9-B3.2.11 | C212: Air-Valves | D212: No | E212: 1 | G212: 0.00
A214: PS9-B3.2.12 | C214: Pressure Sustaining Valve | D214: No | E214: 1 | G214: 0.00
A216: PS9-B3.2.13 | C216: Water meter/Flow meter: | D216: No | E216: 1 | G216: 0.00
A218: PS9-B4 | C218: LIFTING EQUIPMENT
A220: PS9-B4.1 | C220: Prepare G.A drawing(s) for pump station lifting equipment | D220: Sum | E220: 1 | G220: =E220*F220 -> 0.00
A222: PS9-B4.2 | C222: Manufacture, supply, install and deliver PS lifting equipment - 1 Ton chain block and roller | D222: Sum | E222: 1 | G222: 0.00
A224: PS9-B4.3 | C224: Install lifting equipment | D224: Sum | E224: 1 | G224: 0.00
A226: PS9-B4.4 | C226: Commission lifting equipment | D226: Sum | E226: 1 | G226: 0.00
C228: SECTION C: ELECTRICAL REFURBISHMENT
A230: PS9-C1 | C230: Main Control Consol (MCC):
A232: PS9-C1.1 | C232: De-install, remove and store existing MCC panel | D232: Sum | E232: 1 | G232: =E232*F232 -> 0.00
A234: PS9-C1.2 | C234: Prepare the G.A Drawing (s), Schematic and single line diagrams, and load list for the MCC panel | D234: Sum | E234: 1 | G234: 0.00
A236: PS9-C1.3 | C236: Manufacture, supply, store and deliver the MCC panel | D236: Sum | E236: 1 | G236: 0.00
A237: TOTAL CARREID FORWARD | G237: =SUM(G154:G236) -> R65,000.00
A238: TOTAL BROUGHT FORWARD | G238: =G237 -> R65,000.00
A239: PS9-C1.4 | C239: Install and terminate the MCC panel | D239: Sum | E239: 1 | G239: =E239*F239 -> 0.00
A241: PS9-C1.5 | C241: Commission the MCC panel | D241: Sum | E241: 1 | G241: 0.00
A243: PS9-C2 | C243: Pressure Transmitter:
A245: PS9-C2.1 | C245: Manufacture and Supply 0-16 bar Pressure Transmitter (4-20 mA 1/4" process connector). | D245: No | E245: 1 | G245: =E245*F245 -> 0.00
A247: PS9-C2.2 | C247: Install Pressure Transmitter | D247: Sum | E247: 1 | G247: 0.00
A249: PS9-C2.3 | C249: Commissioning | D249: Sum | E249: 1 | G249: 0.00
A251: PS9-C3 | C251: Existing cables:
A253: PS9-C3.1 | C253: Fault finding on existing cables | D253: Sum | E253: 1 | G253: =E253*F253 -> 0.00
A255: PS9-C3.2 | C255: Prepare assessment report and recommendation | D255: Sum | E255: 1 | G255: 0.00
A257: PS9-C3.3 | C257: Provision for material and installation of defective cables | D257: Prov Sum | E257: 1 | F257: 30,000.00 | G257: 30,000.00
A259: PS9-C3.4 | C259: Overheads, charges and profit on subitem C3.3 above | D259: % | E259: =G257 -> 30,000.00 | G259: 0.00
A261: PS9-C3.5 | C261: Commissioning and providing COC for installation | D261: Sum | E261: 1 | G261: 0.00
A263: PS9-C4 | C263: Main power supply
A265: PS9-C4.1 | C265: Fault finding on existing supply cables | D265: Sum | E265: 1 | G265: =E265*F265 -> 0.00
A267: PS9-C4.2 | C267: Prepare assessment report and recommendation | D267: Sum | E267: 1 | G267: 0.00
A269: PS9-C4.3 | C269: Provision for material and installation of defective cables | D269: Prov Sum | E269: 1 | F269: 30,000.00 | G269: =E269*F269 -> 30,000.00
A271: PS9-C4.4 | C271: Overheads, charges and profit on subitem C3.3 above | D271: % | E271: =G269 -> 30,000.00 | G271: 0.00
A273: PS9-C4.5 | C273: Commissioning and providing COC for installation | D273: Sum | E273: 1 | G273: 0.00
A276: TOTAL CARREID FORWARD TO SUMMARY PAGE | G276: =SUM(G238:G275) -> R125,000.00

Sheet 10 Thabang
A2: MALUTI-A-PHOFUNG LOCAL MUNICIPALITY
A3: APPOINTMENT OF A SERVICE PROVIDER: UPGRADING OF WATER PUMP STATION PHASE 1
A4: Contract No.: SCM/BID09/2023/24
A6: SCHEDULE PUMP STATION No 10: THABANG PUMP STATION (28°33'32.36"S, 28°43'26.64"E)
A8: ITEM | B8: PAYMENT CLAUSE | C8: DESCRIPTION | D8: UNIT | E8: QUANT. | F8: RATE | G8: AMOUNT
C10: SECTION A :CIVIL REFURBISHMENT
A12: PS10-A1 | B12: SANS 1200C | C12: SITE CLEARANCE
A14: PS10-A1.1 | B14: 8.3.1 | C14: Clear and grub vegetation and trees of girth up to 1,0m | D14: m² | E14: 550 | G14: =E14*F14 -> 0.00
A16: PS10-A2 | C16: Fencing:
A18: PS10-A2.2 | C18: Supply and install concrete fencing from stockpile. Including all materials and fasteners. | D18: m | E18: 25 | G18: =E18*F18 -> 0.00
A20: PS10-A2.3 | C20: Supply and install flat wrap for entire pump station perimeter. | D20: m | E20: 100 | G20: 0.00
A22: PS10-A3 | B22: SANS 1200MJ | C22: SEGMENTED CONCRETE PAVING BLOCKS
C24: Paving
A26: PS10-A3.1 | C26: Cut to spoil 400mm deep excavation for paving and layerworks and compact base to 93% MOD-ASHTO | D26: m² | E26: 120 | G26: =E26*F26 -> 0.00
A28: PS10-A3.2 | C28: 150mm C4 Stabalised sub base layer compacted to 97% MOD-ASHTO | D28: m² | E28: 120 | G28: 0.00
A30: PS10-A3.3 | C30: 80mm Paving blocks including 20mm bedding sand layer | D30: m² | E30: 120 | G30: 0.00
A32: PS10-A3.5 | B32: SANS 1200ME 8.2.1 | C32: Supply and place pre-cast mountable concrete kerbing (Figure 8c pre-cast kerbing) | D32: m | E32: 60 | G32: 0.00
A34: PS10-A4 | B34: SANS 1200D | C34: EARTHWORKS
A36: PS10-A4.1 | C36: Locate, and excavate by hand in all material to expose existing services where ordered by the Engineer (provisional) | D36: m³ | E36: 10 | G36: =E36*F36 -> 0.00
A38: PS10-A4.2 | B38: 8.3.3 | C38: Restricted excavations:
C40: Excavate in all materials, and use for backfilling or embankments, or dispose:
A42: PS10-A4.3 | C42: Depth up to 1,0m | D42: m³ | E42: 10 | G42: =E42*F42 -> 0.00
A44: PS10-A4.4 | C44: Depth over 1,0m and up to 2,0m | D44: m³ | E44: 10 | G44: 0.00
A46: PS10-A5 | B46: SANS 1200 G | C46: Concrete works
A48: PS10-A5.1 | C48: Demolish and remove existing concret plinths | D48: No | E48: 2 | G48: =E48*F48 -> 0.00
C50: Formwork:
C52: Smooth formwork:
B54: 8.2.2 | C54: Plane vertical
A56: PS10-A5.2 | C56: To plinths | D56: m² | E56: 5 | G56: =E56*F56 -> 0.00
B58: 8.3.1 | C58: High Tensile Steel:
A60: PS10-A5.3 | C60: Y12 | D60: t | E60: 0.2 | G60: =E60*F60 -> 0.00
C62: Mild Tensile Steel:
A64: PS10-A5.4 | C64: R10 | D64: t | E64: 0.2 | G64: =E64*F64 -> 0.00
B66: 8.4.3 | C66: Concrete Class 35/19 to:
A68: PS10-A5.5 | C68: Plinths | D68: m³ | E68: 2 | G68: =E68*F68 -> 0.00
B70: 8.4.4 | C70: Unformed surfaces:
C72: Steel float finish:
A74: PS10-A5.6 | C74: Plinth | D74: m² | E74: 5 | G74: =E74*F74 -> 0.00
A76: PS10-A6 | B76: PB | C76: BUILDING WORK REFURBISHMENT
B78: PB 8.2.20 | C78: Painting:
A80: PS10-A6.1 | C80: Interior Walls a) Pressure wash interior walls before any refurbishment work commence; b) Sand down interior walls; c) Remove all loose paint from structure; d) Apply interior paint primer (to be confirmed by supplier); e) Apply 2 coats of white interior paint (Emulsion paint) | D80: m² | E80: 120 | G80: =E80*F80 -> 0.00
A82: PS10-A6.2 | C82: Exterior Walls a) Pressure wash outside walls before any refurbishment work commence; b) Sand down all structure walls, including pillars & beams; c) Remove all loose paint from structure; d) Apply exterior paint primer (to be confirmed by supplier); e) Apply 2 coats of white exterior paint (Emulsion paint) | D82: m² | E82: 130 | G82: 0.00
A85: TOTAL CARREID FORWARD | G85: =SUM(G9:G84) -> 0.00
A86: TOTAL BROUGHT FORWARD | G86: =G85 -> 0.00
A88: PS10-A6.3 | C88: Concrete Floors and 1m above floor level a) Pressure wash floors before any refurbishment work commence; b) Sand down existing epoxy and material; c) Remove loose particles; d) Apply epoxy primer (to be confirmed by supplier) e) Apply 3 layers of industrial epoxy paint (Sikagard) | D88: m² | E88: 30 | G88: =E88*F88 -> 0.00
A90: PS10-A6.4 | C90: Steel Gantry: a) Pressure wash existing gantry before any refurbishment works commence; b) Sand down existing enamel paint; c) Remove loose particles; d) Apply primer (to be confirmed with Engineer before application) e) Apply industrial enamel paint (confirm with Engineer before application) | D90: m² | E90: 15 | G90: 0.00
A92: PS10-A7 | B92: PB 8 | C92: Roof and Structural Timber:
A94: PS10-A7.1 | B94: 8.2.12 | C94: Refurbishment of Roofs a) Remove existing roof material and dispose at a verified site; b) Sand down rafts and purlins (on written instruction replace purlins and rafters); c) Apply exterior and interior wood varnish to rafts d) Install new roof material (chromadek galvanized steel sheets (Traffic Cone Green) or similar approved) | D94: m² | E94: 45 | G94: =E94*F94 -> 0.00
A96: PS10-A7.2 | B96: 8.2.11 | C96: Purlins 50 x 76 SAP | D96: m | E96: 45 | G96: =E96*F96 -> 0.00
A98: PS10-A7.3 | B98: 8.2.11 | C98: Brandering 38 x 38 SAP | D98: m² | E98: 42 | G98: =E98*F98 -> 0.00
B100: PB 8.2.13 | C100: Facia Boards and Gutters:
A102: PS10-A7.4 | C102: 225 x 12 mm F.C. fascia and barge boards | D102: m | E102: 30 | G102: =E102*F102 -> 0.00
A104: PS10-A7.5 | C104: 125 x 85 Colourbond aluminium gutters | D104: m | E104: 30 | G104: =E104*F104 -> 0.00
A106: PS10-A7.6 | C106: 80 x 55 Colourbond aluminium downpipes | D106: m | E106: 10 | G106: =E106*F106 -> 0.00
B108: PB 8.2.15 | C108: Ceilings:
A110: PS10-A7.7 | C110: Gypsum ceiling board | D110: m² | E110: 45 | G110: =E110*F110 -> 0.00
A112: PS10-A7.8 | C112: Cornice 75 mm | D112: m | E112: 25 | G112: 0.00
A114: PS10-A8 | B114: PB 8.2.17 | C114: Doors:
A116: PS10-A8.1 | C116: Removal of existing steel door (Break out of wall) | D116: No | E116: 1 | G116: =E116*F116 -> 0.00
A118: PS10-A8.2 | C118: Removal of existing burglar door | D118: No | E118: 1 | G118: 0.00
A120: PS10-A8.3 | C120: Supply and install new (Including all required fittings etc.)
A122: PS10-A8.4 | C122: Transformer Door - Type DV (2438 x 1829mm) | D122: No | E122: 1 | G122: =E122*F122 -> 0.00
A124: PS10-A8.5 | C124: Supply, deliver and Installation of Burgular bars for double doors | D124: No | E124: 1 | G124: 0.00
A126: PS10-A9 | B126: PB 8.2.21 | C126: General Electrical:
A128: PS10-A9.1 | C128: Refurbishment of general electrical items in existing building | D128: Prov Sum | E128: 1.00 | F128: 25,000.00 | G128: =E128*F128 -> 25,000.00
A130: PS10-A9.2 | C130: Overheads, charges and profit on subitem A9.1 above | D130: % | E130: =F128 -> 25,000.00 | G130: =E130*F130 -> 0.00
A132: PS10-A9.3 | C132: Refurbishment of existing cable racks | D132: Prov Sum | E132: 1.00 | F132: 20,000.00 | G132: =E132*F132 -> 20,000.00
A134: PS10-A9.4 | C134: Overheads, charges and profit on subitem A9.3 above | D134: % | E134: =F132 -> 20,000.00 | G134: =E134*F134 -> 0.00
A136: PS10-A10 | B136: SANS 1200 H | C136: Structural steelwork:
A138: PS10-A10.1 | C138: 19x102x25mm deep Fibreglass moulded grating, complete with cast in EZ Embedment Angle to cover openings (Fibregrate or similar approved). | D138: m² | E138: 6 | G138: =E138*F138 -> 0.00
C140: SECTION B: MECHANICAL REFURBISHMENT
A142: PS10-B1 | C142: PIPEWORK:
A144: PS10-B1.1 | C144: Deinstall and remove existing pipework
A146: PS10-B1.1.1 | C146: 50-200mm | D146: m | E146: 35 | G146: =E146*F146 -> 0.00
A148: PS10-B1.3 | C148: Manufacture, supply and store new pipework
A150: PS10-B2 | C150: Pipework:
C152: Material: a) Fabrication according to SANS 719: 1971 Grade B with 1600kPa working pressure (4.5mm thickness) b) Sand blasted according to SA055900 SIS 2 1/2 Finish c) Coating to be "Copon KSIR 88"or similar approved product to a thickness of 250 Micron
A154: PS10-B2.1 | C154: 100mm | D154: m | E154: 5 | G154: =E154*F154 -> 0.00
A156: TOTAL CARREID FORWARD | G156: =SUM(G86:G155) -> 45,000.00
A157: TOTAL BROUGHT FORWARD | G157: =G156 -> 45,000.00
A159: PS10-B2.2 | C159: 150mm | D159: m | E159: 12 | G159: =E159*F159 -> 0.00
A161: PS10-B2.3 | C161: 200mm | D161: m | E161: 12 | G161: =E161*F161 -> 0.00
C163: Flanges:
C165: Material: a) Thickness and drilling according to SANS 1123 Table 1600/3
A167: PS10-B2.4 | C167: 100mm | D167: No | E167: 5 | G167: =E167*F167 -> 0.00
A169: PS10-B2.5 | C169: 150mm | D169: No | E169: 25 | G169: =E169*F169 -> 0.00
A171: PS10-B2.6 | C171: 200mm | D171: No | E171: 30 | G171: =E171*F171 -> 0.00
C173: Specials (Including all flanges) Material specifications as per pipes and flanges above:
A175: PS10-B2.7 | C175: 150mm - 90° bend | D175: No | E175: 4 | G175: =E175*F175 -> 0.00
A177: PS10-B2.8 | C177: 150mm - 22.5° bend | D177: No | E177: 2 | G177: =E177*F177 -> 0.00
C179: Reducers
A181: PS10-B2.9 | C181: 80 - 150mm | D181: No | E181: 4 | G181: =E181*F181 -> 0.00
A183: PS10-B2.10 | C183: 150-200mm | D183: No | E183: 4 | G183: 0.00
A185: PS10-B2.11 | C185: T-Pieces (200-200mm) | D185: No | E185: 2 | G185: 0.00
A187: PS10-B2.12 | C187: Install pipework (Grade 8.8 bolts, nuts, washers and Gaskets) | D187: Sum | E187: 1 | G187: 0.00
A189: PS10-B2.13 | C189: Commission pipework | D189: Sum | E189: 1 | G189: 0.00
A191: PS10-B3 | C191: Pipe brackets:
C193: For 150mm pipes:
C195: For heights between:
A197: PS10-B3.1 | C197: 1-1.2m | D197: No | E197: 4 | G197: =E197*F197 -> 0.00
A199: PS10-B4 | C199: PUMPS AND MOTORS:
C201: Specifications Fluid: Potable Water:
C203: Pump No. 1 & 2:
A205: PS10-B4.1 | C205: De-install existing pump sets | D205: No | E205: 2 | G205: =E205*F205 -> 0.00
A207: PS10-B4.2 | C207: Transport to Agent/Manufactures workshop for conditional assessment and back to storeroom of Municipality | D207: Sum | E207: 1 | G207: 0.00
A209: PS10-B4.3 | C209: Refurbishment works required on pump sets for spare parts | D209: Prov Sum | E209: 1 | F209: 15,000.00 | G209: =E209*F209 -> 15,000.00
A211: PS10-B4.4 | C211: Overheads, charges and profit on subitem B4.3 above | D211: % | E211: =F209 -> 15,000.00 | G211: =E211*F211 -> 0.00
A213: PS10-B4.5 | C213: Prepare G.A Drawings for pump sets and pipework | D213: Sum | E213: 1 | G213: 0.00
A215: PS10-B4.6 | C215: Supply and deliver new pump sets (including baseplates, anchor rods, bolts and all fittings required) | D215: No | E215: 2 | G215: 0.00
A217: PS10-B4.7 | C217: Supply and deliver new submersible drainage pump (Including cabling and accecories) | D217: No | E217: 1 | G217: 0.00
A219: PS10-B4.8 | C219: Install new pump sets (Pump, Motor and Baseplate) | D219: No | E219: 2 | G219: 0.00
A221: PS10-B4.9 | C221: Install new submersible pump | D221: No | E221: 1 | G221: 0.00
A223: PS10-B4.10 | C223: Commissioning of submersible pump | D223: No | E223: 1 | G223: 0.00
A225: PS10-B4.11 | C225: Commissioning of pump set and O&M Manuals | D225: No | E225: 2 | G225: 0.00
A227: PS10-B5 | B227: SANS 1200 LK | C227: Valves
A229: PS10-B5.1 | C229: De-install and remove existing valves | D229: Sum | E229: 1 | G229: =E229*F229 -> 0.00
A231: PS10-B5.2 | C231: Supply and deliver valves
C233: Suction:
C235: Flanged RSV Gate Valve:
A237: PS10-B5.2.1 | C237: DN 200mm PN10 (AVK or similar approved) | D237: No | E237: 2 | G237: =E237*F237 -> 0.00
C239: Delivery:
A241: TOTAL CARREID FORWARD | G241: =SUM(G157:G240) -> 60,000.00
A242: TOTAL BROUGHT FORWARD | G242: =G241 -> 60,000.00
C244: Flanged RSV Gate Valve:
A246: PS10-B5.2.2 | C246: DN 150mm PN16 (AVK or similar approved) | D246: No | E246: 2 | G246: =E246*F246 -> 0.00
C248: Ball Check Valve
A250: PS10-B5.2.3 | C250: DN 150mm PN16 (AVK or similar approved) | D250: No | E250: 2 | G250: =E250*F250 -> 0.00
C252: Air-Valves:
A254: PS10-B5.2.4 | C254: DN 50mm PN16 RPS - Vent-O-Mat Including: a) Riser Flange b) Ball valve c) Bolts, nuts etc. | D254: No | E254: 1 | G254: =E254*F254 -> 0.00
C256: Pressure Sustaining Valve:
A258: PS10-B5.2.5 | C258: DN 150mm PN16 (Bermad or similar approved) | D258: No | E258: 1 | G258: =E258*F258 -> 0.00
C260: Water meter/Flow meter:
A262: PS10-B5.2.6 | C262: DN100 Optiflux 2000 OIML R49 Class 1 KROHNE | D262: No | E262: 1 | G262: =E262*F262 -> 0.00
C264: Pressure Gauges
A266: PS10-B5.2.7 | C266: Supply, deliver and install 16 bar pressure gauges (2 x suction, 2 x delivery) | D266: No | E266: 4 | G266: =E266*F266 -> 0.00
C268: Install
A270: PS10-B5.2.8 | C270: Flanged RSV Gate Valve - Suction | D270: No | E270: 2 | G270: =E270*F270 -> 0.00
A272: PS10-B5.2.9 | C272: Flanged RSV Gate Valve - Delivery | D272: No | E272: 2 | G272: 0.00
A274: PS10-B5.2.10 | C274: Ball Check Valve | D274: No | E274: 2 | G274: 0.00
A276: PS10-B5.2.11 | C276: Air-Valves | D276: No | E276: 1 | G276: 0.00
A278: PS10-B5.2.12 | C278: Pressure Sustaining Valve | D278: No | E278: 1 | G278: 0.00
A280: PS10-B5.2.13 | C280: Water meter/Flow meter: | D280: No | E280: 1 | G280: 0.00
A282: PS10-B6 | C282: LIFTING EQUIPMENT
A284: PS10-B6.1 | C284: Prepare G.A drawing(s) for pump station lifting equipment | D284: Sum | E284: 1 | G284: =E284*F284 -> 0.00
A286: PS10-B6.2 | C286: Manufacture, supply, install and deliver PS lifting equipment - 1 Ton chain block and roller | D286: Sum | E286: 1 | G286: =E286*F286 -> 0.00
A288: PS10-B6.3 | C288: Install lifting equipment | D288: Sum | E288: 1 | G288: =E288*F288 -> 0.00
A290: PS10-B6.4 | C290: Commission lifting equipment | D290: Sum | E290: 1 | G290: =E290*F290 -> 0.00
C292: SECTION C: ELECTRICAL REFURBISHMENT
A294: PS10-C1 | C294: Main Control Consol (MCC):
A296: PS10-C1.1 | C296: De-install, remove and store existing MCC panel | D296: Sum | E296: 1 | G296: =E296*F296 -> 0.00
A298: PS10-C1.2 | C298: Prepare the G.A Drawing (s), Schematic and single line diagrams, and load list for the MCC panel | D298: Sum | E298: 1 | G298: =E298*F298 -> 0.00
A300: PS10-C1.3 | C300: Manufacture, supply, store and deliver the MCC panel | D300: Sum | E300: 1 | G300: =E300*F300 -> 0.00
A302: PS10-C1.4 | C302: Install and terminate the MCC panel | D302: Sum | E302: 1 | G302: =E302*F302 -> 0.00
A304: PS10-C1.5 | C304: Commission the MCC panel | D304: Sum | E304: 1 | G304: 0.00
A306: PS10-C2 | C306: Pressure Transmitter:
A308: PS10-C2.1 | C308: Manufacture and Supply 0-16 bar Pressure Transmitter (4-20 mA 1/4" process connector). | D308: No | E308: 1 | G308: =E308*F308 -> 0.00
A310: PS10-C2.2 | C310: Install Pressure Transmitter | D310: Sum | E310: 1 | G310: =E310*F310 -> 0.00
A312: PS10-C2.3 | C312: Commissioning | D312: Sum | E312: 1 | G312: =E312*F312 -> 0.00
A314: PS10-C3 | C314: Existing cables:
A316: PS10-C3.1 | C316: Fault finding on existing cables | D316: Sum | E316: 1 | G316: =E316*F316 -> 0.00
A318: PS10-C3.2 | C318: Prepare assessment report and recommendation | D318: Sum | E318: 1 | G318: =E318*F318 -> 0.00
A320: PS10-C3.3 | C320: Provision for material and installation of defective cables | D320: Prov Sum | E320: 1 | F320: 50,000.00 | G320: =E320*F320 -> 50,000.00
A322: PS10-C3.4 | C322: Overheads, charges and profit on subitem C3.3 above | D322: % | E322: =F320 -> 50,000.00 | G322: =E322*F322 -> 0.00
A324: PS10-C3.5 | C324: Commissioning and providing COC for installation | D324: Sum | E324: 1 | G324: =E324*F324 -> 0.00
A326: TOTAL CARREID FORWARD | G326: =SUM(G242:G325) -> 110,000.00
A327: TOTAL BROUGHT FORWARD | G327: =G326 -> 110,000.00
A329: PS10-C4 | C329: Level/Control Equipment:
A331: PS10-C4.1 | C331: De-install, removal and discard of existing ball level indicators | D331: Sum | E331: 1 | G331: =E331*F331 -> 0.00
A333: PS10-C4.2 | C333: Supply, deliver and store level probes Specifications: a) APS - 3C or similar approved b) 3 - Probes (Common, low and high) c) Depths to be confirmed on site | D333: Sum | E333: 1 | G333: =E333*F333 -> 0.00
A335: PS10-C4.3 | C335: Installation of level probes | D335: Sum | E335: 1 | G335: =E335*F335 -> 0.00
A337: PS10-C4.4 | C337: Commission of level probes | D337: Sum | E337: 1 | G337: =E337*F337 -> 0.00
A339: PS10-C5 | C339: Main power supply
A341: PS10-C5.1 | C341: Fault finding on existing supply cables | D341: Sum | E341: 1 | G341: =F341*E341 -> 0.00
A343: PS10-C5.2 | C343: Prepare assessment report and recommendation | D343: Sum | E343: 1 | G343: =F343*E343 -> 0.00
A345: PS10-C5.3 | C345: Provision for material and installation of defective cables | D345: Prov Sum | E345: 1 | F345: 50,000.00 | G345: =F345*E345 -> 50,000.00
A347: PS10-C5.4 | C347: Overheads, charges and profit on subitem C3.3 above | D347: % | E347: =F345 -> 50,000.00 | G347: =F347*E347 -> 0.00
A349: PS10-C5.5 | C349: Commissioning and providing COC for installation | D349: Sum | E349: 1 | G349: =F349*E349 -> 0.00
A351: TOTAL CARREID FORWARD TO SUMMARY PAGE | G351: =SUM(G327:G350) -> 160,000.00

Sheet 11 Mangaung
A2: MALUTI-A-PHOFUNG LOCAL MUNICIPALITY
A3: APPOINTMENT OF A SERVICE PROVIDER: UPGRADING OF WATER PUMP STATION PHASE 1
A4: Contract No.: SCM/BID09/2023/24
A6: SCHEDULE PUMP STATION No 11: MANGAUNG PUMP STATION (28°33'32.36"S, 28°43'26.64"E)
A8: ITEM | B8: PAYMENT CLAUSE | C8: DESCRIPTION | D8: UNIT | E8: QUANT. | F8: RATE | G8: AMOUNT
C10: SECTION A :CIVIL REFURBISHMENT
A12: PS11-A1 | B12: SANS 1200C | C12: SITE CLEARANCE
A14: PS11-A1.1 | B14: 8.3.1 | C14: Clear and grub vegetation and trees of girth up to 1,0m | D14: m² | E14: 1500 | G14: =E14*F14 -> 0.00
A16: PS11-A2 | C16: Fencing:
A18: PS11-A2.1 | C18: Removal of existing concrete pallisade fencing and access gates and dispose of material at approved Municipal dumping site. | D18: m | E18: 250 | G18: =E18*F18 -> 0.00
A20: PS11-A2.2 | C20: Supply and install new Clear-Vu fencing 2,4m high including all materials and fasteners (or similar approved) | D20: m | E20: 250 | G20: =E20*F20 -> 0.00
A22: PS11-A2.3 | C22: Supply and install shark tooth "anti climb spikes". (Material to be approved by the Engineer before procurement) | D22: m | E22: 250 | G22: =E22*F22 -> 0.00
A24: PS11-A2.4 | C24: Galvanised steel access gates (double leaf, 2,4m high x 3,6m wide) | D24: No | E24: 1 | G24: =E24*F24 -> 0.00
A26: PS11-A2.5 | C26: Additional padlocks | D26: No | E26: 1 | G26: =E26*F26 -> 0.00
A28: PS11-A2.6 | C28: 150 x 200mm hand excavated trench for concrete beam under fencing | D28: m | E28: 260 | G28: 0.00
A30: PS11-A2.7 | C30: 150 x 200mm Concrete ground beam casted insitu with 15 MPa concrete. To include formwork, finishing, etc. | D30: m³ | E30: 10 | G30: 0.00
A32: PS11-A3 | B32: SANS 1200D | C32: EARTHWORKS
A34: PS11-A3.1 | C34: Locate, and excavate by hand in all material to expose existing services where ordered by the Engineer (provisional) | D34: m³ | E34: 30 | G34: =E34*F34 -> 0.00
A36: PS11-A3.2 | B36: 8.3.3 | C36: Restricted excavations:
C38: Excavate in all materials, and use for backfilling or embankments, or dispose:
A40: PS11-A3.3 | C40: Depth up to 1,0m | D40: m³ | E40: 20 | G40: =E40*F40 -> 0.00
A42: PS11-A3.4 | C42: Depth over 1,0m and up to 2,0m | D42: m³ | E42: 10 | G42: =E42*F42 -> 0.00
A44: PS11-A4 | B44: PB | C44: BUILDING WORK REFURBISHMENT
B46: PB 8.2.20 | C46: Painting:
A48: PS11-A4.1 | C48: Interior Walls a) Pressure wash interior walls before any refurbishment work commence; b) Sand down interior walls; c) Remove all loose paint from structure; d) Apply interior paint primer (to be confirmed by supplier); e) Apply 2 coats of white interior paint (Emulsion paint) | D48: m² | E48: 150 | G48: =E48*F48 -> 0.00
A50: PS11-A4.2 | C50: Exterior Walls a) Pressure wash outside walls before any refurbishment work commence; b) Sand down all structure walls, including pillars & beams; c) Remove all loose paint from structure; d) Apply exterior paint primer (to be confirmed by supplier); e) Apply 2 coats of white exterior paint (Emulsion paint) | D50: m² | E50: 95 | G50: =E50*F50 -> 0.00
A52: PS11-A4.3 | C52: Steel Doors (Double doors) a) Pressure wash steel doors before any refurbishment work commence; b) Sand down existing doors; c) Remove loose paint; d) Apply paint primer (to be confirmed by supplier) e) Apply 2 coats of true black metal matt enamel (Dulux or similar approved) | D52: m² | E52: 12 | G52: =E52*F52 -> 0.00
A54: PS11-A4.4 | C54: Burgular Bars: a) Sand down door and window frames; b) Remove loose paint; c) Apply paint primer (to be confirmed by supplier); d) Apply 2 coats of Enamel Paint (Plascon Enamel or similar approved) | D54: m² | E54: 5 | G54: 0.00
A56: PS11-A4.5 | C56: Concrete Floors and 1m above floor level a) Pressure wash floors before any refurbishment work commence; b) Sand down existing epoxy and material; c) Remove loose particles; d) Apply epoxy primer (to be confirmed by supplier) e) Apply 3 layers of industrial epoxy paint (Sikagard) | D56: m² | E56: 60 | G56: 0.00
A58: PS11-A4.6 | C58: Exterior Concrete Roofs a) Pressure wash roofs before any refurbishment work commence; b) Sand down existing roof material; c) Remove loose paint; d) Apply paint primer (to be confirmed by supplier) e) Apply 2 coats of exterior roof paint (Dulux roof guard or similar approved) | D58: m² | E58: 60 | G58: 0.00
A60: PS11-A4.7 | C60: Concrete plinths: a) Pressure wash floors before any refurbishment work commence; b) Sand down existing epoxy and material; c) Remove loose particles; d) Apply epoxy primer (to be confirmed by supplier) e) Apply 3 layers of industrial epoxy paint (Sikagard) | D60: m² | E60: 2.5 | G60: 0.00
A63: TOTAL CARREID FORWARD | G63: =SUM(G9:G62) -> 0.00
A64: TOTAL BROUGHT FORWARD | G64: =G63 -> 0.00
A66: PS11-A4.8 | C66: Steel Gantry: a) Pressure wash existing gantry before any refurbishment works commence; b) Sand down existing enamel paint; c) Remove loose particles; d) Apply primer (to be confirmed with Engineer before application) e) Apply industrial enamel paint (confirm with Engineer before application) | D66: m² | E66: 40 | G66: =E66*F66 -> 0.00
A68: PS11-A5 | B68: PB 8.2.21 | C68: General Electrical:
A70: PS11-A5.1 | C70: Refurbishment of general electrical items in existing building | D70: Prov Sum | E70: 1.00 | F70: 30,000.00 | G70: =E70*F70 -> 30,000.00
A72: PS11-A5.2 | C72: Overheads, charges and profit on subitem A6.1 above | D72: % | E72: =F70 -> 30,000.00 | G72: =E72*F72 -> 0.00
A74: PS11-A5.3 | C74: Refurbishment of existing cable racks | D74: Prov Sum | E74: 1.00 | F74: 15,000.00 | G74: =E74*F74 -> 15,000.00
A76: PS11-A5.4 | C76: Overheads, charges and profit on subitem A6.3 above | D76: % | E76: =F74 -> 15,000.00 | G76: =E76*F76 -> 0.00
A78: PS11-A6 | B78: SANS 1200 H | C78: Structural steelwork:
A80: PS11-A6.1 | C80: 19x102x25mm deep Fibreglass moulded grating, complete with cast in EZ Embedment Angle to cover openings (Fibregrate or similar approved). | D80: m² | E80: 10 | G80: =E80*F80 -> 0.00
A82: PS11-A6.2 | C82: 1.2m high Fibreglass safety hand rails (Fibregrate or similar approved) | D82: m | E82: 15 | G82: =E82*F82 -> 0.00
A84: PS11-B | C84: SECTION B: MECHANICAL REFURBISHMENT
A86: PS11-B1 | C86: PIPEWORK:
A88: PS11-B1.1 | C88: De-install of existing pipework for all diameters up to including:
A90: PS11-B1.1.1 | C90: 50- 150mm | D90: m | E90: 20 | G90: =E90*F90 -> 0.00
A92: PS11-B1.1.2 | C92: 150 - 200mm | D92: m | E92: 5 | G92: =E92*F92 -> 0.00
A94: PS11-B1.1.3 | C94: 200-250mm | D94: m | E94: 20 | G94: =E94*F94 -> 0.00
A96: PS11-B1.2 | C96: Confirm integrity of existing pipework:
C98: High pressure sand blasting of all existing pipework (including flanges)
C100: For the following diameters:
A102: PS11-B1.2.1 | C102: 80mm | D102: m | E102: 5 | G102: =E102*F102 -> 0.00
A104: PS11-B1.2.2 | C104: 100mm | D104: m | E104: 10 | G104: 0.00
A106: PS11-B1.2.3 | C106: 150mm | D106: m | E106: 6 | G106: 0.00
A108: PS11-B1.2.4 | C108: 200mm | D108: m | E108: 3 | G108: 0.00
A110: PS11-B1.2.5 | C110: 250mm | D110: m | E110: 20 | G110: 0.00
A112: PS11-B1.2.6 | C112: Complete Non-destructive testing (NDT) on all existing pipework | D112: Sum | E112: 1 | G112: 0.00
A114: PS11-B1.3 | C114: Re-coating of pipework (COPON KSIR 88 - 250 MICRON or similar approved)
C116: For the following diameters:
A118: PS11-B1.3.1 | C118: 80mm | D118: m | E118: 7 | G118: =E118*F118 -> 0.00
A120: PS11-B1.3.2 | C120: 100mm | D120: m | E120: 13 | G120: =E120*F120 -> 0.00
A122: PS11-B1.3.3 | C122: 150mm | D122: m | E122: 7 | G122: =E122*F122 -> 0.00
A124: PS11-B1.3.4 | C124: 200mm | D124: m | E124: 3 | G124: =E124*F124 -> 0.00
A126: PS11-B1.3.5 | C126: 250mm | D126: m | E126: 25 | G126: =E126*F126 -> 0.00
A128: PS11-B1.4 | C128: Replacement of all nuts, bolts and gaskets
C130: For following flanges (SANS 1123, Bolts and Nuts):
A132: PS11-B1.4.1 | C132: 100mm | D132: No | E132: 15 | G132: =E132*F132 -> 0.00
A134: PS11-B1.4.2 | C134: 150mm | D134: No | E134: 6 | G134: 0.00
A136: PS11-B1.4.3 | C136: 200mm | D136: No | E136: 4 | G136: 0.00
A138: PS11-B1.4.4 | C138: 250mm | D138: No | E138: 20 | G138: 0.00
A140: PS11-B1.5 | C140: Provisional items
A142: PS11-B1.5.1 | C142: Replacement of existing pipework | D142: Prov Sum | E142: 1.00 | F142: 75,000.00 | G142: =E142*F142 -> 75,000.00
A144: PS11-B1.5.2 | C144: Overheads, charges and profit on subitem B1.5.1 above | D144: % | E144: =F142 -> 75,000.00 | G144: =E144*F144 -> 0.00
A149: TOTAL CARREID FORWARD | G149: =SUM(G64:G148) -> 120,000.00
A150: TOTAL BROUGHT FORWARD | G150: =G149 -> 120,000.00
A152: PS11-B2 | C152: PUMPS AND MOTORS:
C154: Specifications Fluid: Potable Water:
C156: Pump No. 1, 2 & 3:
A158: PS11-B2.1 | C158: De-install existing pump sets | D158: No | E158: 3 | G158: =E158*F158 -> 0.00
A160: PS11-B2.2 | C160: Transport to Agent/Manufactures workshop for conditional assessment and back to storeroom of Municipality | D160: Sum | E160: 1 | G160: 0.00
A162: PS11-B2.3 | C162: Refurbishment works required on pump sets for spare parts | D162: Prov Sum | E162: 1 | F162: 15,000.00 | G162: 15,000.00
A164: PS11-B2.4 | C164: Overheads, charges and profit on subitem B2.3 above | D164: % | E164: =F162 -> 15,000.00 | G164: 0.00
A166: PS11-B2.5 | C166: Prepare G.A Drawings for pump sets and pipework | D166: Sum | E166: 1 | G166: 0.00
A168: PS11-B2.6 | C168: Supply and deliver new pump sets (including baseplates, anchor rods, bolts and all fittings required) | D168: No | E168: 3 | G168: 0.00
A170: PS11-B2.7 | C170: Install new pump set (Pump, Motor and Baseplate) | D170: No | E170: 3 | G170: 0.00
A172: PS11-B2.8 | C172: Commissioning of pump set and O&M Manuals | D172: No | E172: 3 | G172: 0.00
A174: PS11-B3 | B174: SANS 1200 LK | C174: Valves
A176: PS11-B3.1 | C176: De-install and remove existing valves | D176: Sum | E176: 1 | G176: =E176*F176 -> 0.00
A178: PS11-B3.2 | C178: Supply and deliver valves (Flangend drilling of valves to be confirmed on site):
C180: Flanged RSV Gate Valve:
A182: PS11-B3.2.1 | C182: 80mm RSV PN16 (AVK or similar approved) | D182: No | E182: 2 | G182: =E182*F182 -> 0.00
A184: PS11-B3.2.2 | C184: 100mm RSV PN16 (AVK or similar approved) | D184: No | E184: 2 | G184: 0.00
A186: PS11-B3.2.3 | C186: 150mm RSV PN16 (AVK or similar approved) | D186: No | E186: 2 | G186: 0.00
A188: PS11-B3.2.4 | C188: 200mm RSV PN16 (AVK or similar approved) | D188: No | E188: 2 | G188: 0.00
A190: PS11-B3.2.5 | C190: 250mm RSV PN16 (AVK or similar approved) | D190: No | E190: 6 | G190: 0.00
C192: Ball Check Valve
A194: PS11-B3.2.6 | C194: 80mm PN16 (AVK or similar approved) | D194: No | E194: 3 | G194: =E194*F194 -> 0.00
A196: PS11-B3.2.7 | C196: 100mm PN16 (AVK or similar approved) | D196: No | E196: 3 | G196: 0.00
A198: PS11-B3.2.8 | C198: 150mm PN16 (AVK or similar approved) | D198: No | E198: 3 | G198: 0.00
C200: Silent Check Valve:
A202: PS11-B3.2.9 | C202: 250mm PN16 (AVK or similar approved) | D202: No | E202: 1 | G202: =E202*F202 -> 0.00
C204: Air-Valves:
A206: PS11-B3.2.10 | C206: DN 50mm PN16 (RPS - Vent-O-Mat or similar approved) Including: a) Riser Flange b) Ball valve c) Bolts, nuts etc. | D206: No | E206: 2 | G206: =E206*F206 -> 0.00
C208: Pressure Sustaining Valve:
A210: PS11-B3.2.11 | C210: DN 150mm PN16 (Bermad or similar approved) | D210: No | E210: 2 | G210: =E210*F210 -> 0.00
C212: Level Control Valve:
A214: PS11-B3.2.12 | C214: DN 150mm PN10 Level Control Valve (AVK or similar approved) | D214: No | E214: 1 | G214: =E214*F214 -> 0.00
C216: Water meter/Flow meter:
A218: PS11-B3.2.13 | C218: DN150 Optiflux 2000 OIML R49 Class 1 (KROHNE or similar approved) | D218: No | E218: 2 | G218: =E218*F218 -> 0.00
C220: Pressure Gauges
A222: PS11-B3.2.14 | C222: Supply, deliver and install 16 bar pressure gauges (2 x suction, 2 x delivery) | D222: No | E222: 6 | G222: =E222*F222 -> 0.00
C224: Install
A226: PS11-B3.2.15 | C226: Flanged RSV Gate Valve: | D226: No | E226: 14 | G226: =E226*F226 -> 0.00
A228: PS11-B3.2.16 | C228: Ball Check Valve | D228: No | E228: 9 | G228: 0.00
A230: PS11-B3.2.17 | C230: Silent Check Valve: | D230: No | E230: 1 | G230: 0.00
A233: TOTAL CARREID FORWARD | G233: =SUM(G150:G232) -> 135,000.00
A234: TOTAL BROUGHT FORWARD | G234: =G233 -> 135,000.00
A236: PS11-B3.2.18 | C236: Air-Valves: | D236: No | E236: 2 | G236: =E236*F236 -> 0.00
A238: PS11-B3.2.19 | C238: Pressure Sustaining Valve: | D238: No | E238: 2 | G238: 0.00
A240: PS11-B3.2.20 | C240: Level Control Valve: | D240: No | E240: 1 | G240: 0.00
A242: PS11-B3.2.21 | C242: Water meter/Flow meter: | D242: No | E242: 2 | G242: 0.00
A244: PS11-B4 | C244: LIFTING EQUIPMENT
A246: PS11-B4.1 | C246: Prepare G.A drawing(s) for pump station lifting equipment | D246: Sum | E246: 1 | G246: =E246*F246 -> 0.00
A248: PS11-B4.2 | C248: Manufacture, supply, install and deliver PS lifting equipment - 1 Ton chain block and roller | D248: Sum | E248: 1 | G248: 0.00
A250: PS11-B4.3 | C250: Install lifting equipment | D250: Sum | E250: 1 | G250: 0.00
A252: PS11-B4.4 | C252: Commission lifting equipment | D252: Sum | E252: 1 | G252: 0.00
C254: SECTION C: ELECTRICAL REFURBISHMENT
A256: PS11-C1 | C256: Main Control Consol (MCC):
A258: PS11-C1.1 | C258: De-install, remove and store existing MCC panel | D258: Sum | E258: 1 | G258: =E258*F258 -> 0.00
A260: PS11-C1.2 | C260: Prepare the G.A Drawing (s), Schematic and single line diagrams, and load list for the MCC panel | D260: Sum | E260: 1 | G260: 0.00
A262: PS11-C1.3 | C262: Manufacture, supply, store and deliver the MCC panel | D262: Sum | E262: 1 | G262: 0.00
A264: PS11-C1.4 | C264: Install and terminate the MCC panel | D264: Sum | E264: 1 | G264: 0.00
A266: PS11-C1.5 | C266: Commission the MCC panel | D266: Sum | E266: 1 | G266: 0.00
A268: PS11-C2 | C268: Pressure Transmitter:
A270: PS11-C2.1 | C270: Manufacture and Supply 0-16 bar Pressure Transmitter (4-20 mA 1/4" process connector). | D270: No | E270: 2 | G270: =E270*F270 -> 0.00
A272: PS11-C2.2 | C272: Install Pressure Transmitter | D272: No | E272: 2 | G272: 0.00
A274: PS11-C2.3 | C274: Commissioning | D274: No | E274: 2 | G274: 0.00
A276: PS11-C3 | C276: Existing cables:
A278: PS11-C3.1 | C278: Fault finding on existing cables | D278: Sum | E278: 1 | G278: =E278*F278 -> 0.00
A280: PS11-C3.2 | C280: Prepare assessment report and recommendation | D280: Sum | E280: 1 | G280: 0.00
A282: PS11-C3.3 | C282: Provision for material and installation of defective cables | D282: Prov Sum | E282: 1 | F282: 45,000.00 | G282: 45,000.00
A284: PS11-C3.4 | C284: Overheads, charges and profit on subitem C3.3 above | D284: % | E284: =F282 -> 45,000.00 | G284: 0.00
A286: PS11-C3.5 | C286: Commissioning and providing COC for installation | D286: Sum | E286: 1 | G286: 0.00
A288: PS11-C4 | C288: Level/Control Equipment: | G288: 0.00
A290: PS11-C4.1 | C290: De-install, removal and discard of existing ball level indicators | D290: Sum | E290: 1 | G290: 0.00
A292: PS11-C4.2 | C292: Supply, deliver and store level probes Specifications: a) APS - 3C or similar approved b) 3 - Probes (Common, low and high) c) Depths to be confirmed on site | D292: Sum | E292: 1 | G292: 0.00
A294: PS11-C4.3 | C294: Installation of level probes | D294: Sum | E294: 1 | G294: 0.00
A296: PS11-C4.4 | C296: Commission of level probes | D296: Sum | E296: 1 | G296: 0.00
A298: PS11-C5 | C298: Main power supply
A300: PS11-C5.1 | C300: Fault finding on existing supply cables | D300: Sum | E300: 1 | G300: =E300*F300 -> 0.00
A302: PS11-C5.2 | C302: Prepare assessment report and recommendation | D302: Sum | E302: 1 | G302: 0.00
A304: PS11-C5.3 | C304: Provision for material and installation of defective cables | D304: Prov Sum | E304: 1 | F304: 30,000.00 | G304: 30,000.00
A306: PS11-C5.4 | C306: Overheads, charges and profit on subitem C3.3 above | D306: % | E306: =F304 -> 30,000.00 | G306: 0.00
A308: PS11-C5.5 | C308: Commissioning and providing COC for installation | D308: Sum | E308: 1 | G308: 0.00
A310: TOTAL CARREID FORWARD TO SUMMARY PAGE | G310: =SUM(G234:G309) -> 210,000.00

Sheet 12 Qoqolosing
A2: MALUTI-A-PHOFUNG LOCAL MUNICIPALITY
A3: APPOINTMENT OF A SERVICE PROVIDER: UPGRADING OF WATER PUMP STATION PHASE 1
A4: Contract No.: SCM/BID09/2023/24
A6: SCHEDULE PUMP STATION No 12: QOQOLOSING PUMP STATION (28°36'1.26"S, 28°53'32.03"E)
A8: ITEM | B8: PAYMENT CLAUSE | C8: DESCRIPTION | D8: UNIT | E8: QUANT. | F8: RATE | G8: AMOUNT
C10: SECTION A :CIVIL REFURBISHMENT
A12: PS12-A1 | B12: SANS 1200C | C12: SITE CLEARANCE
A14: PS12-A1.1 | B14: 8.3.1 | C14: Clear and grub vegetation and trees of girth up to 1,0m | D14: m² | E14: 500 | G14: =E14*F14 -> 0.00
A16: PS12-A2 | C16: Fencing:
A18: PS12-A2.2 | C18: Supply and install concrete fencing from stockpile. Including all materials and fasteners. | D18: m | E18: 25 | G18: =E18*F18 -> 0.00
A20: PS12-A2.3 | C20: Supply and install flat wrap for entire pump station perimeter. | D20: m | E20: 100 | G20: 0.00
A22: PS12-A3 | B22: SANS 1200D | C22: EARTHWORKS
A24: PS12-A3.1 | C24: Locate, and excavate by hand in all material to expose existing services where ordered by the Engineer (provisional) | D24: m³ | E24: 10 | G24: =E24*F24 -> 0.00
A26: PS12-A3.2 | B26: 8.3.3 | C26: Restricted excavations:
C28: Excavate in all materials, and use for backfilling or embankments, or dispose:
A30: PS12-A3.3 | C30: Depth up to 1,0m | D30: m³ | E30: 10 | G30: =E30*F30 -> 0.00
A32: PS12-A3.4 | C32: Depth over 1,0m and up to 2,0m | D32: m³ | E32: 10 | G32: 0.00
A34: PS12-A4 | B34: PB | C34: BUILDING WORK REFURBISHMENT
B36: PB 8.2.20 | C36: Painting:
A38: PS12-A4.1 | C38: Interior Walls a) Pressure wash interior walls before any refurbishment work commence; b) Sand down interior walls; c) Remove all loose paint from structure; d) Apply interior paint primer (to be confirmed by supplier); e) Apply 2 coats of white interior paint (Emulsion paint) | D38: m² | E38: 40 | G38: =E38*F38 -> 0.00
A40: PS12-A4.2 | C40: Burgular Bars: a) Sand down door and window frames; b) Remove loose paint; c) Apply paint primer (to be confirmed by supplier); d) Apply 2 coats of Enamel Paint (Plascon Enamel or similar approved) | D40: m² | E40: 5 | G40: 0.00
A42: PS12-A4.3 | C42: Concrete Floors and 1m above floor level a) Pressure wash floors before any refurbishment work commence; b) Sand down existing epoxy and material; c) Remove loose particles; d) Apply epoxy primer (to be confirmed by supplier) e) Apply 3 layers of industrial epoxy paint (Sikagard) | D42: m² | E42: 15 | G42: 0.00
A44: PS12-A4.4 | C44: Interior Concrete Roofs a) Pressure wash roofs before any refurbishment work commence; b) Sand down existing roof material; c) Remove loose paint; d) Apply paint primer (to be confirmed by supplier) e) Apply 2 coats of interior roof paint (Dulux roof guard or similar approved) | D44: m² | E44: 15 | G44: 0.00
A46: PS12-A4.5 | C46: Interior Concrete Roofs a) Pressure wash roofs before any refurbishment work commence; b) Sand down existing roof material; c) Remove loose paint; d) Apply paint primer (to be confirmed by supplier) e) Apply 2 coats of interior roof paint (Dulux roof guard or similar approved) | D46: m² | E46: 15 | G46: 0.00
A48: PS12-A4.6 | C48: Exterior Concrete Roofs a) Pressure wash roofs before any refurbishment work commence; b) Sand down existing roof material; c) Remove loose paint; d) Apply paint primer (to be confirmed by supplier) e) Apply 2 coats of exterior roof paint (Dulux roof guard or similar approved) | D48: m² | E48: 15 | G48: 0.00
A50: PS12-A4.7 | C50: Steel Doors (Double doors) a) Pressure wash steel doors before any refurbishment work commence; b) Sand down existing doors; c) Remove loose paint; d) Apply paint primer (to be confirmed by supplier) e) Apply 2 coats of true black metal matt enamel (Dulux or similar approved) | D50: m² | E50: 12 | G50: 0.00
A52: PS12-A4.8 | C52: Concrete plinths: a) Pressure wash floors before any refurbishment work commence; b) Sand down existing epoxy and material; c) Remove loose particles; d) Apply epoxy primer (to be confirmed by supplier) e) Apply 3 layers of industrial epoxy paint (Sikagard) | D52: m² | E52: 2.5 | G52: 0.00
A54: PS12-A5 | B54: PB 8.2.21 | C54: General Electrical:
H55: =F55*G55 -> 0.00
A56: PS12-A5.1 | C56: Refurbishment of general electrical items in existing building | D56: Prov Sum | E56: 1.00 | F56: 15,000.00 | G56: =E56*F56 -> 15,000.00
A58: PS12-A5.2 | C58: Overheads, charges and profit on subitem A6.1 above | D58: % | E58: =G56 -> 15,000.00 | G58: 0.00
A60: PS12-A5.3 | C60: Refurbishment of existing cable racks | D60: Prov Sum | E60: 1.00 | F60: 10,000.00 | G60: 10,000.00
A62: TOTAL CARREID FORWARD | G62: =SUM(G9:G61) -> 25,000.00
A63: TOTAL BROUGHT FORWARD | G63: =G62 -> 25,000.00
A65: PS12-A5.4 | C65: Overheads, charges and profit on subitem A6.3 above | D65: % | E65: =G60 -> 10,000.00 | G65: =E65*F65 -> 0.00
A67: PS12-A6 | B67: SANS 1200 H | C67: Structural steelwork:
C69: Complete supply, manufacturing, corrosion protection (Hot-dipped galvanized) and installation of structural steel gantry:
A71: PS12-A6.1 | C71: IPE 200 I-section beam, including end/cleat plates & bolts | D71: t | E71: 0.4 | G71: =E71*F71 -> 0.00
A73: PS12-A6.2 | C73: IPEAA 160 I-section beam, including end/cleat plates & bolts | D73: t | E73: 0.4 | G73: 0.00
A75: PS12-B | C75: SECTION B: MECHANICAL REFURBISHMENT
A77: PS12-B1 | C77: PIPEWORK:
A79: PS12-B1.1 | C79: De-install of existing pipework for all diameters up to including:
A81: PS12-B1.1.1 | C81: 50- 150mm | D81: m | E81: 20 | G81: =E81*F81 -> 0.00
A83: PS12-B1.3 | C83: Manufacture, supply and store new pipework
C85: Pipework:
C87: Material: a) Fabrication according to SANS 719: 1971 Grade B with 1600kPa working pressure (4.5mm thickness) b) Sand blasted according to SA055900 SIS 2 1/2 Finish c) Coating to be "Copon KSIR 88"or similar approved product to a thickness of 250 Micron
A89: PS12-B1.3.1 | C89: 80mm | D89: m | E89: 10 | G89: =E89*F89 -> 0.00
A91: PS12-B1.3.2 | C91: 100mm | D91: m | E91: 10 | G91: 0.00
C93: Flanges:
C95: Material: a) Thickness and drilling according to SANS 1123 Table 1600/3
A97: PS12-B1.3.3 | C97: 80mm | D97: No | E97: 10 | G97: =E97*F97 -> 0.00
A99: PS12-B1.3.4 | C99: 100mm | D99: No | E99: 10 | G99: 0.00
C101: Specials (Including all flanges) Material specifications as per pipes and flanges above:
A103: PS12-B1.3.5 | C103: 80mm - 90° bend | D103: No | E103: 4 | G103: =E103*F103 -> 0.00
A105: PS12-B1.3.6 | C105: 100mm - 22.5° bend | D105: No | E105: 2 | G105: 0.00
C107: Reducers
A109: PS12-B1.3.7 | C109: 80 - 100mm | D109: No | E109: 6 | G109: =E109*F109 -> 0.00
A111: PS12-B1.3.8 | C111: T-Pieces (100-100mm) | D111: No | E111: 2 | G111: 0.00
A113: PS12-B1.3.9 | C113: Install pipework (Grade 8.8 bolts, nuts, washers and Gaskets) | D113: Sum | E113: 1 | G113: 0.00
A115: PS12-B1.3.10 | C115: Commission pipework | D115: Sum | E115: 1 | G115: 0.00
A117: PS12-B1.4 | C117: Pipe brackets:
C119: For 100mm pipes:
C121: For heights between:
A123: PS12-B1.4.1 | C123: 0.5 - 1m (Refer to drawing 131- | D123: No | E123: 2 | G123: =E123*F123 -> 0.00
A125: PS12-B2 | C125: PUMPS AND MOTORS:
C127: Specifications Fluid: Potable Water:
C129: Pump No. 1 & 2:
A131: PS12-B2.1 | C131: De-install existing pump sets | D131: No | E131: 2 | G131: =E131*F131 -> 0.00
A133: PS12-B2.2 | C133: Transport to Agent/Manufactures workshop for conditional assessment | D133: Sum | E133: 1 | G133: 0.00
A135: PS12-B2.3 | C135: Refurbishment works required on pump sets | D135: Prov Sum | E135: 1 | F135: 15,000.00 | G135: 15,000.00
A137: PS12-B2.4 | C137: Overheads, charges and profit on subitem B2.3 above | D137: % | E137: =G135 -> 15,000.00 | G137: 0.00
A139: PS12-B2.5 | C139: Prepare G.A Drawings for pump sets and pipework | D139: Sum | E139: 1 | G139: 0.00
A141: PS12-B2.6 | C141: Supply and deliver new pump sets (including baseplates, anchor rods, bolts and all fittings required) | D141: No | E141: 2 | G141: 0.00
A143: PS12-B2.7 | C143: Install new pump set (Pump, Motor and Baseplate) | D143: No | E143: 2 | G143: 0.00
A145: TOTAL CARREID FORWARD | G145: =SUM(G63:G144) -> 40,000.00
A146: TOTAL BROUGHT FORWARD | G146: =G145 -> 40,000.00
A148: PS12-B2.8 | C148: Commissioning of pump set and O&M Manuals | D148: No | E148: 2 | G148: =E148*F148 -> 0.00
A150: PS12-B3 | B150: SANS 1200 LK | C150: Valves
A152: PS12-B3.1 | C152: De-install and remove existing valves | D152: Sum | E152: 1 | G152: =E152*F152 -> 0.00
A154: PS12-B3.2 | C154: Supply and deliver valves (Flangend drilling of valves to be confirmed on site):
C156: Suction:
C158: Flanged RSV Gate Valve:
A160: PS12-B3.2.1 | C160: DN 100mm PN16 (AVK or similar approved) | D160: No | E160: 2 | G160: =E160*F160 -> 0.00
C162: Delivery:
C164: Flanged RSV Gate Valve:
A166: PS12-B3.2.2 | C166: DN 80mm PN16 (AVK or similar approved) | D166: No | E166: 2 | G166: =E166*F166 -> 0.00
C168: Ball Check Valve
A170: PS12-B3.2.3 | C170: DN 80 PN16 (AVK or similar approved) | D170: No | E170: 2 | G170: =E170*F170 -> 0.00
C172: Air-Valves:
A174: PS12-B3.2.5 | C174: DN 50mm PN16 (RPS - Vent-O-Mat or similar approved) Including: a) Riser Flange b) Ball valve c) Bolts, nuts etc. | D174: No | E174: 1 | G174: =E174*F174 -> 0.00
C176: Pressure Sustaining Valve:
A178: PS12-B3.2.6 | C178: DN 80mm PN16 (Bermad or similar approved) | D178: No | E178: 1 | G178: =E178*F178 -> 0.00
C180: Water meter/Flow meter:
A182: PS12-B3.2.7 | C182: DN100 Optiflux 2000 OIML R49 Class 1 (KROHNE or similar approved) | D182: No | E182: 1 | G182: =E182*F182 -> 0.00
C184: Pressure Gauges
A186: PS12-B3.2.8 | C186: Supply, deliver and install 16 bar pressure gauges (2 x suction, 2 x delivery) | D186: No | E186: 2 | G186: =E186*F186 -> 0.00
C188: Install
A190: PS12-B3.2.9 | C190: Flanged RSV Gate Valve - Suction | D190: No | E190: 2 | G190: =E190*F190 -> 0.00
A192: PS12-B3.2.10 | C192: Flanged RSV Gate Valve - Delivery | D192: No | E192: 2 | G192: 0.00
A194: PS12-B3.2.11 | C194: Ball Check Valve | D194: No | E194: 2 | G194: 0.00
A196: PS12-B3.2.12 | C196: Air-Valves | D196: No | E196: 1 | G196: 0.00
A198: PS12-B3.2.13 | C198: Pressure Sustaining Valve: | D198: No | E198: 1 | G198: 0.00
A200: PS12-B3.2.14 | C200: Water meter/Flow meter: | D200: No | E200: 1 | G200: 0.00
A202: PS12-B4 | C202: LIFTING EQUIPMENT
A204: PS12-B4.1 | C204: Prepare G.A drawing(s) for pump station lifting equipment | D204: Sum | E204: 1 | G204: =E204*F204 -> 0.00
A206: PS12-B4.2 | C206: Manufacture, supply, install and deliver PS lifting equipment | D206: Sum | E206: 1 | G206: 0.00
A208: PS12-B4.3 | C208: Install lifting equipment | D208: Sum | E208: 1 | G208: 0.00
A210: PS12-B4.4 | C210: Commission lifting equipment | D210: Sum | E210: 1 | G210: 0.00
C212: SECTION C: ELECTRICAL REFURBISHMENT
A214: PS12-C1 | C214: Main Control Consol (MCC):
A216: PS12-C1.1 | C216: De-install, remove and store existing MCC panel | D216: Sum | E216: 1 | G216: =E216*F216 -> 0.00
A218: PS12-C1.2 | C218: Prepare the G.A Drawing (s), Schematic and single line diagrams, and load list for the MCC panel | D218: Sum | E218: 1 | G218: 0.00
A220: PS12-C1.3 | C220: Manufacture, supply, store and deliver the MCC panel | D220: Sum | E220: 1 | G220: 0.00
A222: PS12-C1.4 | C222: Install and terminate the MCC panel | D222: Sum | E222: 1 | G222: 0.00
A224: PS12-C1.5 | C224: Commission the MCC panel | D224: Sum | E224: 1 | G224: 0.00
A226: PS12-C2 | C226: Pressure Transmitter:
A228: PS12-C2.1 | C228: Manufacture and Supply 0-16 bar Pressure Transmitter (4-20 mA 1/4" process connector). | D228: No | E228: 1 | G228: =E228*F228 -> 0.00
A231: TOTAL CARREID FORWARD | G231: =SUM(G146:G230) -> 40,000.00
A232: TOTAL BROUGHT FORWARD | G232: =G231 -> 40,000.00
A234: PS12-C2.2 | C234: Install Pressure Transmitter | D234: No | E234: 1 | G234: =E234*F234 -> 0.00
A236: PS12-C2.3 | C236: Commissioning | D236: No | E236: 1 | G236: 0.00
A238: PS12-C3 | C238: Existing cables:
A240: PS12-C3.1 | C240: Fault finding on existing cables | D240: Sum | E240: 1 | G240: =E240*F240 -> 0.00
A242: PS12-C3.2 | C242: Prepare assessment report and recommendation | D242: Sum | E242: 1 | G242: 0.00
A244: PS12-C3.3 | C244: Provision for material and installation of defective cables | D244: Prov Sum | E244: 1 | F244: 20,000.00 | G244: 20,000.00
A246: PS12-C3.4 | C246: Overheads, charges and profit on subitem C3.3 above | D246: % | E246: =G244 -> 20,000.00 | G246: 0.00
A248: PS12-C3.5 | C248: Commissioning and providing COC for installation | D248: Sum | E248: 1 | G248: 0.00
A250: PS12-C4 | C250: Level/Control Equipment:
A252: PS12-C4.1 | C252: De-install, removal and discard of existing ball level indicators | D252: Sum | E252: 1 | G252: =E252*F252 -> 0.00
A254: PS12-C4.2 | C254: Supply, deliver and store level probes Specifications: a) APS - 3C or similar approved b) 3 - Probes (Common, low and high) c) Depths to be confirmed on site | D254: Sum | E254: 1 | G254: 0.00
A256: PS12-C4.3 | C256: Installation of level probes | D256: Sum | E256: 1 | G256: 0.00
A258: PS12-C4.4 | C258: Commission of level probes | D258: Sum | E258: 1 | G258: =E258*F258 -> 0.00
A260: PS12-C5 | C260: Main power supply
A262: PS12-C5.1 | C262: Fault finding on existing supply cables | D262: Sum | E262: 1 | G262: 0.00
A264: PS12-C5.2 | C264: Prepare assessment report and recommendation | D264: Sum | E264: 1 | G264: 0.00
A266: PS12-C5.3 | C266: Provision for material and installation of defective cables | D266: Prov Sum | E266: 1 | F266: 50,000.00 | G266: 50,000.00
A268: PS12-C5.4 | C268: Overheads, charges and profit on subitem C3.3 above | D268: % | E268: =G266 -> 50,000.00 | G268: 0.00
A270: PS12-C5.6 | C270: Commissioning and providing COC for installation | D270: Sum | E270: 1 | G270: 0.00
A272: TOTAL CARREID FORWARD TO SUMMARY PAGE | G272: =SUM(G232:G271) -> 110,000.00

Sheet 13 Pereng B
A2: MALUTI-A-PHOFUNG LOCAL MUNICIPALITY
A3: APPOINTMENT OF A SERVICE PROVIDER: UPGRADING OF WATER PUMP STATION PHASE 1
A4: Contract No.: SCM/BID09/2023/24
A6: SCHEDULE PUMP STATION No 13: PERENG B PUMP STATION (28°31'16.39"S,28°52'24.28"E)
A8: ITEM | B8: PAYMENT CLAUSE | C8: DESCRIPTION | D8: UNIT | E8: QUANT. | F8: RATE | G8: AMOUNT
C10: SECTION A :CIVIL REFURBISHMENT
A12: PS13-A1 | B12: SANS 1200C | C12: SITE CLEARANCE
A14: PS13-A1.1 | B14: 8.3.1 | C14: Clear and grub vegetation and trees of girth up to 1,0m | D14: m² | E14: 300 | G14: =E14*F14 -> 0.00
A16: PS13-A2 | C16: Fencing:
A18: PS13-A2.2 | C18: Supply and install concrete fencing from stockpile. Including all materials and fasteners. | D18: m | E18: 20 | G18: =E18*F18 -> 0.00
A20: PS13-A2.3 | C20: Supply and install flat wrap for entire pump station perimeter. | D20: m | E20: 75 | G20: 0.00
A22: PS13-A3 | B22: SANS 1200MJ | C22: SEGMENTED CONCRETE PAVING BLOCKS
C24: Paving
A26: PS13-A3.1 | C26: Cut to spoil 400mm deep excavation for paving and layerworks and compact base to 93% MOD-ASHTO | D26: m² | E26: 60 | G26: =E26*F26 -> 0.00
A28: PS13-A3.2 | C28: 150mm C4 Stabalised sub base layer compacted to 97% MOD-ASHTO | D28: m² | E28: 60 | G28: 0.00
A30: PS13-A3.3 | C30: 80mm Paving blocks including 20mm bedding sand layer | D30: m² | E30: 60 | G30: 0.00
A32: PS13-A3.5 | B32: SANS 1200ME 8.2.1 | C32: Supply and place pre-cast mountable concrete kerbing (Figure 8c pre-cast kerbing) | D32: m | E32: 30 | G32: 0.00
A34: PS13-A4 | B34: SANS 1200D | C34: EARTHWORKS
A36: PS13-A4.1 | C36: Locate, and excavate by hand in all material to expose existing services where ordered by the Engineer (provisional) | D36: m³ | E36: 15 | G36: =E36*F36 -> 0.00
A38: PS13-A4.2 | B38: 8.3.3 | C38: Restricted excavations:
C40: Excavate in all materials, and use for backfilling or embankments, or dispose:
A42: PS13-A4.3 | C42: Depth up to 1,0m | D42: m³ | E42: 10 | G42: =E42*F42 -> 0.00
A44: PS13-A4.4 | C44: Depth over 1,0m and up to 2,0m | D44: m³ | E44: 15 | G44: 0.00
A46: PS13-A5 | B46: PB | C46: BUILDING WORK REFURBISHMENT
B48: PB 8.2.20 | C48: Painting:
A50: PS13-A5.1 | C50: Interior Walls a) Pressure wash interior walls before any refurbishment work commence; b) Sand down interior walls; c) Remove all loose paint from structure; d) Apply interior paint primer (to be confirmed by supplier); e) Apply 2 coats of white interior paint (Emulsion paint) | D50: m² | E50: 110 | G50: =E50*F50 -> 0.00
A52: PS13-A5.2 | C52: Concrete Floors and 1m above floor level a) Pressure wash floors before any refurbishment work commence; b) Sand down existing epoxy and material; c) Remove loose particles; d) Apply epoxy primer (to be confirmed by supplier) e) Apply 3 layers of industrial epoxy paint (Sikagard) | D52: m² | E52: 20 | G52: =E52*F52 -> 0.00
A54: PS13-A5.3 | C54: Interior Concrete Roofs a) Pressure wash roofs before any refurbishment work commence; b) Sand down existing roof material; c) Remove loose paint; d) Apply paint primer (to be confirmed by supplier) e) Apply 2 coats of interior roof paint (Dulux roof guard or similar approved) | D54: m² | E54: 20 | G54: =E54*F54 -> 0.00
A56: PS13-A5.4 | C56: Steel Doors (Double doors) a) Pressure wash steel doors before any refurbishment work commence; b) Sand down existing doors; c) Remove loose paint; d) Apply paint primer (to be confirmed by supplier) e) Apply 2 coats of true black metal matt enamel (Dulux or similar approved) | D56: m² | E56: 15 | G56: =E56*F56 -> 0.00
A58: PS13-A5.5 | C58: Concrete plinths: a) Pressure wash floors before any refurbishment work commence; b) Sand down existing epoxy and material; c) Remove loose particles; d) Apply epoxy primer (to be confirmed by supplier) e) Apply 3 layers of industrial epoxy paint (Sikagard) | D58: m² | E58: 2.5 | G58: 0.00
A60: PS13-A6 | B60: PB 8.2.17 | C60: Doors:
A62: PS13-A6.1 | C62: Supply and install new (Including all required fittings etc.)
A64: PS13-A6.2 | C64: Supply, deliver and Installation of Burgular bars for double doors | D64: No | E64: 1 | G64: =E64*F64 -> 0.00
A66: PS13-A7 | B66: PB 8.2.21 | C66: General Electrical:
A68: PS13-A7.1 | C68: Refurbishment of general electrical items in existing building | D68: Prov Sum | E68: 1.00 | F68: 15,000.00 | G68: =E68*F68 -> 15,000.00
A70: PS13-A7.2 | C70: Overheads, charges and profit on subitem A6.1 above | D70: % | E70: =G68 -> 15,000.00 | G70: 0.00
A72: TOTAL CARREID FORWARD | G72: =SUM(G9:G71) -> 15,000.00
A73: TOTAL BROUGHT FORWARD | G73: =G72 -> 15,000.00
A75: PS13-A7.3 | C75: Refurbishment of existing cable racks | D75: Prov Sum | E75: 1.00 | F75: 10,000.00 | G75: =E75*F75 -> 10,000.00
A77: PS13-A7.4 | C77: Overheads, charges and profit on subitem A6.3 above | D77: % | E77: =G75 -> 10,000.00 | G77: 0.00
A79: PS13-A8 | B79: SANS 1200 H | C79: Structural steelwork:
C81: Complete supply, manufacturing, corrosion protection (Hot-dipped galvanized) and installation of structural steel gantry:
A83: PS13-A8.1 | C83: IPE 200 I-section beam, including end/cleat plates & bolts | D83: t | E83: 0.4 | G83: =E83*F83 -> 0.00
A85: PS13-A8.2 | C85: IPEAA 160 I-section beam, including end/cleat plates & bolts | D85: t | E85: 0.4 | G85: 0.00
C87: SECTION B: MECHANICAL REFURBISHMENT
A89: PS13-B1 | C89: PIPEWORK:
A91: PS13-B1.1 | C91: De-install of existing pipework for all diameters up to including:
A93: PS13-B1.1.1 | C93: 50- 150mm | D93: m | E93: 10 | G93: =E93*F93 -> 0.00
A95: PS13-B1.1.2 | C95: 150-200mm | D95: m | E95: 10 | G95: =E95*F95 -> 0.00
A97: PS13-B1.2 | C97: Confirm integrity of existing pipework:
C99: High pressure sand blasting of all existing pipework (including flanges)
C101: For the following diameters:
A103: PS13-B1.2.1 | C103: 80mm | D103: m | E103: 3 | G103: =E103*F103 -> 0.00
A105: PS13-B1.2.2 | C105: 100mm | D105: m | E105: 7 | G105: =E105*F105 -> 0.00
A107: PS13-B1.2.3 | C107: 200mm | D107: m | E107: 10 | G107: =E107*F107 -> 0.00
A109: PS13-B1.2.2 | C109: Complete Non-destructive testing (NDT) on all existing pipework | D109: Sum | E109: 1 | G109: =E109*F109 -> 0.00
A111: PS13-B1.3 | C111: Re-coating of pipework (COPON KSIR 88 - 250 MICRON or similar approved)
C113: For the following diameters:
A115: PS13-B1.3.1 | C115: 80mm | D115: m | E115: 3 | G115: =E115*F115 -> 0.00
A117: PS13-B1.3.2 | C117: 100mm | D117: m | E117: 7 | G117: =E117*F117 -> 0.00
C119: 200mm | D119: m | E119: 10 | G119: 0.00
A121: PS13-B1.4 | C121: Replacement of all nuts, bolts and gaskets
C123: For following flanges (SANS 1123, Bolts and Nuts):
A125: PS13-B1.4.1 | C125: 80mm | D125: No | E125: 4 | G125: =E125*F125 -> 0.00
A127: PS13-B1.4.2 | C127: 100mm | D127: No | E127: 10 | G127: =E127*F127 -> 0.00
C129: 200mm | D129: No | E129: 10 | G129: =E129*F129 -> 0.00
A131: PS13-B1.5 | C131: Provisional items
A133: PS13-B1.5.1 | C133: Replacement of existing pipework | D133: Prov Sum | E133: 1.00 | F133: 30,000.00 | G133: =E133*F133 -> 30,000.00
A135: PS13-B1.5.2 | C135: Overheads, charges and profit on subitem B1.5.1 above | D135: % | E135: =G133 -> 30,000.00 | G135: =E135*F135 -> 0.00
A137: PS13-B1.6 | C137: Pipe brackets:
C139: For 150mm pipes:
C141: For heights between:
A143: PS13-B1.6.1 | C143: 0.5 - 1m (Refer to drawing 131- | D143: No | E143: 2 | G143: =E143*F143 -> 0.00
A145: PS13-B2 | C145: PUMPS AND MOTORS:
C147: Specifications Fluid: Potable Water:
C149: Pump No. 1 & 2:
A151: PS13-B2.1 | C151: De-install existing pump sets | D151: No | E151: 2 | G151: =E151*F151 -> 0.00
A153: PS13-B2.2 | C153: Transport to Agent/Manufactures workshop for conditional assessment | D153: Sum | E153: 1 | G153: =E153*F153 -> 0.00
A155: PS13-B2.3 | C155: Refurbishment works required on pump sets | D155: Prov Sum | E155: 1 | F155: 15,000.00 | G155: =E155*F155 -> 15,000.00
A157: PS13-B2.4 | C157: Overheads, charges and profit on subitem B2.3 above | D157: % | E157: =G155 -> 15,000.00 | G157: =E157*F157 -> 0.00
A159: PS13-B2.5 | C159: Prepare G.A Drawings for pump sets and pipework | D159: Sum | E159: 1 | G159: =E159*F159 -> 0.00
A161: PS13-B2.6 | C161: Supply and deliver new pump sets (including baseplates, anchor rods, bolts and all fittings required) | D161: No | E161: 2 | G161: =E161*F161 -> 0.00
A162: TOTAL CARREID FORWARD | G162: =SUM(G73:G161) -> 70,000.00
A163: TOTAL BROUGHT FORWARD | G163: =G162 -> 70,000.00
A165: PS13-B2.7 | C165: Install new pump set (Pump, Motor and Baseplate) | D165: No | E165: 2 | G165: =E165*F165 -> 0.00
A167: PS13-B2.8 | C167: Commissioning of pump set and O&M Manuals | D167: No | E167: 2 | G167: =E167*F167 -> 0.00
A169: PS13-B3 | B169: SANS 1200 LK | C169: Valves
A171: PS13-B3.1 | C171: De-install and remove existing valves | D171: Sum | E171: 1 | G171: =E171*F171 -> 0.00
A173: PS13-B3.2 | C173: Supply and deliver valves (Flangend drilling of valves to be confirmed on site):
C175: Suction:
C177: Flanged RSV Gate Valve:
A179: PS13-B3.2.1 | C179: DN 100mm PN16 (AVK or similar approved) | D179: No | E179: 2 | G179: =E179*F179 -> 0.00
C181: Delivery:
C183: Flanged RSV Gate Valve:
A185: PS13-B3.2.2 | C185: DN 80mm PN16 (AVK or similar approved) | D185: No | E185: 2 | G185: =E185*F185 -> 0.00
C187: Ball Check Valve
A189: PS13-B3.2.3 | C189: DN 80 PN16 (AVK or similar approved) | D189: No | E189: 2 | G189: =E189*F189 -> 0.00
C191: Air-Valves:
A193: PS13-B3.2.4 | C193: DN 50mm PN16 (RPS - Vent-O-Mat or similar approved) Including: a) Riser Flange b) Ball valve c) Bolts, nuts etc. | D193: No | E193: 1 | G193: =E193*F193 -> 0.00
C195: Pressure Sustaining Valve:
A197: PS13-B3.2.5 | C197: DN 80mm PN16 (Bermad or similar approved) | D197: No | E197: 1 | G197: =E197*F197 -> 0.00
C199: Level Control Valve:
A201: PS13-B3.2.6 | C201: DN 80mm PN10 Level Control Valve (AVK or similar approved) | D201: No | E201: 1 | G201: =E201*F201 -> 0.00
C203: Water meter/Flow meter:
A205: PS13-B3.2.7 | C205: DN80 Optiflux 2000 OIML R49 Class 1 (KROHNE or similar approved) | D205: No | E205: 1 | G205: =E205*F205 -> 0.00
C207: Pressure Gauges
A209: PS13-B3.2.8 | C209: Supply, deliver and install 16 bar pressure gauges (2 x suction, 2 x delivery) | D209: No | E209: 2 | G209: =E209*F209 -> 0.00
C211: Install
A213: PS13-B3.2.9 | C213: Flanged RSV Gate Valve - Suction | D213: No | E213: 2 | G213: =E213*F213 -> 0.00
A215: PS13-B3.2.10 | C215: Flanged RSV Gate Valve - Delivery | D215: No | E215: 2 | G215: =E215*F215 -> 0.00
A217: PS13-B3.2.11 | C217: Ball Check Valve | D217: No | E217: 2 | G217: =E217*F217 -> 0.00
A219: PS13-B3.2.12 | C219: Air-Valves | D219: No | E219: 2 | G219: =E219*F219 -> 0.00
A221: PS13-B3.2.13 | C221: Pressure Sustaining Valve: | D221: No | E221: 1 | G221: 0.00
A223: PS13-B3.2.14 | C223: Level Control Valve: | D223: No | E223: 1 | G223: 0.00
A225: PS13-B3.2.15 | C225: Water meter/Flow meter: | D225: No | E225: 1 | G225: 0.00
A227: PS13-B4 | C227: LIFTING EQUIPMENT
A229: PS13-B4.1 | C229: Prepare G.A drawing(s) for pump station lifting equipment | D229: Sum | E229: 1 | G229: =E229*F229 -> 0.00
A231: PS13-B4.2 | C231: Manufacture, supply, install and deliver PS lifting equipment | D231: Sum | E231: 1 | G231: 0.00
A233: PS13-B4.3 | C233: Install lifting equipment | D233: Sum | E233: 1 | G233: 0.00
A235: PS13-B4.4 | C235: Commission lifting equipment | D235: Sum | E235: 1 | G235: 0.00
C237: SECTION C: ELECTRICAL REFURBISHMENT
A239: PS13-C1 | C239: Main Control Consol (MCC):
A241: PS13-C1.1 | C241: De-install, remove and store existing MCC panel | D241: Sum | E241: 1 | G241: =E241*F241 -> 0.00
A243: PS13-C1.2 | C243: Prepare the G.A Drawing (s), Schematic and single line diagrams, and load list for the MCC panel | D243: Sum | E243: 1 | G243: =E243*F243 -> 0.00
A245: PS13-C1.3 | C245: Manufacture, supply, store and deliver the MCC panel | D245: Sum | E245: 1 | G245: =E245*F245 -> 0.00
A247: PS13-C1.4 | C247: Install and terminate the MCC panel | D247: Sum | E247: 1 | G247: =E247*F247 -> 0.00
A249: PS13-C1.5 | C249: Commission the MCC panel | D249: Sum | E249: 1 | G249: =E249*F249 -> 0.00
A250: TOTAL CARREID FORWARD | G250: =SUM(G163:G249) -> 70,000.00
A251: TOTAL BROUGHT FORWARD | G251: =G250 -> 70,000.00
A253: PS13-C2 | C253: Pressure Transmitter:
A255: PS13-C2.1 | C255: Manufacture and Supply 0-16 bar Pressure Transmitter (4-20 mA 1/4" process connector). | D255: No | E255: 1 | G255: =E255*F255 -> 0.00
A257: PS13-C2.2 | C257: Install Pressure Transmitter | D257: No | E257: 1 | G257: 0.00
A259: PS13-C2.3 | C259: Commissioning | D259: No | E259: 1 | G259: 0.00
A261: PS13-C3 | C261: Existing cables:
A263: PS13-C3.1 | C263: Fault finding on existing cables | D263: Sum | E263: 1 | G263: =E263*F263 -> 0.00
A265: PS13-C3.2 | C265: Prepare assessment report and recommendation | D265: Sum | E265: 1 | G265: 0.00
A267: PS13-C3.3 | C267: Provision for material and installation of defective cables | D267: Prov Sum | E267: 1 | F267: 30,000.00 | G267: 30,000.00
A269: PS13-C3.4 | C269: Overheads, charges and profit on subitem C3.3 above | D269: % | E269: =G267 -> 30,000.00 | G269: 0.00
A271: PS13-C3.5 | C271: Commissioning and providing COC for installation | D271: Sum | E271: 1 | G271: 0.00
A273: PS13-C4 | C273: Level/Control Equipment:
A275: PS13-C4.1 | C275: De-install, removal and discard of existing ball level indicators | D275: Sum | E275: 1 | G275: =E275*F275 -> 0.00
A277: PS13-C4.2 | C277: Supply, deliver and store level probes Specifications: a) APS - 3C or similar approved b) 3 - Probes (Common, low and high) c) Depths to be confirmed on site | D277: Sum | E277: 1 | G277: 0.00
A279: PS13-C4.3 | C279: Installation of level probes | D279: Sum | E279: 1 | G279: 0.00
A281: PS13-C4.4 | C281: Commission of level probes | D281: Sum | E281: 1 | G281: 0.00
A283: PS13-C5 | C283: Main power supply
A285: PS13-C5.1 | C285: Fault finding on existing supply cables | D285: Sum | E285: 1 | G285: =E285*F285 -> 0.00
A287: PS13-C5.2 | C287: Prepare assessment report and recommendation | D287: Sum | E287: 1 | G287: =E287*F287 -> 0.00
A289: PS13-C5.3 | C289: Provision for material and installation of defective cables | D289: Prov Sum | E289: 1 | F289: 20,000.00 | G289: =E289*F289 -> 20,000.00
A291: PS13-C5.4 | C291: Overheads, charges and profit on subitem C3.3 above | D291: % | E291: =G289 -> 20,000.00 | G291: =E291*F291 -> 0.00
A293: PS13-C5.5 | C293: Commissioning and providing COC for installation | D293: Sum | E293: 1 | G293: =E293*F293 -> 0.00
A295: TOTAL CARREID FORWARD TO SUMMARY PAGE | G295: =SUM(G251:G294) -> 120,000.00

Sheet 14 Pereng A
A2: MALUTI-A-PHOFUNG LOCAL MUNICIPALITY
A3: APPOINTMENT OF A SERVICE PROVIDER: UPGRADING OF WATER PUMP STATION PHASE 1
A4: Contract No.: SCM/BID09/2023/24
A6: SCHEDULE PUMP STATION No 14: PERENG A PUMP STATION (28°31'16.13"S,28°52'24.11"E)
A8: ITEM | B8: PAYMENT CLAUSE | C8: DESCRIPTION | D8: UNIT | E8: QUANT. | F8: RATE | G8: AMOUNT
C10: SECTION A :CIVIL REFURBISHMENT
A12: PS14-A1 | B12: PB | C12: BUILDING WORK REFURBISHMENT
B14: PB 8.2.20 | C14: Painting:
A16: PS14-A1.1 | C16: Interior Walls a) Pressure wash interior walls before any refurbishment work commence; b) Sand down interior walls; c) Remove all loose paint from structure; d) Apply interior paint primer (to be confirmed by supplier); e) Apply 2 coats of white interior paint (Emulsion paint) | D16: m² | E16: 40 | G16: =E16*F16 -> 0.00
A18: PS14-A1.2 | C18: Concrete Floors and 1m above floor level a) Pressure wash floors before any refurbishment work commence; b) Sand down existing epoxy and material; c) Remove loose particles; d) Apply epoxy primer (to be confirmed by supplier) e) Apply 3 layers of industrial epoxy paint (Sikagard) | D18: m² | E18: 12 | G18: 0.00
A20: PS14-A1.3 | C20: Interior Concrete Roofs a) Pressure wash roofs before any refurbishment work commence; b) Sand down existing roof material; c) Remove loose paint; d) Apply paint primer (to be confirmed by supplier) e) Apply 2 coats of interior roof paint (Dulux roof guard or similar approved) | D20: m² | E20: 12 | G20: 0.00
A22: PS14-A1.4 | C22: Exterior Concrete Roofs a) Pressure wash roofs before any refurbishment work commence; b) Sand down existing roof material; c) Remove loose paint; d) Apply paint primer (to be confirmed by supplier) e) Apply 2 coats of exterior roof paint (Dulux roof guard or similar approved) | D22: m² | E22: 15 | G22: 0.00
A24: PS14-A1.5 | C24: Steel Doors (Double doors) a) Pressure wash steel doors before any refurbishment work commence; b) Sand down existing doors; c) Remove loose paint; d) Apply paint primer (to be confirmed by supplier) e) Apply 2 coats of true black metal matt enamel (Dulux or similar approved) | D24: m² | E24: 12 | G24: 0.00
A26: PS14-A1.6 | C26: Concrete plinths: a) Pressure wash floors before any refurbishment work commence; b) Sand down existing epoxy and material; c) Remove loose particles; d) Apply epoxy primer (to be confirmed by supplier) e) Apply 3 layers of industrial epoxy paint (Sikagard) | D26: m² | E26: 2.5 | G26: 0.00
A28: PS14-A1.6 | C28: Steel Gantry: a) Pressure wash existing gantry before any refurbishment works commence; b) Sand down existing enamel paint; c) Remove loose particles; d) Apply primer (to be confirmed with Engineer before application) e) Apply industrial enamel paint (confirm with Engineer before application) | D28: m² | E28: 30 | G28: 0.00
A30: PS14-A2 | B30: PB 8.2.17 | C30: Doors:
A32: PS14-A2.1 | C32: Supply and install new (Including all required fittings etc.)
A34: PS14-A2.2 | C34: Supply, deliver and Installation of Burgular bars for double doors | D34: No | E34: 1 | G34: =E34*F34 -> 0.00
A36: PS14-A3 | B36: PB 8.2.21 | C36: General Electrical:
A38: PS14-A3.1 | C38: Refurbishment of general electrical items in existing building | D38: Prov Sum | E38: 1.00 | F38: 10,000.00 | G38: =E38*F38 -> 10,000.00
A40: PS14-A3.2 | C40: Overheads, charges and profit on subitem A6.1 above | D40: % | E40: =G38 -> 10,000.00 | G40: 0.00
A42: PS14-A3.3 | C42: Refurbishment of existing cable racks | D42: Prov Sum | E42: 1.00 | F42: 5,000.00 | G42: 5,000.00
A44: PS14-A3.4 | C44: Overheads, charges and profit on subitem A6.3 above | D44: % | E44: =G42 -> 5,000.00 | G44: 0.00
C46: SECTION B: MECHANICAL REFURBISHMENT
A48: PS14-B1 | C48: PIPEWORK:
A50: PS14-B1.1 | C50: De-install of existing pipework for all diameters up to including:
A52: PS14-B1.1.1 | C52: 50- 150mm | D52: m | E52: 10 | G52: =E52*F52 -> 0.00
A54: PS14-B1.3 | C54: Manufacture, supply and store new pipework
C56: Pipework:
C58: Material: a) Fabrication according to SANS 719: 1971 Grade B with 1600kPa working pressure (4.5mm thickness) b) Sand blasted according to SA055900 SIS 2 1/2 Finish c) Coating to be "Copon KSIR 88"or similar approved product to a thickness of 250 Micron
A60: PS14-B1.3.1 | C60: 80mm | D60: m | E60: 7 | G60: =E60*F60 -> 0.00
A62: PS14-B1.3.2 | C62: 100mm | D62: m | E62: 10 | G62: 0.00
A63: TOTAL CARREID FORWARD | G63: =SUM(G9:G62) -> 15,000.00
A64: TOTAL BROUGHT FORWARD | G64: =G63 -> 15,000.00
C66: Flanges:
C68: Material: a) Thickness and drilling according to SANS 1123 Table 1600/3
A70: PS14-B1.3.3 | C70: 80mm | D70: No | E70: 7 | G70: =E70*F70 -> 0.00
A72: PS14-B1.3.4 | C72: 100mm | D72: No | E72: 10 | G72: 0.00
C74: Specials (Including all flanges) Material specifications as per pipes and flanges above:
A76: PS14-B1.3.5 | C76: 80mm - 90° bend | D76: No | E76: 4 | G76: =E76*F76 -> 0.00
A78: PS14-B1.3.6 | C78: 100mm - 22.5° bend | D78: No | E78: 2 | G78: 0.00
C80: Reducers
A82: PS14-B1.3.7 | C82: 80 - 100mm | D82: No | E82: 6 | G82: =E82*F82 -> 0.00
A84: PS14-B1.3.8 | C84: T-Pieces (100-100mm) | D84: No | E84: 2 | G84: 0.00
A86: PS14-B1.3.9 | C86: Install pipework (Grade 8.8 bolts, nuts, washers and Gaskets) | D86: Sum | E86: 1 | G86: 0.00
A88: PS14-B1.3.10 | C88: Commission pipework | D88: Sum | E88: 1 | G88: 0.00
A90: PS14-B1.4 | C90: Pipe brackets:
C92: For 100mm pipes:
C94: For heights between:
A96: PS14-B1.4.1 | C96: 0.5 - 1m | D96: No | E96: 2 | G96: =E96*F96 -> 0.00
C98: 1.5-1.9m | D98: No | E98: 2 | G98: =E98*F98 -> 0.00
A100: PS14-B2 | C100: PUMPS AND MOTORS:
C102: Specifications Fluid: Potable Water:
C104: Pump No. 1 & 2:
A106: PS14-B2.1 | C106: De-install existing pump sets | D106: No | E106: 2 | G106: =E106*F106 -> 0.00
A108: PS14-B2.2 | C108: Transport to Agent/Manufactures workshop for conditional assessment and back to storeroom of Municipality | D108: Sum | E108: 1 | G108: 0.00
A110: PS14-B2.3 | C110: Refurbishment works required on pump sets | D110: Prov Sum | E110: 1 | F110: 15,000.00 | G110: 15,000.00
A112: PS14-B2.4 | C112: Overheads, charges and profit on subitem B2.3 above | D112: % | E112: =G110 -> 15,000.00 | G112: 0.00
A114: PS14-B2.5 | C114: Prepare G.A Drawings for pump sets and pipework | D114: Sum | E114: 1 | G114: 0.00
A116: PS14-B2.6 | C116: Supply and deliver new pump sets (including baseplates, anchor rods, bolts and all fittings required) | D116: No | E116: 2 | G116: 0.00
A118: PS14-B2.7 | C118: Install new pump set (Pump, Motor and Baseplate) | D118: No | E118: 2 | G118: 0.00
A120: PS14-B2.8 | C120: Commissioning of pump set and O&M Manuals | D120: No | E120: 2 | G120: 0.00
A122: PS14-B3 | B122: SANS 1200 LK | C122: Valves
A124: PS14-B3.1 | C124: De-install and remove existing valves | D124: Sum | E124: 1 | G124: =E124*F124 -> 0.00
A126: PS14-B3.2 | C126: Supply and deliver valves (Flangend drilling of valves to be confirmed on site):
C128: Suction:
C130: Flanged RSV Gate Valve:
A132: PS14-B3.2.1 | C132: DN 100mm PN10 (AVK or similar approved) | D132: No | E132: 2 | G132: =E132*F132 -> 0.00
C134: Delivery:
C136: Flanged RSV Gate Valve:
A138: PS14-B3.2.2 | C138: DN 80mm PN16 (AVK or similar approved) | D138: No | E138: 2 | G138: =E138*F138 -> 0.00
C140: Ball Check Valve
A142: PS14-B3.2.3 | C142: DN 80mm PN16 (AVK or similar approved) | D142: No | E142: 2 | G142: =E142*F142 -> 0.00
C144: Air-Valves:
A146: PS14-B3.2.4 | C146: DN 50mm PN16 (RPS - Vent-O-Mat or similar approved), Including: a) Riser Flange b) Ball valve c) Bolts, nuts etc. | D146: No | E146: 1 | G146: =E146*F146 -> 0.00
A147: TOTAL CARREID FORWARD | G147: =SUM(G64:G146) -> 30,000.00
A148: TOTAL BROUGHT FORWARD | G148: =G147 -> 30,000.00
C150: Pressure Sustaining Valve:
A152: PS14-B3.2.5 | C152: DN 80mm PN16 (Bermad or similar approved) | D152: No | E152: 1 | G152: =E152*F152 -> 0.00
C154: Level Control Valve:
A156: PS14-B3.2.6 | C156: DN 80mm PN10 Level Control Valve (AVK or similar approved) | D156: No | E156: 1 | G156: =E156*F156 -> 0.00
C158: Water meter/Flow meter:
A160: PS14-B3.2.7 | C160: DN80mm Optiflux 2000 OIML R49 Class 1 (KROHNE or similar approved) | D160: No | E160: 1 | G160: =E160*F160 -> 0.00
C162: Pressure Gauges
A164: PS14-B3.2.8 | C164: Supply, deliver and install 16 bar pressure gauges (2 x suction, 2 x delivery) | D164: No | E164: 2 | G164: =E164*F164 -> 0.00
C166: Install
A168: PS14-B3.2.9 | C168: Flanged RSV Gate Valve - Suction | D168: No | E168: 2 | G168: =E168*F168 -> 0.00
A170: PS14-B3.2.10 | C170: Flanged RSV Gate Valve - Delivery | D170: No | E170: 2 | G170: 0.00
A172: PS14-B3.2.11 | C172: Ball Check Valve | D172: No | E172: 2 | G172: =E172*F172 -> 0.00
A174: PS14-B3.2.12 | C174: Air-Valves | D174: No | E174: 1 | G174: =E174*F174 -> 0.00
A176: PS14-B3.2.13 | C176: Pressure Sustaining Valve: | D176: No | E176: 1 | G176: =E176*F176 -> 0.00
A178: PS14-B3.2.14 | C178: Level Control Valve: | D178: No | E178: 1 | G178: =E178*F178 -> 0.00
A180: PS14-B3.2.15 | C180: Water meter/Flow meter: | D180: No | E180: 1 | G180: =E180*F180 -> 0.00
A182: PS14-B4 | C182: LIFTING EQUIPMENT
A184: PS14-B4.1 | C184: Prepare G.A drawing(s) for pump station lifting equipment | D184: Sum | E184: 1 | G184: =E184*F184 -> 0.00
A186: PS14-B4.2 | C186: Manufacture, supply, install and deliver PS lifting equipment | D186: Sum | E186: 1 | G186: 0.00
A188: PS14-B4.3 | C188: Install lifting equipment | D188: Sum | E188: 1 | G188: 0.00
A190: PS14-B4.4 | C190: Commission lifting equipment | D190: Sum | E190: 1 | G190: 0.00
C192: SECTION C: ELECTRICAL REFURBISHMENT
A194: PS14-C1 | C194: Main Control Consol (MCC):
A196: PS14-C1.1 | C196: De-install, remove and store existing MCC panel | D196: Sum | E196: 1 | G196: =E196*F196 -> 0.00
A198: PS14-C1.2 | C198: Prepare the G.A Drawing (s), Schematic and single line diagrams, and load list for the MCC panel | D198: Sum | E198: 1 | G198: =E198*F198 -> 0.00
A200: PS14-C1.3 | C200: Manufacture, supply, store and deliver the MCC panel | D200: Sum | E200: 1 | G200: =E200*F200 -> 0.00
A202: PS14-C1.4 | C202: Install and terminate the MCC panel | D202: Sum | E202: 1 | G202: =E202*F202 -> 0.00
A204: PS14-C1.5 | C204: Commission the MCC panel | D204: Sum | E204: 1 | G204: =E204*F204 -> 0.00
A206: PS14-C2 | C206: Pressure Transmitter:
A208: PS14-C2.1 | C208: Manufacture and Supply 0-16 bar Pressure Transmitter (4-20 mA 1/4" process connector). | D208: No | E208: 1 | G208: =E208*F208 -> 0.00
A210: PS14-C2.2 | C210: Install Pressure Transmitter | D210: No | E210: 1 | G210: =E210*F210 -> 0.00
A212: PS14-C2.3 | C212: Commissioning | D212: No | E212: 1 | G212: =E212*F212 -> 0.00
A214: PS14-C3 | C214: Existing cables:
A216: PS14-C3.1 | C216: Fault finding on existing cables | D216: Sum | E216: 1 | G216: =E216*F216 -> 0.00
A218: PS14-C3.2 | C218: Prepare assessment report and recommendation | D218: Sum | E218: 1 | G218: =E218*F218 -> 0.00
A220: PS14-C3.3 | C220: Provision for material and installation of defective cables | D220: Prov Sum | E220: 1 | F220: 15,000.00 | G220: =E220*F220 -> 15,000.00
A222: PS14-C3.4 | C222: Overheads, charges and profit on subitem C3.3 above | D222: % | E222: =G220 -> 15,000.00 | G222: =E222*F222 -> 0.00
A224: PS14-C3.5 | C224: Commissioning and providing COC for installation | D224: Sum | E224: 1 | G224: =E224*F224 -> 0.00
A226: PS14-C4 | C226: Main power supply
A228: PS14-C4.1 | C228: Fault finding on existing supply cables | D228: Sum | E228: 1 | G228: =E228*F228 -> 0.00
A230: PS14-C4.2 | C230: Prepare assessment report and recommendation | D230: Sum | E230: 1 | G230: =E230*F230 -> 0.00
A232: PS14-C4.3 | C232: Provision for material and installation of defective cables | D232: Prov Sum | E232: 1 | F232: 15,000.00 | G232: 15,000.00
A234: PS14-C4.4 | C234: Overheads, charges and profit on subitem C3.3 above | D234: % | E234: =G232 -> 15,000.00 | G234: 0.00
A236: PS14-C4.5 | C236: Commissioning and providing COC for installation | D236: Sum | E236: 1 | G236: 0.00
A238: TOTAL CARREID FORWARD TO SUMMARY PAGE | G238: =SUM(G148:G237) -> 60,000.00

Sheet 15 Intabazwe
A2: MALUTI-A-PHOFUNG LOCAL MUNICIPALITY
A3: APPOINTMENT OF A SERVICE PROVIDER: UPGRADING OF WATER PUMP STATION PHASE 1
A4: Contract No.: SCM/BID09/2023/24
A6: SCHEDULE PUMP STATION No 15: INTABAZWE PUMP STATION (28°15'11.82"S,29° 6'27.39"E)
A8: ITEM | B8: PAYMENT CLAUSE | C8: DESCRIPTION | D8: UNIT | E8: QUANT. | F8: RATE | G8: AMOUNT
A10: PS15-A | C10: SECTION A :CIVIL REFURBISHMENT
A12: PS15-A1 | C12: Fencing:
A14: PS15-A1.1 | C14: Removal of existing concrete pallisade fencing and access gates and dispose of material at approved Municipal dumping site or store facility. | D14: m | E14: 45 | G14: =E14*F14 -> 0.00
A16: PS15-A1.2 | C16: Supply and install new high-security Clear-Vu fencing 2,4m high including all materials and fasteners (or similar approved) | D16: m | E16: 45 | G16: 0.00
A18: PS15-A1.3 | C18: Galvanised steel access gates (double leaf, 2,4m high x 3,6m wide) | D18: No | E18: 1 | G18: 0.00
A20: PS15-A1.4 | C20: Additional padlocks | D20: No | E20: 1 | G20: 0.00
A22: PS15-A1.5 | C22: 150 x 200mm hand excavated trench for concrete beam under fencing | D22: m | E22: 45 | G22: 0.00
A24: PS15-A1.6 | C24: 150 x 200mm Concrete ground beam casted insitu with 15 Mpa concrete. | D24: m³ | E24: 5 | G24: 0.00
A26: PS15-A2 | B26: SANS 1200MJ | C26: SEGMENTED CONCRETE PAVING BLOCKS
C28: Paving
A30: PS15-A2.1 | C30: Cut to spoil 400mm deep excavation for paving and layerworks and compact base to 93% MOD-ASHTO | D30: m² | E30: 80 | G30: =E30*F30 -> 0.00
A32: PS15-A2.2 | C32: 150mm C4 Stabalised sub base layer compacted to 97% MOD-ASHTO | D32: m² | E32: 80 | G32: =E32*F32 -> 0.00
A34: PS15-A2.3 | C34: 80mm Paving blocks including 20mm bedding sand layer | D34: m² | E34: 80 | G34: =E34*F34 -> 0.00
A36: PS15-A3.5 | B36: SANS 1200ME 8.2.1 | C36: Supply and place pre-cast mountable concrete kerbing (Figure 8c pre-cast kerbing) | D36: m | E36: 40 | G36: =E36*F36 -> 0.00
A38: PS15-A3 | B38: SANS 1200D | C38: EARTHWORKS
A40: PS15-A3.1 | C40: Locate, and excavate by hand in all material to expose existing services where ordered by the Engineer (provisional) | D40: m³ | E40: 10 | G40: =E40*F40 -> 0.00
B42: 8.3.3 | C42: Restricted excavations:
C44: Excavate in all materials, and use for backfilling or embankments, or dispose:
A46: PS15-A3.2 | C46: Depth up to 1,0m | D46: m³ | E46: 10 | G46: =E46*F46 -> 0.00
A48: PS15-A3.3 | C48: Depth over 1,0m and up to 2,0m | D48: m³ | E48: 10 | G48: =E48*F48 -> 0.00
A50: PS15-A4 | B50: PB | C50: BUILDING WORK REFURBISHMENT
B52: PB 8.2.20 | C52: Painting:
A54: PS15-A4.1 | C54: Interior Walls a) Pressure wash interior walls before any refurbishment work commence; b) Sand down interior walls; c) Remove all loose paint from structure; d) Apply interior paint primer (to be confirmed by supplier); e) Apply 2 coats of white interior paint (Emulsion paint) | D54: m² | E54: 50 | G54: =E54*F54 -> 0.00
A56: PS15-A4.2 | C56: Burgular Bars: a) Sand down door and window frames; b) Remove loose paint; c) Apply paint primer (to be confirmed by supplier); d) Apply 2 coats of Enamel Paint (Plascon Enamel or similar approved) | D56: m² | E56: 5 | G56: =E56*F56 -> 0.00
A58: PS15-A4.3 | C58: Concrete Floors and 1m above floor level a) Pressure wash floors before any refurbishment work commence; b) Sand down existing epoxy and material; c) Remove loose particles; d) Apply epoxy primer (to be confirmed by supplier) e) Apply 3 layers of industrial epoxy paint (Sikagard) | D58: m² | E58: 10 | G58: =E58*F58 -> 0.00
A60: PS15-A4.4 | C60: Interior Concrete Roofs a) Pressure wash roofs before any refurbishment work commence; b) Sand down existing roof material; c) Remove loose paint; d) Apply paint primer (to be confirmed by supplier) e) Apply 2 coats of interior roof paint (Dulux roof guard or similar approved) | D60: m² | E60: 10 | G60: =E60*F60 -> 0.00
A62: PS15-A4.5 | C62: Exterior Concrete Roofs a) Pressure wash roofs before any refurbishment work commence; b) Sand down existing roof material; c) Remove loose paint; d) Apply paint primer (to be confirmed by supplier) e) Apply 2 coats of exterior roof paint (Dulux roof guard or similar approved) | D62: m² | E62: 15 | G62: =E62*F62 -> 0.00
A64: PS15-A4.6 | C64: Steel Doors (Double doors) a) Pressure wash steel doors before any refurbishment work commence; b) Sand down existing doors; c) Remove loose paint; d) Apply paint primer (to be confirmed by supplier) e) Apply 2 coats of true black metal matt enamel (Dulux or similar approved) | D64: m² | E64: 12 | G64: =E64*F64 -> 0.00
A66: TOTAL CARREID FORWARD | G66: =SUM(G8:G65) -> 0.00
A67: TOTAL BROUGHT FORWARD | G67: =G66 -> 0.00
A69: PS15-A4.7 | C69: Concrete plinths: a) Pressure wash floors before any refurbishment work commence; b) Sand down existing epoxy and material; c) Remove loose particles; d) Apply epoxy primer (to be confirmed by supplier) e) Apply 3 layers of industrial epoxy paint (Sikagard) | D69: m² | E69: 2.5 | G69: =E69*F69 -> 0.00
A71: PS15-A5 | B71: PB 8.2.21 | C71: General Electrical:
A73: PS15-A5.1 | C73: Refurbishment of general electrical items in existing building | D73: Prov Sum | E73: 1.00 | F73: 20,000.00 | G73: =E73*F73 -> 20,000.00
A75: PS15-A5.2 | C75: Overheads, charges and profit on subitem A6.1 above | D75: % | E75: =G73 -> 20,000.00 | G75: 0.00
A77: PS15-A5.3 | C77: Refurbishment of existing cable racks | D77: Prov Sum | E77: 1.00 | F77: 10,000.00 | G77: 10,000.00
A79: PS15-A5.4 | C79: Overheads, charges and profit on subitem A6.3 above | D79: % | E79: =G77 -> 10,000.00 | G79: 0.00
A81: PS15-A6 | B81: SANS 1200 H | C81: Structural steelwork:
C83: Complete supply, manufacturing, corrosion protection (Hot-dipped galvanized) and installation of structural steel gantry:
A85: PS15-A6.1 | C85: IPE 200 I-section beam, including end/cleat plates & bolts | D85: t | E85: 0.4 | G85: =E85*F85 -> 0.00 | K85: =I85*J85 -> 0.00
A87: PS15-A6.2 | C87: IPEAA 160 I-section beam, including end/cleat plates & bolts | D87: t | E87: 0.4 | G87: 0.00
A89: PS15-B | C89: SECTION B: MECHANICAL REFURBISHMENT
C91: PIPEWORK:
A93: PS15-B1 | C93: De-install of existing pipework for all diameters up to including:
A95: PS15-B1.1 | C95: 150-200mm | D95: m | E95: 15 | G95: =E95*F95 -> 0.00
A97: PS15-B2 | C97: Confirm integrity of existing pipework:
C99: High pressure sand blasting of all existing pipework (including flanges)
C101: For the following diameters:
A103: PS15-B2.1 | C103: 150mm | D103: m | E103: 10 | G103: =E103*F103 -> 0.00
A105: PS15-B2.2 | C105: 200mm | D105: m | E105: 5 | G105: 0.00
A107: PS15-B2.3 | C107: Complete Non-destructive testing (NDT) on all existing pipework | D107: Sum | E107: 1 | G107: 0.00
A109: PS15-B3 | C109: Re-coating of pipework (COPON KSIR 88 - 250 MICRON or similar approved)
C111: For the following diameters:
A113: PS15-B3.1 | C113: 150mm | D113: m | E113: 10 | G113: =E113*F113 -> 0.00
A115: PS15-B3.2 | C115: 200mm | D115: m | E115: 5 | G115: 0.00
A117: PS15-B4 | C117: Replacement of all nuts, bolts and gaskets
C119: For following flanges (SANS 1123, Bolts and Nuts):
A121: PS15-B4.1 | C121: 150mm | D121: No | E121: 35 | G121: =E121*F121 -> 0.00
A123: PS15-B4.2 | C123: 200mm | D123: No | E123: 5 | G123: 0.00
A125: PS15-B5 | C125: Provisional items
A127: PS15-B5.1 | C127: Replacement of existing pipework | D127: Prov Sum | E127: 1.00 | F127: 30,000.00 | G127: =E127*F127 -> 30,000.00
A129: PS15-B5.2 | C129: Overheads, charges and profit on subitem B5.1 above | D129: % | E129: =G127 -> 30,000.00 | G129: 0.00
A131: PS15-B6 | C131: Pipe brackets:
C133: For 150mm pipes:
C135: For heights between:
A137: PS15-B6.1 | C137: 0.5 - 1m | D137: No | E137: 4 | G137: =E137*F137 -> 0.00
A139: PS15-B7 | C139: PUMPS AND MOTORS:
C141: Specifications Fluid: Potable Water:
C143: Pump No. 1 & 2:
A145: PS15-B7.1 | C145: De-install existing pump sets | D145: No | E145: 2 | G145: =E145*F145 -> 0.00
A147: PS15-B7.2 | C147: Transport to Agent/Manufactures workshop for conditional assessment and back to storeroom of Municipality | D147: Sum | E147: 1 | G147: 0.00
A149: PS15-B7.3 | C149: Refurbishment works required on pump sets | D149: Prov Sum | E149: 1 | F149: 15,000.00 | G149: 15,000.00
A151: TOTAL CARREID FORWARD | G151: =SUM(G67:G150) -> 75,000.00
A152: TOTAL BROUGHT FORWARD | G152: =G151 -> 75,000.00
A154: PS15-B7.4 | C154: Overheads, charges and profit on subitem B2.3 above | D154: % | E154: =G149 -> 15,000.00 | G154: =E154*F154 -> 0.00
A156: PS15-B7.5 | C156: Prepare G.A Drawings for pump sets and pipework | D156: Sum | E156: 1 | G156: 0.00
A158: PS15-B7.6 | C158: Supply and deliver new pump sets (including baseplates, anchor rods, bolts and all fittings required) | D158: No | E158: 2 | G158: 0.00
A160: PS15-B7.7 | C160: Install new pump set (Pump, Motor and Baseplate) | D160: No | E160: 2 | G160: 0.00
A162: PS15-B7.8 | C162: Commissioning of pump set and O&M Manuals | D162: No | E162: 2 | G162: 0.00
A164: PS15-B8 | B164: SANS 1200 LK | C164: Valves
A166: PS15-B8.1 | C166: De-install and remove existing valves | D166: Sum | E166: 1 | G166: =E166*F166 -> 0.00
A168: PS15-B8.2 | C168: Supply and deliver valves (Flangend drilling of valves to be confirmed on site):
C170: Suction:
C172: Flanged RSV Gate Valve:
A174: PS15-B8.2.1 | C174: DN 200mm PN16 (AVK or similar approved) | D174: No | E174: 2 | G174: =E174*F174 -> 0.00
C176: Delivery:
C178: Flanged RSV Gate Valve:
A180: PS15-B8.2.2 | C180: DN 100mm PN16 (AVK or similar approved) | D180: No | E180: 2 | G180: =E180*F180 -> 0.00
C182: Ball Check Valve
A184: PS15-B8.2.3 | C184: DN 100 PN16 (AVK or similar approved) | D184: No | E184: 2 | G184: =E184*F184 -> 0.00
C186: Air-Valves:
A188: PS15-B8.2.4 | C188: DN 50mm PN16 (RPS - Vent-O-Mat or similar approved) Including: a) Riser Flange b) Ball valve c) Bolts, nuts etc. | D188: No | E188: 1 | G188: =E188*F188 -> 0.00
C190: Pressure Sustaining Valve:
A192: PS15-B8.2.5 | C192: DN 100mm PN16 (Bermad or similar approved) | D192: No | E192: 1 | G192: =E192*F192 -> 0.00
C194: Level Control Valve:
A196: PS15-B8.2.6 | C196: DN 100mm PN10 Level Control Valve (AVK or similar approved) | D196: No | E196: 1 | G196: =E196*F196 -> 0.00
C198: Water meter/Flow meter:
A200: PS15-B8.2.7 | C200: DN100 Optiflux 2000 OIML R49 Class 1 (KROHNE or similar approved) | D200: No | E200: 1 | G200: =E200*F200 -> 0.00
C202: Pressure Gauges
A204: PS15-B8.2.8 | C204: Supply, deliver and install 16 bar pressure gauges (2 x suction, 2 x delivery) | D204: No | E204: 4 | G204: =E204*F204 -> 0.00
C206: Install
A208: PS15-B8.2.9 | C208: Flanged RSV Gate Valve - Suction | D208: No | E208: 2 | G208: =E208*F208 -> 0.00
A210: PS15-B8.2.10 | C210: Flanged RSV Gate Valve - Delivery | D210: No | E210: 2 | G210: 0.00
A212: PS15-B8.2.11 | C212: Ball Check Valve | D212: No | E212: 2 | G212: 0.00
A214: PS15-B8.2.12 | C214: Air-Valves | D214: No | E214: 1 | G214: =E214*F214 -> 0.00
A216: PS15-B8.2.13 | C216: Pressure Sustaining Valve: | D216: No | E216: 1 | G216: 0.00
A218: PS15-B8.2.14 | C218: Level Control Valve: | D218: No | E218: 1 | G218: 0.00
A220: PS15-B8.2.15 | C220: Water meter/Flow meter: | D220: No | E220: 1 | G220: 0.00
A222: PS15-B9 | C222: LIFTING EQUIPMENT
A224: PS15-B9.1 | C224: Prepare G.A drawing(s) for pump station lifting equipment | D224: Sum | E224: 1 | G224: =E224*F224 -> 0.00
A226: PS15-B9.2 | C226: Manufacture, supply, install and deliver PS lifting equipment | D226: Sum | E226: 1 | G226: 0.00
A228: PS15-B9.3 | C228: Install lifting equipment | D228: Sum | E228: 1 | G228: 0.00
A230: PS15-B9.4 | C230: Commission lifting equipment | D230: Sum | E230: 1 | G230: 0.00
A232: PS15-C | C232: SECTION C: ELECTRICAL REFURBISHMENT
A234: PS15-C1 | C234: Main Control Consol (MCC):
A236: PS15-C1.1 | C236: De-install, remove and store existing MCC panel | D236: Sum | E236: 1 | G236: =E236*F236 -> 0.00
A238: TOTAL CARREID FORWARD | G238: =SUM(G152:G237) -> 75,000.00
A239: TOTAL BROUGHT FORWARD | G239: =G238 -> 75,000.00
A241: PS15-C1.2 | C241: Prepare the G.A Drawing (s), Schematic and single line diagrams, and load list for the MCC panel | D241: Sum | E241: 1 | G241: =E241*F241 -> 0.00
A243: PS15-C1.3 | C243: Manufacture, supply, store and deliver the MCC panel | D243: Sum | E243: 1 | G243: 0.00
A245: PS15-C1.4 | C245: Install and terminate the MCC panel | D245: Sum | E245: 1 | G245: 0.00
A247: PS15-C1.5 | C247: Commission the MCC panel | D247: Sum | E247: 1 | G247: 0.00
A249: PS15-C2 | C249: Pressure Transmitter:
A251: PS15-C2.1 | C251: Manufacture and Supply 0-16 bar Pressure Transmitter (4-20 mA 1/4" process connector). | D251: No | E251: 1 | G251: =E251*F251 -> 0.00
A253: PS15-C2.2 | C253: Install Pressure Transmitter | D253: No | E253: 1 | G253: 0.00
A255: PS15-C2.3 | C255: Commissioning | D255: No | E255: 1 | G255: 0.00
A257: PS15-C3 | C257: Existing cables:
A259: PS15-C3.1 | C259: Fault finding on existing cables | D259: Sum | E259: 1 | G259: =E259*F259 -> 0.00
A261: PS15-C3.2 | C261: Prepare assessment report and recommendation | D261: Sum | E261: 1 | G261: 0.00
A263: PS15-C3.3 | C263: Provision for material and installation of defective cables | D263: Prov Sum | E263: 1 | F263: 30,000.00 | G263: 30,000.00
A265: PS15-C3.4 | C265: Overheads, charges and profit on subitem C3.3 above | D265: % | E265: =G263 -> 30,000.00 | G265: 0.00
A267: PS15-C3.5 | C267: Commissioning and providing COC for installation | D267: Sum | E267: 1 | G267: 0.00
A269: PS15-C4 | C269: Level/Control Equipment:
A271: PS15-C4.1 | C271: De-install, removal and discard of existing ball level indicators | D271: Sum | E271: 1 | G271: =E271*F271 -> 0.00
A273: PS15-C4.2 | C273: Supply, deliver and store level probes Specifications: a) APS - 3C or similar approved b) 3 - Probes (Common, low and high) c) Depths to be confirmed on site | D273: Sum | E273: 1 | G273: 0.00
A275: PS15-C4.3 | C275: Installation of level probes | D275: Sum | E275: 1 | G275: =E275*F275 -> 0.00
A277: PS15-C4.4 | C277: Commission of level probes | D277: Sum | E277: 1 | G277: 0.00
A279: PS15-C5 | C279: Main power supply
A281: PS15-C5.1 | C281: Fault finding on existing supply cables | D281: Sum | E281: 1 | G281: =E281*F281 -> 0.00
A283: PS15-C5.2 | C283: Prepare assessment report and recommendation | D283: Sum | E283: 1 | G283: 0.00
A285: PS15-C5.3 | C285: Provision for material and installation of defective cables | D285: Prov Sum | E285: 1 | F285: 50,000.00 | G285: =E285*F285 -> 50,000.00
A287: PS15-C5.4 | C287: Overheads, charges and profit on subitem C3.3 above | D287: % | E287: =G285 -> 50,000.00 | G287: 0.00
A289: PS15-C5.5 | C289: Commissioning and providing COC for installation | D289: Sum | E289: 1 | G289: 0.00
A291: TOTAL CARREID FORWARD TO SUMMARY PAGE | G291: =SUM(G239:G290) -> 155,000.00

Sheet 16 Kingshill
A2: MALUTI-A-PHOFUNG LOCAL MUNICIPALITY
A3: APPOINTMENT OF A SERVICE PROVIDER: UPGRADING OF WATER PUMP STATION PHASE 1
A4: Contract No.: SCM/BID09/2023/24
A6: SCHEDULE PUMP STATION No 16: KINGSHILL PUMP STATION (28°16'39.77"S,29° 8'45.07"E)
A8: ITEM | B8: PAYMENT CLAUSE | C8: DESCRIPTION | D8: UNIT | E8: QUANT. | F8: RATE | G8: AMOUNT
C10: SECTION A :CIVIL REFURBISHMENT
A12: PS16-A1 | B12: SANS 1200C | C12: SITE CLEARANCE
A14: PS16-A1.1 | B14: 8.3.1 | C14: Clear and grub vegetation and trees of girth up to 1,0m | D14: m² | E14: 220 | G14: =E14*F14 -> 0.00
A16: PS16-A2 | C16: Fencing:
A18: PS16-A2.1 | C18: Removal of existing concrete pallisade fencing and access gates and dispose of material at approved Municipal dumping site. | D18: m | E18: 65 | G18: =E18*F18 -> 0.00
A20: PS16-A2.2 | C20: Supply and install new Clear-Vu fencing 2,4m high including all materials and fasteners (or similar approved) | D20: m | E20: 65 | G20: 0.00
A22: PS16-A2.3 | C22: Supply and install shark tooth "anti climb spikes". (Material to be approved by the Engineer before procurement) | D22: m | E22: 65 | G22: 0.00
A24: PS16-A2.4 | C24: Galvanised steel access gates (double leaf, 2,4m high x 3,6m wide) | D24: No | E24: 1 | G24: 0.00
A26: PS16-A2.5 | C26: Additional padlocks | D26: No | E26: 1 | G26: 0.00
A28: PS16-A2.6 | C28: 150 x 200mm hand excavated trench for concrete beam under fencing | D28: m | E28: 65 | G28: 0.00
A30: PS16-A2.7 | C30: 150 x 200mm Concrete ground beam casted insitu with 15 Mpa concrete. | D30: m³ | E30: 5 | G30: 0.00
A32: PS16-A3 | B32: SANS 1200MJ | C32: SEGMENTED CONCRETE PAVING BLOCKS
C34: Paving
A36: PS16-A3.1 | C36: Cut to spoil 400mm deep excavation for paving and layerworks and compact base to 93% MOD-ASHTO | D36: m² | E36: 60 | G36: =E36*F36 -> 0.00
A38: PS16-A3.2 | C38: 150mm C4 Stabalised sub base layer compacted to 97% MOD-ASHTO | D38: m² | E38: 60 | G38: 0.00
A40: PS16-A3.3 | C40: 80mm Paving blocks including 20mm bedding sand layer | D40: m² | E40: 60 | G40: 0.00
A42: PS16-A3.4 | B42: SANS 1200ME 8.2.1 | C42: Supply and place pre-cast mountable concrete kerbing (Figure 8c pre-cast kerbing) | D42: m | E42: 30 | G42: 0.00
A44: PS16-A4 | B44: SANS 1200D | C44: EARTHWORKS
A46: PS16-A4.1 | C46: Locate, and excavate by hand in all material to expose existing services where ordered by the Engineer (provisional) | D46: m³ | E46: 15 | G46: =E46*F46 -> 0.00
A48: PS16-A4.2 | B48: 8.3.3 | C48: Restricted excavations:
C50: Excavate in all materials, and use for backfilling or embankments, or dispose:
A52: PS16-A4.3 | C52: Depth up to 1,0m | D52: m³ | E52: 10 | G52: =E52*F52 -> 0.00
A54: PS16-A4.4 | C54: Depth over 1,0m and up to 2,0m | D54: m³ | E54: 10 | G54: 0.00
A56: PS16-A5 | B56: SANS 1200 G | C56: Concrete works
A58: PS16-A5.1 | C58: Demolish and remove existing concret plinths | D58: No | E58: 2 | G58: =E58*F58 -> 0.00
C60: Formwork:
C62: Smooth formwork:
B64: 8.2.2 | C64: Plane vertical
A66: PS16-A5.2 | C66: To plinths | D66: m² | E66: 5 | G66: =E66*F66 -> 0.00
B68: 8.3.1 | C68: High Tensile Steel:
A70: PS16-A5.3 | C70: Y12 | D70: t | E70: 0.2 | G70: =E70*F70 -> 0.00
C72: Mild Tensile Steel:
A74: PS16-A5.4 | C74: R10 | D74: t | E74: 0.2 | G74: =E74*F74 -> 0.00
B76: 8.4.3 | C76: Concrete Class 35/19 to:
A78: PS16-A5.5 | C78: Plinths | D78: m³ | E78: 2 | G78: =E78*F78 -> 0.00
B80: 8.4.4 | C80: Unformed surfaces:
C82: Steel float finish:
A84: PS16-A5.6 | C84: Plinth | D84: m² | E84: 5 | G84: =E84*F84 -> 0.00
A86: PS16-A6 | B86: PB | C86: BUILDING WORK REFURBISHMENT
B88: PB 8.2.20 | C88: Painting:
A90: PS16-A6.1 | C90: Burgular Bars: a) Sand down door and window frames; b) Remove loose paint; c) Apply paint primer (to be confirmed by supplier); d) Apply 2 coats of Enamel Paint (Plascon Enamel or similar approved) | D90: m² | E90: 5 | G90: =E90*F90 -> 0.00
A91: TOTAL CARREID FORWARD | G91: =SUM(G9:G90) -> 0.00
A92: TOTAL BROUGHT FORWARD | G92: =G91 -> 0.00
A94: PS16-A6.2 | C94: Concrete Floors and 1m above floor level a) Pressure wash floors before any refurbishment work commence; b) Sand down existing epoxy and material; c) Remove loose particles; d) Apply epoxy primer (to be confirmed by supplier) e) Apply 3 layers of industrial epoxy paint (Sikagard) | D94: m² | E94: 15 | G94: =E94*F94 -> 0.00
A96: PS16-A7 | B96: PB 8 | C96: Roof and Structural Timber:
C98: Remove existing clay roof tiles and dispose at verified disposal site | D98: m² | E98: 25 | G98: =E98*F98 -> 0.00
A100: PS16-A7.1 | B100: 8.2.12 | C100: Refurbishment of Roofs a) Remove existing roof material and dispose at a verified site; b) Sand down rafts and purlins (on written instruction replace purlins and rafters); c) Apply exterior and interior wood varnish to rafts d) Install new roof material (chromadek galvanized steel sheets (Traffic Cone Green) or similar approved) | D100: m² | E100: 25 | G100: 0.00
A102: PS16-A7.2 | B102: 8.2.11 | C102: Purlins 50 x 76 SAP | D102: m | E102: 30 | G102: 0.00
A104: PS16-A7.3 | B104: 8.2.11 | C104: Brandering 38 x 38 SAP | D104: m² | E104: 15 | G104: 0.00
B106: PB 8.2.13 | C106: Facia Boards and Gutters:
A108: PS16-A7.4 | C108: 225 x 12 mm F.C. fascia and barge boards | D108: m | E108: 20 | G108: =E108*F108 -> 0.00
A110: PS16-A7.5 | C110: 125 x 85 Colourbond aluminium gutters | D110: m | E110: 10 | G110: 0.00
A112: PS16-A7.6 | C112: 80 x 55 Colourbond aluminium downpipes | D112: m | E112: 7 | G112: 0.00
B114: PB 8.2.15 | C114: Ceilings:
A116: PS16-A7.7 | C116: Gypsum ceiling board | D116: m² | E116: 15 | G116: =E116*F116 -> 0.00
A118: PS16-A7.8 | C118: Cornice 75 mm | D118: m | E118: 20 | G118: 0.00
A120: PS16-A8 | B120: PB 8.2.21 | C120: General Electrical:
A122: PS16-A8.1 | C122: Refurbishment of general electrical items in existing building | D122: Prov Sum | E122: 1.00 | F122: 20,000.00 | G122: =E122*F122 -> 20,000.00
A124: PS16-A8.2 | C124: Overheads, charges and profit on subitem A7.1 above | D124: % | E124: =G122 -> 20,000.00 | G124: 0.00
A126: PS16-A8.3 | C126: Refurbishment of existing cable racks | D126: Prov Sum | E126: 1.00 | F126: 15,000.00 | G126: 15,000.00
A128: PS16-A8.4 | C128: Overheads, charges and profit on subitem A7.3 above | D128: % | E128: =G126 -> 15,000.00 | G128: 0.00
A130: PS16-A9 | B130: SANS 1200 H | C130: Structural steelwork:
C132: Complete supply, manufacturing, corrosion protection (Hot-dipped galvanized) and installation of structural steel gantry:
A134: PS16-A9.1 | C134: IPE 200 I-section beam, including end/cleat plates & bolts | D134: t | E134: 0.4 | G134: =E134*F134 -> 0.00
A136: PS16-A9.2 | C136: IPEAA 160 I-section beam, including end/cleat plates & bolts | D136: t | E136: 0.4 | G136: 0.00
A138: PS16-B | C138: SECTION B: MECHANICAL REFURBISHMENT
A140: PS16-B1 | C140: PIPEWORK:
A142: PS16-B1.1 | C142: De-install of existing pipework for all diameters up to including:
A144: PS16-B1.1.1 | C144: 50- 150mm | D144: m | E144: 10 | G144: =E144*F144 -> 0.00
A146: PS16-B1.2 | C146: Manufacture, supply and store new pipework
C148: Pipework:
C150: Material: a) Fabrication according to SANS 719: 1971 Grade B with 1600kPa working pressure (4.5mm thickness) b) Sand blasted according to SA055900 SIS 2 1/2 Finish c) Coating to be "Copon KSIR 88"or similar approved product to a thickness of 250 Micron
A152: PS16-B1.2.1 | C152: 80mm | D152: m | E152: 7 | G152: =E152*F152 -> 0.00
A154: PS16-B1.2.2 | C154: 100mm | D154: m | E154: 10 | G154: 0.00
C156: Flanges:
C158: Material: a) Thickness and drilling according to SANS 1123 Table 1600/3
A160: PS16-B1.2.3 | C160: 80mm | D160: No | E160: 7 | G160: =E160*F160 -> 0.00
A162: PS16-B1.2.4 | C162: 100mm | D162: No | E162: 10 | G162: 0.00
C164: Specials (Including all flanges) Material specifications as per pipes and flanges above:
A167: TOTAL CARREID FORWARD | G167: =SUM(G92:G166) -> 35,000.00
A168: TOTAL BROUGHT FORWARD | G168: =G167 -> 35,000.00
A170: PS16-B1.2.5 | C170: 80mm - 90° bend | D170: No | E170: 4 | G170: =E170*F170 -> 0.00
A172: PS16-B1.2.6 | C172: 100mm - 22.5° bend | D172: No | E172: 2 | G172: 0.00
C174: Reducers
A176: PS16-B1.2.7 | C176: 80 - 100mm | D176: No | E176: 6 | G176: =E176*F176 -> 0.00
A178: PS16-B1.2.8 | C178: T-Pieces (100-100mm) | D178: No | E178: 2 | G178: 0.00
A181: PS16-B1.2.9 | C181: Install pipework (Grade 8.8 bolts, nuts, washers and Gaskets) | D181: Sum | E181: 1 | G181: =E181*F181 -> 0.00
A183: PS16-B1.2.10 | C183: Commission pipework | D183: Sum | E183: 1 | G183: 0.00
C185: Pipe brackets:
C187: For 100mm pipes:
C189: For heights between:
A191: PS16-B1.2.11 | C191: 0.5 - 1m (Refer to drawing 131- | D191: No | E191: 4 | G191: =E191*F191 -> 0.00
A193: PS16-B2 | C193: PUMPS AND MOTORS:
C195: Specifications Fluid: Potable Water:
C197: Pump No. 1 & 2:
A199: PS16-B2.1 | C199: De-install existing pump sets | D199: No | E199: 2 | G199: =E199*F199 -> 0.00
A201: PS16-B2.2 | C201: Transport to Agent/Manufactures workshop for conditional assessment and back to storeroom of Municipality | D201: Sum | E201: 1 | G201: 0.00
A203: PS16-B2.3 | C203: Refurbishment works required on pump sets | D203: Prov Sum | E203: 1 | F203: 15,000.00 | G203: 15,000.00
A205: PS16-B2.4 | C205: Overheads, charges and profit on subitem B2.3 above | D205: % | E205: =G203 -> 15,000.00 | G205: 0.00
A207: PS16-B2.5 | C207: Prepare G.A Drawings for pump sets and pipework | D207: Sum | E207: 1 | G207: 0.00
A209: PS16-B2.6 | C209: Supply and deliver new pump sets (including baseplates, anchor rods, bolts and all fittings required) | D209: No | E209: 2 | G209: 0.00
A211: PS16-B2.7 | C211: Install new pump set (Pump, Motor and Baseplate) | D211: No | E211: 2 | G211: 0.00
A213: PS16-B2.8 | C213: Commissioning of pump set and O&M Manuals | D213: No | E213: 2 | G213: 0.00
A215: PS16-B3 | B215: SANS 1200 LK | C215: Valves
A217: PS16-B3.1 | C217: De-install and remove existing valves | D217: Sum | E217: 1 | G217: =E217*F217 -> 0.00
A219: PS16-B3.2 | C219: Supply and deliver valves (Flangend drilling of valves to be confirmed on site):
C221: Suction:
C223: Flanged RSV Gate Valve:
A225: PS16-B3.2.1 | C225: DN 100mm PN10 (AVK or similar approved) | D225: No | E225: 2 | G225: =E225*F225 -> 0.00
C227: Delivery:
C229: Flanged RSV Gate Valve:
A231: PS16-B3.2.2 | C231: DN 80mm PN16 (AVK or similar approved) | D231: No | E231: 2 | G231: =E231*F231 -> 0.00
C233: Ball Check Valve
A235: PS16-B3.2.3 | C235: DN 80mm PN16 (AVK or similar approved) | D235: No | E235: 2 | G235: =E235*F235 -> 0.00
C237: Air-Valves:
A239: PS16-B3.2.4 | C239: DN 50mm PN16 (RPS - Vent-O-Mat or similar approved) Including: a) Riser Flange b) Ball valve c) Bolts, nuts etc. | D239: No | E239: 1 | G239: =E239*F239 -> 0.00
C241: Level Control Valve:
A243: PS16-B3.2.5 | C243: DN 80mm PN10 Level Control Valve (AVK or similar approved) | D243: No | E243: 1 | G243: =E243*F243 -> 0.00
C245: Water meter/Flow meter:
A247: PS16-B3.2.6 | C247: DN100 Optiflux 2000 OIML R49 Class 1 (KROHNE or similar approved) | D247: No | E247: 1 | G247: =E247*F247 -> 0.00
A250: TOTAL CARREID FORWARD | G250: =SUM(G168:G249) -> 50,000.00
A251: TOTAL BROUGHT FORWARD | G251: =G250 -> 50,000.00
C253: Pressure Gauges
A255: PS16-B3.2.7 | C255: Supply, deliver and install 16 bar pressure gauges (2 x suction, 2 x delivery) | D255: No | E255: 2 | G255: =E255*F255 -> 0.00
C257: Install
A259: PS16-B3.2.8 | C259: Flanged RSV Gate Valve - Suction | D259: No | E259: 2 | G259: =E259*F259 -> 0.00
A261: PS16-B3.2.9 | C261: Flanged RSV Gate Valve - Delivery | D261: No | E261: 2 | G261: 0.00
A263: PS16-B3.2.10 | C263: Ball Check Valve | D263: No | E263: 2 | G263: 0.00
A265: PS16-B3.2.11 | C265: Air-Valves | D265: No | E265: 1 | G265: 0.00
A267: PS16-B8.2.12 | C267: Level Control Valve: | D267: No | E267: 1 | G267: 0.00
A269: PS16-B3.2.13 | C269: Water meter/Flow meter: | D269: No | E269: 1 | G269: 0.00
A271: PS16-B4 | C271: LIFTING EQUIPMENT
A273: PS16-B4.1 | C273: Prepare G.A drawing(s) for pump station lifting equipment | D273: Sum | E273: 1 | G273: =E273*F273 -> 0.00
A275: PS16-B4.2 | C275: Manufacture, supply, install and deliver PS lifting equipment | D275: Sum | E275: 1 | G275: 0.00
A277: PS16-B4.3 | C277: Install lifting equipment | D277: Sum | E277: 1 | G277: 0.00
A279: PS16-B4.4 | C279: Commission lifting equipment | D279: Sum | E279: 1 | G279: 0.00
A281: PS16-C | C281: SECTION C: ELECTRICAL REFURBISHMENT
A283: PS16-C1 | C283: Main Control Consol (MCC):
A285: PS16-C1.1 | C285: De-install, remove and store existing MCC panel | D285: Sum | E285: 1 | G285: =E285*F285 -> 0.00
A287: PS16-C1.2 | C287: Prepare the G.A Drawing (s), Schematic and single line diagrams, and load list for the MCC panel | D287: Sum | E287: 1 | G287: 0.00
A289: PS16-C1.3 | C289: Manufacture, supply, store and deliver the MCC panel | D289: Sum | E289: 1 | G289: 0.00
A291: PS16-C1.4 | C291: Install and terminate the MCC panel | D291: Sum | E291: 1 | G291: 0.00
A293: PS16-C1.5 | C293: Commission the MCC panel | D293: Sum | E293: 1 | G293: 0.00
A295: PS16-C2 | C295: Pressure Transmitter:
A297: PS16-C2.1 | C297: Manufacture and Supply 0-16 bar Pressure Transmitter (4-20 mA 1/4" process connector). | D297: No | E297: 1 | G297: =E297*F297 -> 0.00
A299: PS16-C2.2 | C299: Install Pressure Transmitter | D299: No | E299: 1 | G299: 0.00
A301: PS16-C2.3 | C301: Commissioning | D301: No | E301: 1 | G301: 0.00
A303: PS16-C3 | C303: Existing cables:
A305: PS16-C3.1 | C305: Fault finding on existing cables | D305: Sum | E305: 1 | G305: =E305*F305 -> 0.00
A307: PS16-C3.2 | C307: Prepare assessment report and recommendation | D307: Sum | E307: 1 | G307: 0.00
A309: PS16-C3.3 | C309: Provision for material and installation of defective cables | D309: Prov Sum | E309: 1 | F309: 30,000.00 | G309: 30,000.00
A311: PS16-C3.4 | C311: Overheads, charges and profit on subitem C3.3 above | D311: % | E311: =G309 -> 30,000.00 | G311: 0.00
A313: PS16-C3.5 | C313: Commissioning and providing COC for installation | D313: Sum | E313: 1 | G313: 0.00
A315: PS16-C4 | C315: Level/Control Equipment:
A317: PS16-C4.1 | C317: De-install, removal and discard of existing ball level indicators | D317: Sum | E317: 1 | G317: =E317*F317 -> 0.00
A319: PS16-C4.2 | C319: Supply, deliver and store level probes Specifications: a) APS - 3C or similar approved b) 3 - Probes (Common, low and high) c) Depths to be confirmed on site | D319: Sum | E319: 1 | G319: =E319*F319 -> 0.00
A321: PS16-C4.3 | C321: Installation of level probes | D321: Sum | E321: 1 | G321: 0.00
A323: PS16-C4.4 | C323: Commission of level probes | D323: Sum | E323: 1 | G323: 0.00
A325: PS16-C5 | C325: Main power supply
A327: PS16-C5.1 | C327: Fault finding on existing supply cables | D327: Sum | E327: 1 | G327: =E327*F327 -> 0.00
A329: PS16-C5.2 | C329: Prepare assessment report and recommendation | D329: Sum | E329: 1 | G329: 0.00
A331: PS16-C5.3 | C331: Provision for material and installation of defective cables | D331: Prov Sum | E331: 1 | F331: 30,000.00 | G331: =E331*F331 -> 30,000.00
A333: PS16-C5.4 | C333: Overheads, charges and profit on subitem C3.3 above | D333: % | E333: =G331 -> 30,000.00 | G333: 0.00
A335: PS16-C5.6 | C335: Commissioning and providing COC for installation | D335: Sum | E335: 1 | G335: 0.00
A337: TOTAL CARREID FORWARD TO SUMMARY PAGE | G337: =SUM(G251:G336) -> 110,000.00

Sheet Summary Page
A2: MALUTI-A-PHOFUNG LOCAL MUNICIPALITY
A3: APPOINTMENT OF A SERVICE PROVIDER: UPGRADING OF WATER PUMP STATION PHASE 1
A4: Contract No.: SCM/BID09/2023/24
A6: SUMMARY PAGE
A7: SCHEDULE | B7: DESCRIPTION | C7: TOTAL
A8: A | B8: PRELIMINARY AND GENERAL | C8: ='A P&G'!G161 -> R1,730,000.00
A9: PS 1 | B9: MABOLELA PUMP STATION | C9: ='1 Mabolela'!G269 -> R145,000.00
A10: PS 2 | B10: SEHLAJANENG PUMP STATION NO. 2 | C10: ='2 Sehlajaneng 2'!G269 -> R150,000.00
A11: PS 3 | B11: SEHLAJANENG PUMP STATION NO. 1 | C11: ='3 Sehlajaneng 1'!G299 -> R170,000.00
A12: PS 4 | B12: HLATSENG PUMP STATION | C12: ='4 Hlatseng'!G352 -> R205,000.00
A13: PS 5 | B13: POELONG PUMP STATION | C13: ='5 Poelong'!G238 -> R150,000.00
A14: PS 6 | B14: BOLATA PUMP STATION | C14: ='6 Bolata '!G274 -> R115,000.00
A15: PS 7 | B15: FIKA PATSO PUMP STATION | C15: ='7 Fika-patso Resort'!G285 -> R112,500.00
A16: PS 8 | B16: MASIONOKENG PUMP STATION | C16: ='8 Masionokeng'!G316 -> R120,000.00
A17: PS 9 | B17: LEJWANENG PUMP STATION | C17: ='9 Lejwaneng'!G276 -> R125,000.00
A18: PS 10 | B18: THABANG PUMP STATION | C18: ='10 Thabang'!G351 -> R160,000.00
A19: PS 11 | B19: MANGAUNG PUMP STATION | C19: ='11 Mangaung'!G310 -> R210,000.00
A20: PS 12 | B20: QOQOLOSING PUMP STATION | C20: ='12 Qoqolosing'!G272 -> R110,000.00
A21: PS 13 | B21: PERENG B PUMP STATION | C21: ='13 Pereng B'!G295 -> R120,000.00
A22: PS 14 | B22: PERENG A PUMP STATION | C22: ='14 Pereng A'!G238 -> R60,000.00
A23: PS 15 | B23: INTABAZWE PUMP STATION | C23: ='15 Intabazwe'!G291 -> R155,000.00
A24: PS 16 | B24: KINGSHILL PUMP STATION | C24: ='16 Kingshill'!G337 -> R110,000.00
A25: SUB-TOTAL | C25: =SUM(C8:C24) -> R3,947,500.00
A26: PLUS 10% CONTINGENCIES | C26: =C25*0.1 -> R394,750.00
A27: SUB-TOTAL | C27: =C25+C26 -> R4,342,250.00
A28: PLUS 15% VAT | C28: =C27*0.15 -> R651,337.50
A29: TOTAL CARRIED FORWARD TO FRONT PAGE | C29: =C27+C28 -> R4,993,587.50
